Workbook

Sheet Introduction
A3: . . . . . . . . . . . . . . . . . . . . . . . . . . . . . . . . . . . . . . . . . . . . . . . . .
A5: Guidelines For Estimating
A6: Beef Cow-Calf Production Costs
A7: ="Based on a "&Input!E13&" Head Cow Herd - "&IF('Winter Feed Rations'!E9>0,'Winter Feed Rations'!E10,IF('Winter Feed Rations'!F9>0,'Winter Feed Rations'!F10,IF('Winter Feed Rations'!G9>0,'Winter Feed Rations'!G10,IF('Winter Feed Rations'!H9>0,'Winter Feed Rations'!H10,IF('Winter Feed Rations'!I9>0,'Winter Feed Rations'!I10,IF('Winter Feed Rations'!J9>0,'Winter Feed Rations'!J10,IF('Winter Feed Rations'!K9>0,'Winter Feed Rations'!K10,IF('Winter Feed Rations'!L9>0,'Winter Feed Rations'!L10,"Custom"))))))))&" Ration" -> Based on a 300 Head Cow Herd - Corn Silage Ration
G10: Date: | I10: September, 2025
B16: This guide is designed to provide you with planning information and a format for calculating costs of production of a cow calf enterprise in Manitoba. General Manitoba Agriculture recommendations are assumed in using feed and veterinary inputs. These figures provide an economic evaluation of the livestock and estimated prices required to cover all costs. Costs include labour, investment and depreciation, but do not include management costs, nor do they necessarily represent the average cost of production in Manitoba.
B25: These budgets may be adjusted by putting in your own figures. As a producer you are encouraged to calculate your own costs of production. Good management is assumed in that a balanced ration is being fed, livestock are on a herd health program and handling facilities are included.
B31: This tool is available as an Excel worksheet at:
H38: is also available to
B39: help determine machinery costs.
B41: Note: This budget is only a guide and is not intended as an in-depth study of the cost of production of this industry. Interpretation and use of this information is the responsibility of the user. If you need help with a budget, contact a Farm Management Specialist.

Sheet Summary
B1: ="Cow-Calf Production Costs - "&Introduction!I10&"" -> Cow-Calf Production Costs - September, 2025
B2: ="Based on a "&Input!E13&" Cow Herd" -> Based on a 300 Cow Herd
A4: A. Operating Costs | F4: Cost/Cow | H4: Total Cost | J4: Your Cost
B5: 1. Feed Costs
B6: Grain and Concentrates | F6: =SUM('Winter Feed Rations'!O40:O43)+SUM('Winter Feed Rations'!O19:O22) -> 87.16700073 | H6: =ROUND(F6*Input!$E$13,0) -> 26150
B7: Forages | F7: =SUM('Winter Feed Rations'!O33:O39)+SUM('Winter Feed Rations'!O12:O18) -> 288.7794643 | H7: =ROUND(F7*Input!$E$13,0) -> 86634
B8: Salt & Minerals | F8: =SUM('Winter Feed Rations'!O44:O47)+SUM('Winter Feed Rations'!O23:O26)+SUM((((Pasture!G3+Pasture!G4)*0.07)/'Winter Feed Rations'!C26)*'Winter Feed Rations'!B26)+SUM((((Pasture!G3+Pasture!G4)*0.12)/'Winter Feed Rations'!C23)*'Winter Feed Rations'!B23) -> 42.08993506 | H8: =ROUND(F8*Input!$E$13,0) -> 12627
B9: Extended Grazing Forages | F9: =IF('Extended Grazing'!G49="ERROR","ERROR",'Extended Grazing'!G53) -> 41.52572417 | H9: =ROUND(F9*Input!$E$13,0) -> 12458
B10: Total Feed Cost | F10: =IF('Winter Feed Rations'!H54=Pasture!G5,F6+F7+F8+F9,"ERROR") -> 459.5621242 | H10: =SUM(H6:H9) -> 137869
B12: 2. Other Operating Costs
B13: Straw | F13: ='Operating '!D26*'Operating '!D25 -> 70 | H13: =ROUND(F13*Input!$E$13,0) -> 21000
B14: Veterinary Medicine & Supplies | F14: ='Operating '!G21 -> 26.94333333 | H14: =ROUND(F14*Input!$E$13,0) -> 8083
B15: Breeding Costs | F15: =Input!G91 -> 55.91 | H15: =ROUND(F15*Input!$E$13,0) -> 16773
B16: Fuel, Maintenance & Repairs | F16: ='Operating '!G48 -> 40.06906667 | H16: =ROUND(F16*Input!$E$13,0) -> 12021
B17: Utilities | F17: ='Operating '!G59 -> 9.688774 | H17: =ROUND(F17*Input!$E$13,0) -> 2907
B18: Marketing & Transportation | F18: ='Operating '!G93 -> 39.9775 | H18: =ROUND(F18*Input!$E$13,0) -> 11993
B19: Death Loss | F19: ='Operating '!G97 -> 62.5 | H19: =ROUND(F19*Input!$E$13,0) -> 18750
B20: Manure Removal | F20: ='Operating '!G108 -> 10.83963562 | H20: =ROUND(F20*Input!$E$13,0) -> 3252
B21: Insurance | F21: ='Operating '!G122 -> 28.59 | H21: =ROUND(F21*Input!$E$13,0) -> 8577
B22: Herd Replacement | F22: =Input!E38 -> 267.6 | H22: =ROUND(F22*Input!$E$13,0) -> 80280
B23: Pasture Rental | F23: =Pasture!J122 -> 59.375 | H23: =ROUND(F23*Input!$E$13,0) -> 17813
B24: Pasture Operating | F24: =Pasture!J121 -> 34.76510638 | H24: =ROUND(F24*Input!$E$13,0) -> 10430
B25: Labour - Hired | F25: ='Operating '!G136 -> 56 | H25: =ROUND(F25*Input!$E$13,0) -> 16800
B26: Miscellaneous | F26: ='Operating '!G126 -> 3.33 | H26: =ROUND(F26*Input!$E$13,0) -> 999
B27: Subtotal Operating Costs | F27: =SUM(F10:F26) -> 1225.15054 | H27: =SUM(H10:H26) -> 367547
B28: Operating Interest | F28: ='Operating '!G132 -> 41.3488 | H28: =ROUND(F28*Input!$E$13,0) -> 12405
B29: Total Operating Costs | F29: =F27+F28 -> 1266.49934 | H29: =SUM(H27:H28) -> 379952
A31: B. Fixed Costs
B32: Livestock | F32: =Fixed!D12 -> 135.5474929 | H32: =ROUND(F32*Input!$E$13,0) -> 40664
B33: Buildings | F33: =Fixed!I29 -> 23.95809099 | H33: =ROUND(F33*Input!$E$13,0) -> 7187
B34: Machinery & Equipment | F34: =Fixed!I15 -> 130.6642479 | H34: =ROUND(F34*Input!$E$13,0) -> 39199
B35: Pasture Land & Fencing | F35: =IF(Pasture!J114=Input!E13,Pasture!J123,"ERROR") -> 69.98979541 | H35: =ROUND(F35*Input!$E$13,0) -> 20997
B36: Total Fixed Costs | F36: =SUM(F32:F35) -> 360.1596272 | H36: =SUM(H32:H35) -> 108047
A38: C. Owners - Labour & Living | F38: ='Operating '!G137 -> 168 | H38: =ROUND(F38*Input!$E$13,0) -> 50400
A40: Total Cost of Production | F40: =F38+F36+F29 -> 1794.658967 | H40: =H38+H36+H29 -> 538399
D42: Profitability and Breakeven Analysis
A43: Estimated Farmgate | F43: Per Cow | H43: Total | J43: Per Acre
B44: Price ($ per cwt) | F44: =Input!E24 -> 640.87
B45: Calf weight (lbs) | F45: =Input!E23 -> 575
B46: Gross Revenue / cow | F46: =SUM((Input!E24/100)*Input!E23)*(Input!E17/100) -> 3500.752375 | H46: =ROUND(F46*Input!$E$13,0) -> 1050226 | J46: =H46/(((Details!$J$40-'Extended Grazing'!$D$50-'Extended Grazing'!$F$50)/Input!$E$13)*Input!$E$13) -> 731.4835152
B48: Operating Expense Ratio | F48: =SUM(F29/F46) -> 0.3617791848
A50: Marginal Returns
B51: Over Feed Costs | F51: =SUM(F46-F10) -> 3041.190251 | H51: =ROUND(F51*Input!$E$13,0) -> 912357 | J51: =H51/(((Details!$J$40-'Extended Grazing'!$D$50-'Extended Grazing'!$F$50)/Input!$E$13)*Input!$E$13) -> 635.4576115
B52: Over Operating Costs | F52: =SUM(F46-F29) -> 2234.253035 | H52: =ROUND(F52*Input!$E$13,0) -> 670276 | J52: =H52/(((Details!$J$40-'Extended Grazing'!$D$50-'Extended Grazing'!$F$50)/Input!$E$13)*Input!$E$13) -> 466.84794
B53: Over Operating & Fixed Costs | F53: =SUM(F46-F29-F36) -> 1874.093408 | H53: =ROUND(F53*Input!$E$13,0) -> 562228 | J53: =H53/(((Details!$J$40-'Extended Grazing'!$D$50-'Extended Grazing'!$F$50)/Input!$E$13)*Input!$E$13) -> 391.5923942
B54: Over Total Costs (Net Profit) | F54: =SUM(F46-F40) -> 1706.093408 | H54: =ROUND(F54*Input!$E$13,0) -> 511828 | J54: =H54/(((Details!$J$40-'Extended Grazing'!$D$50-'Extended Grazing'!$F$50)/Input!$E$13)*Input!$E$13) -> 356.4887411
F56: Price
A57: Breakeven (Lb. weaned calf) | F57: ($/cwt)
B58: Over Feed & Operating Costs | F58: =($F$29/(Input!$E$17/100)/(Input!$E$23/100)) -> 231.8534261
B59: Over Feed, Operating & Fixed Costs | F59: =(($F$29+$F$36)/(Input!$E$17/100)/(Input!$E$23/100)) -> 297.7865387
B60: Over Total Costs | F60: =(($F$40)/(Input!$E$17/100)/(Input!$E$23/100)) -> 328.5416874
B62: Over Feed Costs | F62: =($F$10/(Input!$E$17/100)/(Input!$E$23/100)) -> 84.13036599 | H62: =($F$10/(Input!$E$24/100)) -> 71.70910235 | L62: **Ben - Do you like this 'Darren' version of B/E?? Or the revised old version above?
B63: Over Operating Costs | F63: =(($F$29-$F$10)/(Input!$E$17/100)/(Input!$E$23/100)) -> 147.7230601 | H63: =(($F$29-$F$10)/(Input!$E$24/100)) -> 125.9127773
B64: Over Livestock (Fixed) Costs | F64: =(($F$32)/(Input!$E$17/100)/(Input!$E$23/100)) -> 24.81418634 | H64: =(($F$32)/(Input!$E$24/100)) -> 21.15054424
B65: Over Building (Fixed) Costs | F65: =(($F$33)/(Input!$E$17/100)/(Input!$E$23/100)) -> 4.385920548 | H65: =(($F$33)/(Input!$E$24/100)) -> 3.738369871
B66: Over Machinery (Fixed) Costs | F66: =(($F$34)/(Input!$E$17/100)/(Input!$E$23/100)) -> 23.92022844 | H66: =(($F$34)/(Input!$E$24/100)) -> 20.38857301
B67: Over Pasture (Fixed) Costs | F67: =(($F$35)/(Input!$E$17/100)/(Input!$E$23/100)) -> 12.81277719 | H67: =(($F$35)/(Input!$E$24/100)) -> 10.92105972
B68: Over Labour - Owner Living | F68: =(($F$38)/(Input!$E$17/100)/(Input!$E$23/100)) -> 30.75514874 | H68: =($F$38/(Input!$E$24/100)) -> 26.21436485
B69: Over Total Costs | F69: =(($F$40)/(Input!$E$17/100)/(Input!$E$23/100)) -> 328.5416874 | H69: =($F$40/(Input!$E$24/100)) -> 280.0347914
A71: Estimated Return on Investment (ROI) | F71: =(F46-F40)/F40 -> 0.9506504793
A72: Estimated Return on Asset (ROA) | F72: =((F46-F29)-F38-Fixed!I27-Fixed!I13-Fixed!I41)/(SUM(Details!E12:E17)/Input!E13) -> 0.203138965
A74: Cost Summary Per Cow Per Day
B76: ="Summer grazing (based on "&Pasture!G3&" days)" -> Summer grazing (based on 135 days) | F76: =SUM((F35+F23+F24)/Pasture!G3) -> 1.21577705
B77: ="Extended grazing (based on "&Pasture!G4&" days)" -> Extended grazing (based on 35 days) | F77: =IF('Extended Grazing'!G54="",0,'Extended Grazing'!G54) -> 1.186449262
B78: ="Winter feed (based on "&Pasture!G5&" days)" -> Winter feed (based on 195 days) | F78: ='Winter Feed Rations'!K54+((Input!G46+Input!G53)/Pasture!G5) -> 2.152191329
B79: ="Yardage (based on "&Pasture!G5+Pasture!G4&" days)" -> Yardage (based on 230 days) | F79: =((H13+(Input!G59*Input!E13)+('Operating '!G118*Input!E13)+((H27-H14-H15-H18-H19-H22-H23-H24)/2*('Operating '!E131/100))+(H26*((Pasture!G4+Pasture!G5)/365))+H16+H17+(H20)+H33+H34+((H25+H38)*0.625))/(Input!E13))/(Pasture!G5+Pasture!G4) -> 1.995363777
B80: ="Total Overwinter Costs (based on "&Pasture!G5+Pasture!G4&" days)" -> Total Overwinter Costs (based on 230 days) | F80: =SUM(((F78*Pasture!G5)+(F79*(Pasture!G5+Pasture!G4))+(F77*Pasture!G4))/(Pasture!G4+Pasture!G5)) -> 4.000594357
B82: Note: This budget is only a guide and is not intended to be an in-depth study of the cost of production of this industry. Interpretation and utilization of this information is the responsibility of the user. No liability for decisions based on this publication is assumed.

Sheet Summary (2)
B1: ="Cow-Calf Standardized Operating Statement - "&Introduction!I10&"" -> Cow-Calf Standardized Operating Statement - September, 2025
B2: ="Based on a "&Input!E13&" Cow Herd" -> Based on a 300 Cow Herd
F4: Per Cow | I4: Total | K4: Your Farm
A5: = | B5: Revenue | F5: =Summary!F46 -> 3500.752375 | I5: =Summary!H46 -> 1050226
A6: =" -" -> - | B6: Cost of Goods Sold (CoGS)
D7: Grain and Concentrates | F7: =SUM('Winter Feed Rations'!O40:O43)+SUM('Winter Feed Rations'!O19:O22) -> 87.16700073 | G7: =SUM(F7/$F$5) -> 0.02489950485 | I7: =ROUND(F7*Input!$E$13,0) -> 26150
D8: Forages | F8: =SUM('Winter Feed Rations'!O33:O39)+SUM('Winter Feed Rations'!O12:O18) -> 288.7794643 | G8: 0.08249068582 | I8: =ROUND(F8*Input!$E$13,0) -> 86634
D9: Salt & Minerals | F9: =SUM('Winter Feed Rations'!O44:O47)+SUM('Winter Feed Rations'!O23:O26)+SUM((((Pasture!G3+Pasture!G4)*0.07)/'Winter Feed Rations'!C26)*'Winter Feed Rations'!B26)+SUM((((Pasture!G3+Pasture!G4)*0.12)/'Winter Feed Rations'!C23)*'Winter Feed Rations'!B23) -> 42.08993506 | G9: 0.01202311119 | I9: =ROUND(F9*Input!$E$13,0) -> 12627
D10: Extended Grazing Forages | F10: =IF('Extended Grazing'!G49="ERROR","ERROR",'Extended Grazing'!G53) -> 41.52572417 | G10: 0.01186194273 | I10: =ROUND(F10*Input!$E$13,0) -> 12458
D11: Pasture Operating | F11: =Pasture!J121 -> 34.76510638 | G11: 0.009930752781 | I11: =ROUND(F11*Input!$E$13,0) -> 10430
D12: Straw | F12: ='Operating '!D26*'Operating '!D25 -> 70 | G12: 0.01999570164 | I12: =ROUND(F12*Input!$E$13,0) -> 21000
D13: Veterinary Medicine & Supplies | F13: ='Operating '!G21 -> 26.94333333 | G13: 0.007696440778 | I13: =ROUND(F13*Input!$E$13,0) -> 8083
D14: Death Loss | F14: ='Operating '!G97 -> 62.5 | G14: =SUM(F14/$F$5) -> 0.01785330503 | I14: =ROUND(F14*Input!$E$13,0) -> 18750
D15: Herd Replacement | F15: =Input!E38 -> 267.6 | G15: =SUM(F15/$F$5) -> 0.07644071083 | I15: =ROUND(F15*Input!$E$13,0) -> 80280
D16: Breeding Costs | F16: =Input!G91 -> 55.91 | G16: 0.01597085255 | I16: =ROUND(F16*Input!$E$13,0) -> 16773
D17: Manure Removal | F17: ='Operating '!G108 -> 10.83963562 | G17: 0.00309637314 | I17: =ROUND(F17*Input!$E$13,0) -> 3252
F18: =SUM(F7:F17) -> 988.1201996 | G18: 0.2822593813 | I18: =SUM(I7:I17) -> 296437
A20: = | B20: Gross Margin (GM) | F20: =SUM(F5-F18) -> 2512.632175 | G20: =SUM(F20/$F$5) -> 0.7177406187 | I20: =SUM(I5-I18) -> 753789
A22: =" -" -> - | B22: Direct Operating Expenses (DOE)
D23: Labour - Hired | F23: ='Operating '!G136 -> 56 | G23: =SUM(F23/$F$5) -> 0.01599656131 | I23: =ROUND(F23*Input!$E$13,0) -> 16800
D24: Owners - Labour & Living | F24: ='Operating '!G137 -> 168 | G24: 0.04798968393 | I24: =ROUND(F24*Input!$E$13,0) -> 50400
D25: Fuel, Maintenance & Repairs | F25: ='Operating '!G48 -> 40.06906667 | G25: 0.01144584431 | I25: =ROUND(F25*Input!$E$13,0) -> 12021
D26: Utilities | F26: ='Operating '!G59 -> 9.688774 | G26: 0.002767626202 | I26: =ROUND(F26*Input!$E$13,0) -> 2907
D27: Marketing & Transportation | F27: ='Operating '!G93 -> 39.9775 | G27: 0.01141968803 | I27: =ROUND(F27*Input!$E$13,0) -> 11993
F28: =SUM(F23:F27) -> 313.7353407 | G28: 0.08961940379 | I28: =SUM(I23:I27) -> 94121
A30: = | B30: Contribution Margin (CM) | F30: =SUM(F20-F28) -> 2198.896835 | G30: 0.6281212149 | I30: =SUM(I20-I28) -> 659668
A32: =" -" -> - | B32: Operating Overheads (OH)
D33: Insurance | F33: ='Operating '!G122 -> 28.59 | G33: 0.008166815855 | I33: =ROUND(F33*Input!$E$13,0) -> 8577
D34: Miscellaneous | F34: ='Operating '!G126 -> 3.33 | G34: 0.0009512240922 | I34: =ROUND(F34*Input!$E$13,0) -> 999
F35: =SUM(F33:F34) -> 31.92 | G35: 0.009118039947 | I35: =SUM(I33:I34) -> 9576
A37: = | B37: Earnings Before Interest Taxes Depreciation Amortization Rent (EBITDAR) or Operating Income
B38: EBITDAR | F38: =SUM(F30-F35) -> 2166.976835 | G38: =SUM(F38/$F$5) -> 0.6190031749 | I38: =SUM(I30-I35) -> 650092
A40: =" -" -> - | B40: Cost of Capital (CoC) or Depreciation/Amortization/Lease/Rent
D41: Owned Cows Amortization Costs | F41: =-CUMPRINC(Fixed!C9,Fixed!D9,Fixed!D4*Fixed!D6,1,Fixed!D9,0)/Fixed!D9 -> 107.1428571 | G41: =SUM(F41/$F$5) -> 0.03060566577 | I41: =ROUND(F41*Input!$E$13,0) -> 32143
D42: Owned Cows Opportunity Cost | F42: =Fixed!D11 -> 0 | G42: 0 | I42: =ROUND(F42*Input!$E$13,0) -> 0
D43: Pasture & Fencing Depreciation Costs | F43: =Pasture!J135 -> 9.38106383 | G43: 0.002679727906 | I43: =ROUND(F43*Input!$E$13,0) -> 2814
D44: Pasture & Fencing Amortization Costs | F44: =Pasture!J132 -> 34.25379939 | G44: 0.009784696466 | I44: =ROUND(F44*Input!$E$13,0) -> 10276
D45: Pasture & Fencing Opportunity Costs | F45: =Pasture!J145 -> 0 | G45: 0 | I45: =ROUND(F45*Input!$E$13,0) -> 0
D46: Pasture Rental | F46: =Pasture!J122 -> 59.375 | G46: =SUM(F46/$F$5) -> 0.01696063978 | I46: =ROUND(F46*Input!$E$13,0) -> 17813
D47: Building Depreciation Cost | F47: =Fixed!I27 -> 14.28 | G47: 0.004079123134 | I47: =ROUND(F47*Input!$E$13,0) -> 4284
D48: Building Amortization Costs | F48: =-CUMPRINC(Fixed!H25,Fixed!I25,Fixed!I18*Fixed!I22,1,Fixed!I25,0)/Fixed!I25 -> 7.65 | G48: 0.002185244536 | I48: =ROUND(F48*Input!$E$13,0) -> 2295
D49: Building Opportunity Costs | F49: =Fixed!I28 -> 0 | G49: 0 | I49: =ROUND(F49*Input!$E$13,0) -> 0
D50: Machinery & Eq. Depreciation Costs | F50: =Fixed!I13 -> 90 | G50: 0.02570875925 | I50: =ROUND(F50*Input!$E$13,0) -> 27000
D51: Machinery & Eq. Amortization Costs | F51: =-CUMPRINC(Fixed!H11,Fixed!I11,Fixed!I4*Fixed!I8,1,Fixed!I11,0)/Fixed!I11 -> 32.14285714 | G51: 0.009181699732 | I51: =ROUND(F51*Input!$E$13,0) -> 9643
D52: Machinery & Eq. Opportunity Costs | F52: =Fixed!I14 -> 0 | G52: 0 | I52: =ROUND(F52*Input!$E$13,0) -> 0
F53: =SUM(F41:F51) -> 354.2255775 | G53: 0.1011855566 | I53: =SUM(I41:I51) -> 106268
A55: = | B55: Earnings Before Interest Taxes (EBIT) | F55: =SUM(F38-F53) -> 1812.751257 | G55: 0.5178176183 | I55: =SUM(I38-I53) -> 543824
A57: =" -" -> - | B57: Interest Expenses
D58: Operating Interest | F58: ='Operating '!G132 -> 41.3488 | G58: =SUM(F58/$F$5) -> 0.01181140383 | I58: =ROUND(F58*Input!$E$13,0) -> 12405
D59: Owned Cows Interest Cost | F59: =-CUMIPMT(Fixed!C9,Fixed!D9,Fixed!D4*Fixed!D6,1,Fixed!D9,0)/Fixed!D9 -> 28.40463574 | G59: 0.008113866021 | I59: =ROUND(F59*Input!$E$13,0) -> 8521
D60: Pasture & Fencing Interest Costs | F60: =Pasture!J140 -> 26.35493219 | G60: 0.007528362298 | I60: =ROUND(F60*Input!$E$13,0) -> 7906
D61: Building Interest Cost | F61: =-CUMIPMT(Fixed!H25,Fixed!I25,Fixed!I18*Fixed!I22,1,Fixed!I25,0)/Fixed!I25 -> 2.028090992 | G61: 0.0005793300339 | I61: =ROUND(F61*Input!$E$13,0) -> 608
D62: Machinery & Equipment Interest Costs | F62: =-CUMIPMT(Fixed!H11,Fixed!I11,Fixed!I4*Fixed!I8,1,Fixed!I11,0)/Fixed!I11 -> 8.521390723 | G62: 0.002434159806 | I62: =ROUND(F62*Input!$E$13,0) -> 2556
F63: =SUM(F58:F62) -> 106.6578497 | G63: 0.03046712199 | I63: =SUM(I58:I62) -> 31996
A65: = | B65: Earnings Before Taxes (EBT) | F65: =SUM(F55-F63) -> 1706.093408 | G65: 0.4873504964 | I65: =SUM(I55-I63) -> 511828
B68: Note: This budget is only a guide and is not intended to be an in-depth study of the cost of production of this industry. Interpretation and utilization of this information is the responsibility of the user. No liability for decisions based on this publication is assumed.

Sheet Charts

Sheet Charts (2)

Sheet Risk Analysis
A1: Risk & Sensitivity Analysis (Stress Test)
A2: A. Operating Costs | E2: ***Hide***
B3: Feed cost | C3: =Summary!F10 -> 459.5621242
B4: Other Operating Costs | C4: =Summary!F29-Summary!F10 -> 806.937216
B5: Subtotal | C5: =SUM(C3:C4) -> 1266.49934
A6: B. Fixed Costs | C6: =Summary!F36 -> 360.1596272
A7: C. Labour | C7: =Summary!F38 -> 168
A8: Total Costs | C8: =SUM(C5:C7) -> 1794.658967
B10: Calf Crop % | C10: =Input!E17 -> 95
B11: Calf weight (lbs) | C11: =Summary!F45 -> 575
A13: Estimated Farmgate
B14: Price ($ per cwt) | C14: =Input!E24 -> 640.87
B17: Percent Operating Cost Change | F17: Percent Sale Price Change
B18: Percent Weaning Weight Change | F18: Percent Calf Crop Change | H18: ?? Any point in this included??
C21: Percent | F21: Change from | H21: Change in | J21: Change in
C22: Change | D22: Per Head | F22: Baseline Value | H22: Profit/Cow | J22: Total Profit
B24: Operating Costs | C24: -0.05 | D24: =SUM(C5*(1+C24)) -> 1203.174373 | F24: =SUM(D24-C5) -> -63.32496701 | H24: =-SUM(D24-C5) -> 63.32496701 | J24: =SUM(H24*Input!$E$13) -> 18997.4901
B25: Sale Price ($ per cwt) | C25: 0.05 | D25: =SUM(C14*(1+C25)) -> 672.9135 | F25: =SUM(D25-C14) -> 32.0435 | H25: =SUM((D25-C14)/100)*C11 -> 184.250125 | J25: =SUM(H25*Input!$E$13) -> 55275.0375
B26: Calf Weaning Weight (lbs) | C26: 0.05 | D26: =SUM(C11+(C11*C26)) -> 603.75 | F26: =SUM(D26-C11) -> 28.75 | H26: =SUM(D26-C11)*(C14/100) -> 184.250125 | J26: =SUM(H26*Input!$E$13) -> 55275.0375
B27: Calf Crop % | C27: 0.01 | D27: =SUM(C10+(C27*100)) -> 96 | F27: =SUM(D27-C10) -> 1 | H27: =(($C$11/100)*$C$14*(($D$27-C10)/100)) -> 36.850025 | J27: =SUM(H27*Input!$E$13) -> 11055.0075
H28: =SUM(H24:H27) -> 468.675242 | J28: =SUM(J24:J27) -> 140602.5726
B30: Gross Revenue / Cow | C30: =(($D$26/100)*$D$25*($D$27/100)) -> 3900.206646 | E30: =SUM(C34-Summary!F46) -> 399.454271 | H30: **if we add these two lines here, we can delete the rest below??
B31: Over Total Costs (Net Profit) | C31: =SUM($C$34-$D$24-$C$6-$C$7) -> 2168.872646 | E31: =SUM(C38-Summary!F54) -> 462.779238 | H31: **or do we even need these line or the stuff below??
A33: ="Stress Test Scenario = Market Price "&IF(C25<0,"Down","Up")&" "&ABS(C25*100)&"%, Calf Crop "&IF(C27<0,"Down","Up")&" "&ABS(C27*100)&"% and Calf Weight "&IF(C26<0,"Down","Up")&" "&ABS(C26*100)&"%" -> Stress Test Scenario = Market Price Up 5%, Calf Crop Up 1% and Calf Weight Up 5%
B34: Gross Revenue / Cow | C34: =(($D$26/100)*$D$25*($D$27/100)) -> 3900.206646 | E34: =SUM(C34-Summary!F46) -> 399.454271
B35: Marginal Returns
B36: Over Operating Costs | C36: =SUM(C34-D24) -> 2697.032273 | E36: =SUM(C36-Summary!F52) -> 462.779238
B37: Over Operating & Fixed Costs | C37: =SUM(C34-C6-D24) -> 2336.872646 | E37: =SUM(C37-Summary!F53) -> 462.779238
B38: Over Total Costs (Net Profit) | C38: =SUM($C$34-$D$24-$C$6-$C$7) -> 2168.872646 | E38: =SUM(C38-Summary!F54) -> 462.779238
A68: Estimated Breakeven Canadian Dollar Analysis | M68: hide???
D70: ="Est. Market Price ($/cwt Cdn) @ "&TEXT(Input!E22,"0.0000")&" Cdn per USD" -> Est. Market Price ($/cwt Cdn) @ 0.8200 Cdn per USD
D71: =SUM($F$71-10) -> 630.87 | E71: =SUM($F$71-5) -> 635.87 | F71: =Input!E24 -> 640.87 | G71: =SUM($F$71+5) -> 645.87 | H71: =SUM($F$71+10) -> 650.87
A72: Breakeven CDN Dollar ($1 Cdn = $ USD)
B73: Operating Costs | D73: =SUM((D71/100)*Input!$E$23*Input!$E$22)/Summary!$F$29 -> 2.348640821 | E73: =SUM((E71/100)*Input!$E$23*Input!$E$22)/Summary!$F$29 -> 2.367255122 | F73: =SUM((F71/100)*Input!$E$23*Input!$E$22)/Summary!$F$29 -> 2.385869423 | G73: =SUM((G71/100)*Input!$E$23*Input!$E$22)/Summary!$F$29 -> 2.404483724 | H73: =SUM((H71/100)*Input!$E$23*Input!$E$22)/Summary!$F$29 -> 2.423098025
B74: Operating & Labour Costs | D74: =SUM((D71/100)*Input!$E$23*Input!$E$22)/(Summary!$F$29+Summary!$F$38) -> 2.073582027 | E74: =SUM((E71/100)*Input!$E$23*Input!$E$22)/(Summary!$F$29+Summary!$F$38) -> 2.090016332 | F74: =SUM((F71/100)*Input!$E$23*Input!$E$22)/(Summary!$F$29+Summary!$F$38) -> 2.106450638 | G74: =SUM((G71/100)*Input!$E$23*Input!$E$22)/(Summary!$F$29+Summary!$F$38) -> 2.122884943 | H74: =SUM((H71/100)*Input!$E$23*Input!$E$22)/(Summary!$F$29+Summary!$F$38) -> 2.139319248
B75: Operating, Fixed & Labour Costs | D75: =SUM((D71/100)*Input!$E$23*Input!$E$22)/(Summary!$F$40) -> 1.65744696 | E75: =SUM((E71/100)*Input!$E$23*Input!$E$22)/(Summary!$F$40) -> 1.670583161 | F75: =SUM((F71/100)*Input!$E$23*Input!$E$22)/(Summary!$F$40) -> 1.683719361 | G75: =SUM((G71/100)*Input!$E$23*Input!$E$22)/(Summary!$F$40) -> 1.696855562 | H75: =SUM((H71/100)*Input!$E$23*Input!$E$22)/(Summary!$F$40) -> 1.709991762
A77: ="Breakeven Canadian Dollar = (Est. Market Price ($/lb) x Calf Wt. (lbs) x $ Cdn per USD) / Cost (eg. ($"&TEXT(F71/100,"0.0000")&" x "&ROUND(Input!E23,0)&" lbs x $"&TEXT(Input!E22,"0.0000")&") / $"&TEXT(Summary!F40,"0.00")&") = $"&TEXT(F75,"0.0000")&")" -> Breakeven Canadian Dollar = (Est. Market Price ($/lb) x Calf Wt. (lbs) x $ Cdn per USD) / Cost (eg. ($6.4087 x 575 lbs x $0.8200) / $1794.66) = $1.6837)
B79: Risk Management Analysis
A109: Note: This budget is only a guide and is not intended as an in-depth study of the cost of production of this industry. Interpretation and utilization of this information is the responsibility of the user.

Sheet Input
A1: Cow-Calf Production Costs - Herd Input
A3: Assumptions
A4: 1. This budget outlines the cost of production for a cow-calf operation.
A5: 2. Buildings and equipment are valued at new cost.
A6: 3. All feed is purchased.
A7: 4. Manure removal is contracted out.
A8: 5. Replacement heifers are valued at fair market value
A9: ="6. This budget assumes an average weaning weight of "&Input!E23&" lbs. (steer calves "&E18&" lbs and heifer calves "&E20&" lbs.)" -> 6. This budget assumes an average weaning weight of 575 lbs. (steer calves 600 lbs and heifer calves 550 lbs.)
A11: Cow-Calf Production Costs - Herd Profile
E12: Total
A13: Number of Cows | E13: 300 | F13: head
A14: Average Cow Weight | E14: 1350 | F14: lbs
A15: Number of Bulls | E15: =IF(E13<151,E13/30,IF(E13<241,(E13/30)+1,(E13/30)+2)) -> 12 | F15: bulls
A17: Calf Crop | E17: 95 | F17: %
A18: Steer Calf Weight | E18: 600 | F18: lbs
A19: Steer Calf Market Price | E19: 660 | F19: /cwt
A20: Heifer Calf Weight | E20: 550 | F20: lbs
A21: Heifer Calf Market Price | E21: 620 | F21: /cwt
A22: $1 Canadian Dollar | D22: ="($"&TEXT(1/E22,"#.####")&" CDN )" -> ($1.2195 CDN ) | E22: 0.82 | F22: / $1 USD
A23: Average Calf Weight | E23: =AVERAGE(E18,E20) -> 575 | F23: lbs
A24: Weighted Average Calf Market Price | E24: =ROUND((((E19*(E18/100))+(E21*(E20/100)))/2)/(E23/100),2) -> 640.87 | F24: /cwt
A26: Cow-Calf Production Costs - Herd Replacement
A27: Herd Replacement (Cows)
A28: Average Value/Cow | E28: 5000 | F28: ="(bred cow to steer calf price ratio = "&TEXT((E28/(E18*(E19/100))),"#.##")&")" -> (bred cow to steer calf price ratio = 1.26)
I29: =" (bred cow to steer calf price ratio range is often 1.1 to 1.5 = estimated cow value range of $"&TEXT(1.1*(($E$18*($E$19/100))),"#,###")&" to $"&TEXT(1.5*(($E$18*($E$19/100))),"#,###")&")" -> (bred cow to steer calf price ratio range is often 1.1 to 1.5 = estimated cow value range of $4,356 to $5,940)
A30: Cull Cow Market Price | E30: 220 | F30: /cwt
A31: Cow Mortality Rate | E31: 1.25 | F31: %
A33: Herd Replacement (Cows)
B34: Replacement Cost/Heifer | E34: 5200
B35: Cull Cow Market Value | D35: - | E35: =SUM(E14/100)*E30 -> 2970
E36: ="("&E14&"lb cow / 100 x $"&E30&"/cwt cull price = $"&TEXT(E35,"0.00")&")" -> (1350lb cow / 100 x $220/cwt cull price = $2970.00)
B37: Cow replacement rate (%) | D37: x | E37: 12
D38: = | E38: =ROUND((E34-E35)*(E37),2)/100 -> 267.6 | F38: /cow
A40: Cow-Calf Production Costs - Breeding
A41: Breeding Costs | G41: Cost Per Cow
A42: Feed for Bulls
A43: Hay | B43: Good Quality (tons/yr) | E43: 4
B44: Hay Price ($/ton) | D44: x | E44: ='Winter Feed Rations'!B13 -> 120
B45: Number of Bulls | D45: x | E45: =Input!E15 -> 12
D46: ÷ | E46: =Input!E13 -> 300 | F46: cows = | G46: =ROUND(((E43*E44)*E45)/E46,2) -> 19.2
A48: Barley | B48: Per Bull (lbs/day) | E48: 7
B49: Days/Year on Barley | D49: x | E49: 120
B50: Pounds per bushel | D50: ÷ | E50: 48
B51: Barley Price ($/bu) | D51: x | E51: ='Winter Feed Rations'!B19 -> 4.5
B52: Number of Bulls | D52: x | E52: =Input!E15 -> 12
D53: ÷ | E53: =Input!E13 -> 300 | F53: cows = | G53: =ROUND(((E48*E49/E50)*(E51)*E52)/E53,2) -> 3.15
F54: = Total | G54: =ROUND(G46+G53,2) -> 22.35
A55: Straw for Bulls
B56: Number of Tons/Bull/Year | E56: 1 | F56: tons/bull/year
B57: Hay Price ($/ton) | D57: x | E57: ='Operating '!D25 -> 70 | F57: /ton
B58: Number of Bulls | D58: x | E58: =Input!E15 -> 12 | F58: bulls
D59: ÷ | E59: =Input!E13 -> 300 | F59: cows = | G59: =ROUND((Input!E56*'Operating '!D25*Input!E15)/Input!E13,2) -> 2.8
A60: Vet & Medicine for Bulls
B61: Semen Test | E61: 65
B62: Health Management Costs | D62: + | E62: 10
B63: Number of Bulls | D63: x | E63: =Input!E15 -> 12 | F63: bulls
D64: ÷ | E64: =Input!E13 -> 300 | F64: cows = | G64: =ROUND(((E61+E62)*E63)/E64,2) -> 3
A65: Herd Replacement (Bulls)
B66: Original Cost/Bull | E66: 6000
B67: Price Received/Cull Bull | D67: - | E67: 4700
B68: Bull Replacement Rate (%) | D68: x | E68: 25
B69: Number of Bulls | D69: x | E69: =Input!E15 -> 12 | F69: bulls
D70: ÷ | E70: =Input!E13 -> 300 | F70: cows = | G70: =ROUND(((E66-E67)*E68)*E69/E70,2)/100 -> 13
A71: Investment in Bulls
B72: Original Cost/Bull | E72: =Input!E66 -> 6000
B73: Price Received/Cull Bull | D73: + | E73: =Input!E67 -> 4700
B74: Average - charged on 1/2 | D74: ÷ | E74: 2
B75: Investment Rate | D75: x | E75: 3.5
B76: Number of Bulls | D76: x | E76: =Input!E15 -> 12
D77: ÷ | E77: =Input!E13 -> 300 | F77: cows = | G77: =ROUND((((E72+E73)/E74)*E75)*E76/E77,2)/100 -> 7.49
A78: Pasture Costs for Bulls
B79: Pasture Cost ($/season) | E79: =Pasture!E92 -> 181.7075706 | F79: /bull pasture cost
B80: Number of Bulls | D80: x | E80: =Input!E15 -> 12 | F80: bulls
D81: ÷ | E81: =Input!E13 -> 300 | F81: cows = | G81: =ROUND((E79*E80)/E81,2) -> 7.27
A82: Other Breeding Alternatives
A83: Artificial Insemination
B84: Cost/Cow or Heifer Exposed | E84: 0
B85: Number Inseminated | D85: x | E85: 0
D86: ÷ | E86: =Input!E13 -> 300 | F86: cows = | G86: =ROUND((E84*E85)/E86,2) -> 0
A87: Community Pasture
B88: Cost/Cow or Heifer Exposed | E88: 0
B89: Number of Cows placed in Pasture | E89: 0
D90: ÷ | E90: =Input!E13 -> 300 | F90: cows = | G90: =ROUND((E88*E89)/E90,2) -> 0
F91: = Total | G91: =ROUND(G54+G59+G64+G70+G77+G81+G86+G90,2) -> 55.91
A93: Cow-Calf Production Costs - Facilities
A95: Waterers | C95: Cows per waterer | E95: 100
C96: Cost per waterer | E96: 2000 | F96: = Total | G96: =ROUNDUP((E13+E15)/E95,0)*E96 -> 8000
A98: Windbreak Fence | C98: Feet per Cow | E98: 1.5
C99: Cost per Foot | E99: 30 | F99: = Total | G99: =ROUNDUP(($E$13+$E$15)*E98,1)*E99 -> 14040
A101: Feedlot Fence/Bunk | C101: Feet per Cow | E101: 2
C102: Cost per Foot | E102: 15 | F102: = Total | G102: =ROUNDUP(($E$13+$E$15)*E101,1)*E102 -> 9360
A104: Calf Shelters | C104: Calves per shelter | E104: 50
C105: Cost per shelter | E105: 3500 | F105: = Total | G105: =ROUNDUP(($E$13+$E$15)/E104,1)*E105 -> 22050

Sheet Operating
A1: Cow-Calf Production Costs - Operating
A3: Veterinary Medicine & Supplies
A4: Calf Medication | G4: Cost Per Cow
A5: Blackleg (8 way vaccine) | D5: 1 | E5: ="/head x "&Input!E17&"% calf crop = " -> /head x 95% calf crop = | G5: =SUM(D5*(Input!E17/100)) -> 0.95
A6: Tags (CCIA & ID) | D6: 4.8 | E6: ="/head x "&Input!E17&"% calf crop = " -> /head x 95% calf crop = | G6: =SUM(D6*(Input!E17/100)) -> 4.56
A7: Cow Medication
A8: 5-Way fetal protection | G8: 5
A9: Scourguard | G9: 5
A10: Internal/external parasite control, antibiotics, etc. | G10: 4
A11: Vitamin A & D | G11: 0.5
A12: Herd Health Program
A13: Professional Services | D13: 8 | E13: hours @
A14: Rate | C14: x | D14: 240 | E14: /hour
C15: ÷ | D15: =Input!E13 -> 300 | E15: cows = | G15: =SUM(D13*D14)/Input!E13 -> 6.4
A16: Transportation
A17: Total Kilometers (round trip) | D17: 80 | E17: km
A18: Rate | C18: x | D18: 1 | E18: /km
A19: Number of yearly visits | D19: 2
C20: ÷ | D20: =Input!E13 -> 300 | E20: cows = | G20: =SUM(D17*D18*D19)/Input!E13 -> 0.5333333333
F21: = Total | G21: =SUM(G20+G15+G11+G10+G9+G8+G6+G5) -> 26.94333333
A23: Other Operating Costs
A24: Straw
A25: Cost ($/Ton) | D25: 70
A26: Number of Tons/Cow/Year | D26: 1
A28: Fuel, Oil, Repairs & Maintenance
A29: Machinery Fuel Cost | G29: Cost Per Cow
A30: Tractor with Loader PTO hp | E30: 120
A31: Average HP required | D31: ÷ | E31: 2.5
A32: Litres fuel / Hour / HP | D32: x | E32: 0.1665576
A33: Tractor Hours Per Day (avg) | D33: x | E33: 3
A34: Diesel Fuel Cost / litre | D34: x | E34: 1.2
A35: Days on feed | D35: x | E35: =IF(Pasture!G10=365,Pasture!G5-Pasture!G7,"ERROR") -> 195
A36: Annual fuel cost | E36: =IF(E35="ERROR","ERROR",ROUND(((E30/E31)*E32*E33*E34*E35),2)) -> 5612.32
D37: ÷ | E37: =Input!E13 -> 300 | F37: cows = | G37: =IF(E35="ERROR","ERROR",SUM(E36/E37)) -> 18.70773333
A38: Machinery repair & maintenance
A39: Machinery capital cost | E39: =SUM(Fixed!J48:J63) -> 337500
A40: Machinery Repair (% of investment cost) | D40: x | E40: 1.2 | F40: %
A41: Oil, repairs & maintenance | D41: = | E41: =SUM(E39*(E40/100)) -> 4050
D42: ÷ | E42: =Input!E13 -> 300 | F42: cows = | G42: =SUM(E41/E42) -> 13.5
A43: Building repair & maintenance
A44: Building capital cost | E44: =SUM(Fixed!E48:E63) -> 107200
A45: Building maintenance (% of inv.cost) | D45: x | E45: 2.2
A46: Repairs & maintenance | D46: = | E46: =SUM(E44*(E45/100)) -> 2358.4
D47: ÷ | E47: =Input!E13 -> 300 | F47: cows = | G47: =SUM(E46/E47) -> 7.861333333
F48: = Total | G48: =IF(G37="ERROR","ERROR",SUM(G47+G42+G37)) -> 40.06906667
A50: Other Operating Costs
A51: Utilities | G51: Cost Per Cow
A52: Hydro | C52: Rate ($/kWh) | E52: 0.09587
B53: 25 | C53: kWh per cow | D53: = | E53: =SUM(B53*Input!E13*E52) -> 719.025
B54: =ROUNDUP((Input!E13+Input!E15)/Input!E95,0) -> 4 | C54: 1000 watt waterer | E54: =SUM(B54*18)*(Pasture!G4+Pasture!G5)*E52 -> 1587.6072
D55: Total Hydro = | E55: =SUM(E53:E54) -> 2306.6322
D56: ÷ | E56: =Input!E13 -> 300 | F56: cows = | G56: =IF(E54="ERROR","ERROR",SUM(E55/E56)) -> 7.688774
A57: Telephone | E57: 600
D58: ÷ | E58: =Input!E13 -> 300 | F58: cows = | G58: =IF(E56="ERROR","ERROR",SUM(E57/E58)) -> 2
F59: = Total | G59: =SUM(G58+G56) -> 9.688774
A61: Marketing & Transportation | G61: Cost Per Cow
A62: Trucking
A63: Calves: | B63: Number marketed per year | E63: =ROUND(Input!E13*Input!E17/100,0) -> 285
B64: Truck Capacity (lbs/load) | E64: 54000
B65: Number of head per load - calves | E65: =E64/Input!E23 -> 93.91304348
B66: Loads | D66: = | E66: =ROUNDUP(('Operating '!E63)/'Operating '!E65,0) -> 4
B67: Distance (miles) | D67: x | E67: 75
B68: Rate / Loaded Mile | D68: x | E68: 7
D69: ÷ | E69: =Input!E13 -> 300 | F69: cows = | G69: =SUM(E67*E68*E66)/E69 -> 7
A71: Cull cows: | B71: Number per year | E71: =ROUND(Input!E13*Input!E37/100,0) -> 36
B72: Number cows died | D72: - | E72: =ROUND(Input!E13*Input!E31/100,0) -> 4
B73: Number of head per load - cull cows | E73: =E64/Input!E14 -> 40
B74: Loads | D74: = | E74: =ROUNDUP(('Operating '!E71-'Operating '!E72)/'Operating '!E73,0) -> 1
B75: Distance (miles) | D75: x | E75: =E67 -> 75
B76: Rate / Loaded Mile | D76: x | E76: =E68 -> 7
D77: ÷ | E77: =Input!E13 -> 300 | F77: cows = | G77: =SUM(E75*E76*E74)/E77 -> 1.75
A78: MBP Levy, selling commission & insurance
A79: Calves | B79: MBP/NCO Levy ($/Head) | D79: + | E79: 5.5
B80: WLPIP Insurance Premium ($/cwt) | E80: 0
B81: Average Calf Weight (cwt) | D81: x | E81: =Input!E23/100 -> 5.75
A82: + | B82: WLPIP Insurance Premium | D82: = | E82: ='Operating '!E80*E81 -> 0
B83: Insurance per Head | D83: + | E83: 1.75
B84: Commission on Calves | E84: 22
B85: Number marketed per year | D85: x | E85: =ROUND(Input!E13*Input!E17/100,0) -> 285
D86: ÷ | E86: =Input!E13 -> 300 | F86: cows = | G86: =((E79+E82+E83+E84)*E85)/E86 -> 27.7875
A88: Cull Cows | B88: MBP/NCO Levy ($/Head) | E88: =E79 -> 5.5
B89: Insurance per Head | D89: + | E89: =E83 -> 1.75
B90: Commission on Cows | E90: 25
B91: Number marketed per year | D91: x | E91: =ROUND(((Input!E13*Input!E37)/100)-((Input!E13*Input!E31)/100),0) -> 32
D92: ÷ | E92: =Input!E13 -> 300 | F92: cows = | G92: =(((E88+E89+E90)*E91)/E92) -> 3.44
F93: = Total | G93: =G69+G77+G86+G92 -> 39.9775
A95: Death Loss | G95: Cost Per Cow
B96: Cow investment ($/Head) | D96: x | E96: =Input!E28 -> 5000
B97: Cow Mortality Rate (%) | D97: x | E97: =Input!E31 -> 1.25 | F97: = | G97: =ROUND(E96*E97,2)/100 -> 62.5
A99: Manure Removal | G99: Cost Per Cow
A100: Number winter feeding days | E100: =Pasture!G5 -> 195
A101: Non-confined winter feeding - feed delivered | D101: - | E101: =Pasture!G6 -> 130
A102: Non-confined winter feeding - bale grazing | D102: - | E102: =Pasture!G7 -> 0
A103: Days confined winter feeding | D103: = | E103: =IF(Pasture!G10=365,SUM(E100-E101-E102),"ERROR") -> 65
A104: Manure volume produced (m3/cow/day) | D104: x | E104: 0.034
A105: Manure volume (m3) | D105: = | E105: =IF(E103="ERROR","ERROR",SUM(E103*E104)) -> 2.21
A106: Manure volume shrinkage (%) | D106: x | E106: 75
A107: Conversion - yd3 per m3 | D107: x | E107: 1.30795
A108: Manure removal & application ($/yd3) | D108: x | E108: 15 | F108: = | G108: =IF(E103="ERROR","ERROR",SUM(E105*(1-(E106/100))*E107*E108)) -> 10.83963562
A110: Insurance | G110: Cost Per Cow
A111: Cow Investment ($/Head) | E111: =Input!E28 -> 5000
A112: Cost per $100 Livestock | D112: x | E112: 0.45
D113: ÷ | E113: 100 | F113: = | G113: =(E111*E112)/E113 -> 22.5
A115: Buildings & Equipment Investment | E115: =SUM(Fixed!E48:E63)+SUM(Fixed!J48:J63) -> 444700
A116: Cost per $100 Buildings | D116: x | E116: 0.4
D117: ÷ | E117: 100
D118: ÷ | E118: =Input!E13 -> 300 | F118: cows = | G118: =ROUND(E115*(E116/E117)/E118,2) -> 5.93
A120: Additional coverage for liability | E120: 49
D121: ÷ | E121: =Input!E13 -> 300 | F121: cows = | G121: =ROUND(E120/E121,2) -> 0.16
F122: = Total | G122: =ROUND(G113+G118+G121,2) -> 28.59
A124: Miscellaneous | G124: Cost Per Cow
B125: Total office expenses | E125: 1000
D126: ÷ | E126: =Input!E13 -> 300 | F126: cows = | G126: =ROUND(E125/E126,2) -> 3.33
A128: Operating Interest
B129: Subtotal operating costs | E129: =Summary!F27 -> 1225.15054
B130: Average - charged on 1/2 | D130: ÷ | E130: 2
B131: Operating Interest Rate | D131: x | E131: 6.75
F132: = Total | G132: =ROUND((E129/E130)*(E131),2)/100 -> 41.3488
A134: Labour Costs | G134: Cost Per Cow
B135: Labour Rate ($/hour) | E135: 28
B136: Hired - Labour Hours/Cow/Year | E136: 2 | F136: = | G136: =ROUND(E136*E135,2) -> 56
B137: Owner - Labour Hours/Cow/Year | E137: 6 | F137: = | G137: =ROUND(E137*E135,2) -> 168
F138: = Total | G138: =SUM(G136:G137) -> 224

Sheet Pasture
A1: Annual Days on Pasture and Winter Feeding
A2: Total Days Per Year | G2: 365
A3: Pasture Grazing | C3: =IF(G3>365,"ERROR - More Than 365 Days",IF(G3<0,"ERROR, less than 0","")) ->  | F3: minus | G3: 135 | H3: days | I3: =ROUND(G3/30,2) -> 4.5 | J3: months
A4: Extended Grazing | C4: =IF(G4>(365-G3),"ERROR - Too Many Days",IF(G4<0,"ERROR, less than 0","")) ->  | F4: minus | G4: 35 | H4: days
A5: Total Winter Feeding | C5: (see Ration Worksheet for more detail) | F5: = | G5: =IF(SUM(G2-(G3+G4))<0,"ERROR",SUM(G2-(G3+G4))) -> 195 | H5: days
A6: Non-confined winter feeding (feed delivered to pasture) | F6: minus | G6: 130 | H6: days
A7: Non-confined winter feeding (bale grazing) | F7: minus | G7: 0 | H7: days
A8: Confined winter feeding - feed delivered | F8: = | G8: =IF(G5="ERROR","ERROR",IF(SUM(G5-(G6+G7))<0,0,SUM(G5-(G6+G7)))) -> 65 | H8: days
F10: =IF(G10="ERROR","",IF(G10>365,"ERROR - More Than 365 Days",IF(G10<365,"ERROR - Less Than 365 Days",""))) ->  | G10: =IF(G5="ERROR","ERROR",SUM(G4+G3+G6+G7+G8)) -> 365 | H10: Total Days
A12: Pasture Options - Input
A13: Land Base | E13: Marginal Pasture | F13: Improved Pasture | G13: Crown Lands | H13: Community Pasture | I13: Rented Pasture
A14: Number of cows pastured/season | E14: =Input!E13 -> 300 | F14: =Input!E13 -> 300 | G14: =Input!E13 -> 300 | H14: =Input!E13 -> 300 | I14: =Input!E13 -> 300
A15: Number of cows/quarter | E15: 32 | F15: 94 | G15: 12 | H15: - | I15: 32
A16: Number of pasture acres/head | E16: =SUM(160/E15) -> 5 | F16: =SUM(160/F15) -> 1.70212766 | G16: =SUM(160/G15) -> 13.33333333 | H16: - | I16: =SUM(160/I15) -> 5
A17: Total Acres Required | E17: =ROUND(E16*E14,0) -> 1500 | F17: =ROUND(F16*F14,0) -> 511 | G17: =ROUND(G16*G14,0) -> 4000 | H17: - | I17: =ROUND(I16*I14,0) -> 1500
A19: Rental Rate ($/quarter) | E19: - | F19: - | G19: 662 | H19: - | I19: 4750
A20: Rate ($/cow/day) | E20: - | F20: - | G20: - | H20: 0.9 | I20: -
A21: Rate ($/calf/season) | E21: - | F21: - | G21: - | H21: 55 | I21: -
A23: Pasture Land Value
B24: ($/acre, excl. fence, water, facilities) | E24: 1000 | F24: 2000 | G24: - | H24: - | I24: -
B25: Owned Land Equity | D25: 0.75
B26: Land Financed | D26: =SUM(1-D25) -> 0.25
B27: Land Opportunity Cost (Investment Rate) | D27: 0
B28: Land cost ($/acre)
B29: Finance Rate & Term | C29: 0.0575 | D29: 25 | E29: years
B30: Principle & Interest Cost | E30: =-PMT(C29,D29,E24*D26,0) -> 19.09454185 | F30: =-PMT(C29,D29,F24*D26,0) -> 38.18908369 | G30: - | H30: - | I30: -
B31: Owned Land Opportunity Cost | E31: =SUM(E24*D25)*(D27) -> 0 | F31: =SUM(F24*D25)*(D27) -> 0 | G31: - | H31: - | I31: -
B32: Total Cost ($/acre) | E32: =SUM(E30:E31) -> 19.09454185 | F32: =SUM(F30:F31) -> 38.18908369 | G32: - | H32: - | I32: -
A34: Pasture Fencing - Input
E35: Fence Cost Per Mile
E36: Materials | F36: Labour | G36: Equipment | H36: Total
B37: Barbed Wire (4 strand) | E37: 4812 | F37: 1118 | G37: 1514 | H37: =SUM(E37:G37) -> 7444
B38: Electric Wire (4 strand) | E38: 2389 | F38: 500 | G38: 635 | H38: =SUM(E38:G38) -> 3524
B39: Electric Wire (2 strand) | E39: 2042 | F39: 412 | G39: 561 | H39: =SUM(E39:G39) -> 3015
B40: Electric Wire (1 strand) | E40: 1730 | F40: 370 | G40: 523 | H40: =SUM(E40:G40) -> 2623
B41: Page Wire (w/optional top wire) | E41: 9139 | F41: 1974 | G41: 2527 | H41: =SUM(E41:G41) -> 13640
E43: Marginal Pasture | F43: Improved Pasture | G43: Crown Lands
E44: Fence Miles per Quarter (160 ac)
B45: Barbed Wire (4 strand) | E45: 2 | F45: 0 | G45: 1
B46: Electric Wire (4 strand) | E46: 0 | F46: 0 | G46: 0
B47: Electric Wire (2 strand) | E47: 0 | F47: 0 | G47: 0
B48: Electric Wire (1 strand) | E48: 0 | F48: 4 | G48: 0
B49: Page Wire (w/optional top wire) | E49: 0 | F49: 0 | G49: 0
E51: Cost Per Quarter (160 acres)
B52: Barbed Wire (4 strand) | E52: =SUM(E37:G37)*E45 -> 14888 | F52: =SUM(E37:G37)*F45 -> 0 | G52: =SUM(E37:G37)*G45 -> 7444
B53: Electric Wire (4 strand) | E53: =SUM(E38:G38)*E46 -> 0 | F53: =SUM(E38:G38)*F46 -> 0 | G53: =SUM(E38:G38)*G46 -> 0
B54: Electric Wire (2 strand) | E54: =SUM(E39:G39)*E47 -> 0 | F54: =SUM(E39:G39)*F47 -> 0 | G54: =SUM(E39:G39)*G47 -> 0
B55: Electric Wire (1 strand) | E55: =SUM(E40:G40)*E48 -> 0 | F55: =SUM(E40:G40)*F48 -> 10492 | G55: =SUM(E40:G40)*G48 -> 0
B56: Page Wire (w/optional top wire) | E56: =SUM(E41:G41)*E49 -> 0 | F56: =SUM(E41:G41)*F49 -> 0 | G56: =SUM(E41:G41)*G49 -> 0
E57: =SUM(E52:E56) -> 14888 | F57: =SUM(F52:F56) -> 10492 | G57: =SUM(G52:G56) -> 7444
B59: Total Fence Cost | E59: =ROUND((E17/160)*E57,0) -> 139575 | F59: =ROUND((F17/160)*F57,0) -> 33509 | G59: =ROUND((G17/160)*G57,0) -> 186100
B60: Total Fence Investment ($/acre) | E60: =ROUND(E59/E17,0) -> 93 | F60: =ROUND(F59/F17,0) -> 66 | G60: =ROUND(G59/G17,0) -> 47
B61: Residual Value (End of Useful Life) | E61: 0.1 | F61: 0.1 | G61: 0.1
B62: Useful Life (years) | D62: 20
B63: Owned Fence Equity | D63: 0.75
B64: Fence Financed | D64: =SUM(1-D63) -> 0.25
B65: Fencing Cost ($/acre)
B66: Finance Rate & Term | C66: 0.0625 | D66: 7 | E66: years
B67: Principle & Interest Cost | E67: =-PMT($C$66,$D$66,E60*$D$64,0) -> 4.201972279 | F67: =-PMT($C$66,$D$66,F60*$D$64,0) -> 2.982044844 | G67: =-PMT($C$66,$D$66,G60*$D$64,0) -> 2.123577389
B68: Fencing Depreciation Cost | E68: =(E60-(E60*$E$61))/$D$62 -> 4.185 | F68: =(F60-(F60*$F$61))/$D$62 -> 2.97 | G68: =(G60-(G60*$G$61))/$D$62 -> 2.115
B69: Owned Fence Opportunity Cost | E69: =SUM(E60*D63)*(D27) -> 0 | F69: =SUM(F60*D63)*(D27) -> 0 | G69: =SUM(G60*D63)*(D27) -> 0
B70: Total Cost | E70: =SUM(E67:E69) -> 8.386972279 | F70: =SUM(F67:F69) -> 5.952044844 | G70: =SUM(G67:G69) -> 4.238577389
A72: Fence Maintenance (% of investment cost) | E72: 0.02
A74: Pasture Options - Cost Summary
A75: A. Operating Costs | E75: Marginal Pasture | F75: Improved Pasture | G75: Crown Lands | H75: Community Pasture | I75: Rented Pasture
B76: Land Development ($/acre) | E76: 0 | F76: 17.75 | G76: - | H76: - | I76: -
B77: Fertilizer - Annual ($/acre) | E77: 0 | F77: 20 | G77: - | H77: - | I77: -
B78: Herbicide ($/acre) | E78: 1 | F78: 1 | G78: 0 | H78: - | I78: 0
B79: Fence Maintenance ($/acre) | E79: =SUM(E60*$E$72) -> 1.86 | F79: =SUM(F60*$E$72) -> 1.32 | G79: =SUM(G60*$E$72) -> 0.94 | H79: - | I79: 0
B80: Pasture Rental | E80: - | F80: - | G80: =SUM(G19/160) -> 4.1375 | H80: - | I80: =SUM(I19/160) -> 29.6875
B81: Taxes ($/acre) | E81: 6 | F81: 10 | G81: - | H81: - | I81: -
B82: Miscellaneous ($/acre) | E82: 0 | F82: 0 | G82: 0 | H82: - | I82: 0
B83: Total Operating Costs ($/acre) | E83: =SUM(E76:E82) -> 8.86 | F83: =SUM(F76:F82) -> 50.07 | G83: =SUM(G76:G82) -> 5.0775 | H83: - | I83: =SUM(I76:I82) -> 29.6875
A84: B. Fixed Costs
B85: Land ($/acre) | E85: =E32 -> 19.09454185 | F85: =F32 -> 38.18908369 | G85: - | H85: - | I85: -
B86: Fencing ($/acre) | E86: =E70 -> 8.386972279 | F86: =F70 -> 5.952044844 | G86: =G70 -> 4.238577389 | H86: - | I86: -
B87: Total Fixed Costs ($/acre) | E87: =SUM(E85:E86) -> 27.48151413 | F87: =SUM(F85:F86) -> 44.14112854 | G87: =SUM(G85:G86) -> 4.238577389 | H87: - | I87: =SUM(I85:I86) -> 0
A89: Total Operating and Fixed ($/acre) | E89: =SUM(E87+E83) -> 36.34151413 | F89: =SUM(F87+F83) -> 94.21112854 | G89: =SUM(G87+G83) -> 9.316077389 | H89: - | I89: =SUM(I87+I83) -> 29.6875
A90: Total Operating and Fixed ($/year) | E90: =SUM(E89*E17) -> 54512.27119 | F90: =SUM(F89*F17) -> 48141.88668 | G90: =SUM(G89*G17) -> 37264.30955 | H90: =SUM(H92*Input!E13) -> 52125 | I90: =SUM(I89*I17) -> 44531.25
A92: ="Cost per cow ("&Pasture!G3&" days pasture)" -> Cost per cow (135 days pasture) | E92: =E89*E16 -> 181.7075706 | F92: =F89*F16 -> 160.3593677 | G92: =G89*G16 -> 124.2143652 | H92: =SUM(H20*G3)+((H21*ROUND(Input!E13*Input!E17/100,0))/Input!E13) -> 173.75 | I92: =I89*I16 -> 148.4375
A93: ="Cost per cow per day ("&Pasture!G3&" days pasture)" -> Cost per cow per day (135 days pasture) | E93: =SUM(E92/$G$3) -> 1.345982005 | F93: =SUM(F92/$G$3) -> 1.187847168 | G93: =SUM(G92/$G$3) -> 0.9201064087 | H93: =SUM(H92/$G$3) -> 1.287037037 | I93: =SUM(I92/$G$3) -> 1.099537037
A95: Pasture Options - Carrying Capacity and AUM Analysis
A96: Carrying Capacity
A97: Number of head pastured/acre | E97: =ROUND(E14/E17,3) -> 0.2 | F97: =ROUND(F14/F17,3) -> 0.587 | G97: =ROUND(G14/G17,2) -> 0.08 | H97: - | I97: =ROUND(I14/I17,2) -> 0.2
A98: Metabolic Animal Unit Value | E98: =ROUND((Input!$E$14^0.75/1000^0.75),2) -> 1.25 | F98: =ROUND((Input!$E$14^0.75/1000^0.75),2) -> 1.25 | G98: =ROUND((Input!$E$14^0.75/1000^0.75),2) -> 1.25 | H98: =ROUND((Input!$E$14^0.75/1000^0.75),2) -> 1.25 | I98: =ROUND((Input!$E$14^0.75/1000^0.75),2) -> 1.25
A100: AUM Analysis
A101: Total Animal Unit Months (AUM's) | E101: =ROUND(E14*(E98)*$I$3,0) -> 1688 | F101: =ROUND(F14*(F98)*$I$3,0) -> 1688 | G101: =ROUND(G14*(G98)*$I$3,0) -> 1688 | H101: =ROUND(H14*(H98)*$I$3,0) -> 1688 | I101: =ROUND(I14*(I98)*$I$3,0) -> 1688
A102: Total AUM's - Available Per Acre | E102: =ROUND(E101/E17,2) -> 1.13 | F102: =ROUND(F101/F17,2) -> 3.3 | G102: =ROUND(G101/G17,2) -> 0.42 | I102: =ROUND(I101/I17,2) -> 1.13
A103: Pasture Investment per AUM | E103: =(E24*E17)/E101 -> 888.6255924 | F103: =(F24*F17)/F101 -> 605.450237 | G103: - | H103: - | I103: -
A104: Total Pasture Cost Per AUM | E104: =ROUND(E90/E101,2) -> 32.29 | F104: =ROUND(F90/F101,2) -> 28.52 | G104: =ROUND(G90/G101,2) -> 22.08 | H104: =ROUND(H90/H101,2) -> 30.88 | I104: =ROUND(I90/I101,2) -> 26.38
A106: Pasture Efficiency Analysis
A107: Pounds liveweight per acre | E107: =Input!$E$14*E97 -> 270 | F107: =Input!$E$14*F97 -> 792.45 | G107: =Input!$E$14*G97 -> 108 | H107: - | I107: =Input!$E$14*I97 -> 270
A109: Pasture Investment per Cow on Pasture | E109: =SUM((E24*E17)/E14) -> 5000 | F109: =SUM((F24*F17)/F14) -> 3406.666667 | G109: - | H109: - | I109: -
A111: Pasture Options - Usage Planner
E112: Marginal Pasture | F112: Improved Pasture | G112: Crown Lands | H112: Community Pasture | I112: Rented Pasture | J112: Total
A114: Planned number of cows | E114: 120 | F114: 60 | G114: 0 | H114: 0 | I114: 120 | J114: =IF(SUM(E114:I114)<Input!E13,"ERROR",IF(SUM(E114:I114)>Input!E13,"ERROR",SUM(Pasture!E114:I114))) -> 300
J115: =IF(J114="ERROR","(total must = "&Input!E13&" cows)","") -> 
A116: Acres Required | E116: =SUM(E119*E17) -> 600 | F116: =SUM(F119*F17) -> 102.2 | G116: =SUM(G119*G17) -> 0 | H116: - | I116: =SUM(I119*I17) -> 600 | J116: =SUM(E116:I116) -> 1302.2
A119: percentage of total cost | E119: =SUM(E114/E14) -> 0.4 | F119: =SUM(F114/F14) -> 0.2 | G119: =SUM(G114/G14) -> 0 | H119: =SUM(H114/H14) -> 0 | I119: =SUM(I114/I14) -> 0.4 | L119: ***HIDE**
A120: Cost per Cow | L120: ***HIDE**
B121: Pasture op Costs | E121: =E83*E16*E119 -> 17.72 | F121: =F83*F16*F119 -> 17.04510638 | G121: =G83*G16*G119 -> 0 | I121: =(I83-I80)*I119*I16 -> 0 | J121: =SUM(E121:I121) -> 34.76510638 | L121: ***HIDE**
B122: Pasture Rental | E122: - | F122: - | G122: - | H122: =H92*H119 -> 0 | I122: =I92*I119 -> 59.375 | J122: =SUM(E122:I122) -> 59.375 | L122: ***HIDE**
B123: 3 Pasture Land & Fencing | E123: =SUM(E87*$E$16*$E$119) -> 54.96302825 | F123: =SUM(F87*$F$16*$F$119) -> 15.02676716 | G123: =SUM(G87*$G$16*$G$119) -> 0 | H123: - | I123: - | J123: =SUM(E123:I123) -> 69.98979541 | L123: ***HIDE**
J124: =SUM(J121:J123) -> 164.1299018 | L124: ***HIDE**
L125: ***HIDE**
L126: ***HIDE**
J127: =SUM(J145,J140,J135,J132) -> 69.98979541 | L127: ***HIDE**
L128: ***HIDE**
B129: Fencing Principle Cost | E129: =-CUMPRINC($C$66,$D$66,E60*$D$64,1,$D$66,0)/$D$66 -> 3.321428571 | F129: =-CUMPRINC($C$66,$D$66,F60*$D$64,1,$D$66,0)/$D$66 -> 2.357142857 | G129: =-CUMPRINC($C$66,$D$66,G60*$D$64,1,$D$66,0)/$D$66 -> 1.678571429 | L129: ***HIDE**
B130: Land Principle Cost | E130: =-CUMPRINC($C$29,$D$29,E24*$D$26,1,$D$29,0)/$D$29 -> 10 | F130: =-CUMPRINC($C$29,$D$29,F24*$D$26,1,$D$29,0)/$D$29 -> 20 | L130: ***HIDE**
E131: =SUM(E129:E130) -> 13.32142857 | F131: =SUM(F129:F130) -> 22.35714286 | G131: =SUM(G129:G130) -> 1.678571429 | L131: ***HIDE**
E132: =SUM(E131*$E$16*$E$119) -> 26.64285714 | F132: =SUM(F131*$F$16*$F$119) -> 7.610942249 | G132: =SUM(G131*$G$16*$G$119) -> 0 | J132: =SUM(E132:I132) -> 34.25379939 | L132: ***HIDE**
L133: ***HIDE**
B134: Fencing Depreciation Cost | E134: =(E60-(E60*$E$61))/$D$62 -> 4.185 | F134: =(F60-(F60*$F$61))/$D$62 -> 2.97 | G134: =(G60-(G60*$G$61))/$D$62 -> 2.115 | L134: ***HIDE**
E135: =SUM(E134*$E$16*$E$119) -> 8.37 | F135: =SUM(F134*$F$16*$F$119) -> 1.01106383 | G135: =SUM(G134*$G$16*$G$119) -> 0 | J135: =SUM(E135:I135) -> 9.38106383 | L135: ***HIDE**
L136: ***HIDE**
B137: Land Interest Cost | E137: =-CUMIPMT($C$29,$D$29,E24*$D$26,1,$D$29,0)/$D$29 -> 9.094541847 | F137: =-CUMIPMT($C$29,$D$29,F24*$D$26,1,$D$29,0)/$D$29 -> 18.18908369 | L137: ***HIDE**
B138: Fencing Interest Cost | E138: =-CUMIPMT($C$66,$D$66,E60*$D$64,1,$D$66,0)/$D$66 -> 0.8805437081 | F138: =-CUMIPMT($C$66,$D$66,F60*$D$64,1,$D$66,0)/$D$66 -> 0.6249019864 | G138: =-CUMIPMT($C$66,$D$66,G60*$D$64,1,$D$66,0)/$D$66 -> 0.44500596 | L138: ***HIDE**
E139: =SUM(E137:E138) -> 9.975085555 | F139: =SUM(F137:F138) -> 18.81398568 | G139: =SUM(G137:G138) -> 0.44500596 | L139: ***HIDE**
E140: =SUM(E139*$E$16*$E$119) -> 19.95017111 | F140: =SUM(F139*$F$16*$F$119) -> 6.404761083 | G140: =SUM(G139*$G$16*$G$119) -> 0 | J140: =SUM(E140:I140) -> 26.35493219 | L140: ***HIDE**
L141: ***HIDE**
B142: Owned Land Opportunity Cost | E142: =SUM(E24*D25)*(D27) -> 0 | F142: =SUM(F24*D25)*(D27) -> 0 | G142: - | H142: - | I142: - | L142: ***HIDE**
B143: Owned Fence Opportunity Cost | E143: =SUM(E60*D63)*(D27) -> 0 | F143: =SUM(F60*D63)*(D27) -> 0 | G143: =SUM(G60*D63)*(D27) -> 0 | L143: ***HIDE**
E144: =SUM(E142:E143) -> 0 | F144: =SUM(F142:F143) -> 0 | G144: =SUM(G142:G143) -> 0 | L144: ***HIDE**
E145: =SUM(E144*$E$16*$E$119) -> 0 | F145: =SUM(F144*$F$16*$F$119) -> 0 | G145: =SUM(G144*$G$16*$G$119) -> 0 | J145: =SUM(E145:I145) -> 0 | L145: ***HIDE**

Sheet Winter Feed Rations
A1: Winter Feed Costs & Requirements Worksheet
A3: ="Total Winter Feeding = "&Pasture!G5&" days" -> Total Winter Feeding = 195 days
A5: Enter your days on feed for each selected ration number in the "blue" numbers in the "gray" shaded area
A7: Pre Calving - Cows
B8: Ration Number | E8: #1 | F8: #2 | G8: #3 | H8: #4 | I8: #5 | J8: #6 | K8: #7 | L8: #8 | M8: #9 | N8: Total lbs /cow | O8: Total Cost /cow2
A9: =IF(H54=Pasture!G5,"","ERROR") ->  | B9: Days on Feed | E9: 0 | F9: 0 | G9: 135 | H9: 0 | I9: 0 | J9: 0 | K9: 0 | L9: 0 | M9: 0
E10: Hay | F10: Barley Silage | G10: Corn Silage | H10: Straw & Grain | I10: Greenfeed & Hay | J10: Straw, Grain & Suppl. | K10: Corn Silage & Hay | L10: Straw & Pellets
A11: Feed Type | B11: $/unit | C11: lbs/Unit | D11: $/lb | J11: Ration - Feed Per Day (lbs based on | K11: 1400 | L11: lb cow)
A12: Alfalfa Hay | B12: 160 | C12: 2000 | D12: =SUM(B12/C12) -> 0.08 | E12: 0 | F12: 0 | G12: 0 | H12: 0 | I12: 0 | J12: 0 | K12: 0 | L12: 0 | M12: 0 | N12: =SUM((E9*E12)+(F12*F9)+(G12*G9)+(H12*H9)+(I12*I9)+(J12*J9)+(K12*K9)+(L12*L9)+(M12*M9))*(Input!E14/K11) -> 0 | O12: =SUM(N12*D12) -> 0
A13: Alfalfa Grass Hay | B13: 120 | C13: 2000 | D13: =SUM(B13/C13) -> 0.06 | E13: 35 | F13: 0 | G13: 0 | H13: 0 | I13: 16 | J13: 0 | K13: 10 | L13: 0 | M13: 0 | N13: =SUM((E13*E9)+(F13*F9)+(G13*G9)+(H13*H9)+(I13*I9)+(J13*J9)+(K13*K9)+(L13*L9)+(M13*M9))*(Input!E14/K11) -> 0 | O13: 0
A14: Grass Hay | B14: 100 | C14: 2000 | D14: =SUM(B14/C14) -> 0.05 | E14: 0 | F14: 0 | G14: 0 | H14: 0 | I14: 0 | J14: 0 | K14: 0 | L14: 0 | M14: 0 | N14: =SUM((E14*E9)+(F14*F9)+(G14*G9)+(H14*H9)+(I14*I9)+(J14*J9)+(K14*K9)+(L14*L9)+(M14*M9))*(Input!E14/K11) -> 0 | O14: 0
A15: Barley Straw | B15: 70 | C15: 2000 | D15: 0.035 | E15: 0 | F15: 17 | G15: 19 | H15: 23 | I15: 0 | J15: 23 | K15: 15 | L15: 23 | M15: 0 | N15: =SUM((E15*E9)+(F15*F9)+(G15*G9)+(H15*H9)+(I15*I9)+(J15*J9)+(K15*K9)+(L15*L9)+(M15*M9))*(Input!E14/K11) -> 2473.392857 | O15: 86.56875
A16: Barley Greenfeed | B16: 115 | C16: 2000 | D16: 0.0575 | E16: 0 | F16: 0 | G16: 0 | H16: 0 | I16: 19 | J16: 0 | K16: 0 | L16: 0 | M16: 0 | N16: =SUM((E16*E9)+(F16*F9)+(G16*G9)+(H16*H9)+(I16*I9)+(J16*J9)+(K16*K9)+(L16*L9)+(M16*M9))*(Input!E14/K11) -> 0 | O16: 0
A17: Corn Silage | B17: 40 | C17: 2000 | D17: 0.02 | E17: 0 | F17: 0 | G17: 47 | H17: 0 | I17: 0 | J17: 0 | K17: 32 | L17: 0 | M17: 0 | N17: =SUM((E17*E9)+(F17*F9)+(G17*G9)+(H17*H9)+(I17*I9)+(J17*J9)+(K17*K9)+(L17*L9)+(M17*M9))*(Input!E14/K11) -> 6118.392857 | O17: 122.3678571
A18: Barley Silage | B18: 50 | C18: 2000 | D18: 0.025 | E18: 0 | F18: 48 | G18: 0 | H18: 0 | I18: 0 | J18: 0 | K18: 0 | L18: 0 | M18: 0 | N18: =SUM((E18*E9)+(F18*F9)+(G18*G9)+(H18*H9)+(I18*I9)+(J18*J9)+(K18*K9)+(L18*L9)+(M18*M9))*(Input!E14/K11) -> 0 | O18: 0
A19: Barley Grain | B19: 4.5 | C19: 48 | D19: 0.09375 | E19: 0 | F19: 0 | G19: 0 | H19: 11 | I19: 0 | J19: 10 | K19: 0 | L19: 0 | M19: 0 | N19: =SUM((E19*E9)+(F19*F9)+(G19*G9)+(H19*H9)+(I19*I9)+(J19*J9)+(K19*K9)+(L19*L9)+(M19*M9))*(Input!E14/K11) -> 0 | O19: 0
A20: 32% Feedlot Suppl. | B20: 600 | C20: 2205 | D20: 0.2721088435 | E20: 0 | F20: 0.5 | G20: 0.5 | H20: 1 | I20: 0 | J20: 0 | K20: 0 | L20: 0 | M20: 0 | N20: =SUM((E20*E9)+(F20*F9)+(G20*G9)+(H20*H9)+(I20*I9)+(J20*J9)+(K20*K9)+(L20*L9)+(M20*M9))*(Input!E14/K11) -> 65.08928571 | O20: 17.71137026
A21: 32% Liquid Suppl. | B21: 525 | C21: 2205 | D21: 0.2380952381 | E21: 0 | F21: 0 | G21: 0 | H21: 0 | I21: 0 | J21: 2.9 | K21: 0 | L21: 0 | M21: 0 | N21: =SUM((E21*E9)+(F21*F9)+(G21*G9)+(H21*H9)+(I21*I9)+(J21*J9)+(K21*K9)+(L21*L9)+(M21*M9))*(Input!E14/K11) -> 0 | O21: 0
A22: 20% Grain Pellets | B22: 350 | C22: 2205 | D22: 0.1587301587 | E22: 0 | F22: 0 | G22: 0 | H22: 0 | I22: 0 | J22: 0 | K22: 0 | L22: 14 | M22: 0 | N22: =SUM((E22*E9)+(F22*F9)+(G22*G9)+(H22*H9)+(I22*I9)+(J22*J9)+(K22*K9)+(L22*L9)+(M22*M9))*(Input!E14/K11) -> 0 | O22: 0
A23: 1:1 Mineral | B23: 50 | C23: 55 | D23: 0.9090909091 | E23: 0.12 | F23: 0 | G23: 0 | H23: 0 | I23: 0 | J23: 0 | K23: 0 | L23: 0 | M23: 0 | N23: =SUM((E23*E9)+(F23*F9)+(G23*G9)+(H23*H9)+(I23*I9)+(J23*J9)+(K23*K9)+(L23*L9)+(M23*M9))*(Input!E14/K11) -> 0 | O23: 0
A24: 2:1 Mineral | B24: 50 | C24: 55 | D24: 0.9090909091 | E24: 0 | F24: 0.06 | G24: 0.06 | H24: 0.06 | I24: 0.12 | J24: 0.2 | K24: 0.2 | L24: 0.06 | M24: 0 | N24: =SUM((E24*E9)+(F24*F9)+(G24*G9)+(H24*H9)+(I24*I9)+(J24*J9)+(K24*K9)+(L24*L9)+(M24*M9))*(Input!E14/K11) -> 7.810714286 | O24: 7.100649351
A25: Limestone | B25: 20 | C25: 55 | D25: 0.3636363636 | E25: 0 | F25: 0 | G25: 0 | H25: 0 | I25: 0 | J25: 0.2 | K25: 0 | L25: 0.2 | M25: 0 | N25: =SUM((E25*E9)+(F25*F9)+(G25*G9)+(H25*H9)+(I25*I9)+(J25*J9)+(K25*K9)+(L25*L9)+(M25*M9))*(Input!E14/K11) -> 0 | O25: 0
A26: Blue Salt | B26: 10 | C26: 55 | D26: 0.1818181818 | E26: 0.07 | F26: 0.07 | G26: 0.07 | H26: 0.07 | I26: 0.07 | J26: 0.07 | K26: 0.07 | L26: 0.07 | M26: 0 | N26: =SUM((E26*E9)+(F26*F9)+(G26*G9)+(H26*H9)+(I26*I9)+(J26*J9)+(K26*K9)+(L26*L9)+(M26*M9))*(Input!E14/K11) -> 9.1125 | O26: 1.656818182
B27: $/head/day | E27: =SUM((E12*$D$12)+(E13*$D$13)+(E14*$D$14)+(E15*$D$15)+(E16*$D$16)+(E17*$D$17)+(E18*$D$18)+(E19*$D$19)+(E20*$D$20)+(E21*$D$21)+(E22*$D$22)+(E23*$D$23)+(E24*$D$24)+(E25*$D$25+(E26*$D$26))) -> 2.221818182 | F27: =SUM((F12*$D$12)+(F13*$D$13)+(F14*$D$14)+(F15*$D$15)+(F16*$D$16)+(F17*$D$17)+(F18*$D$18)+(F19*$D$19)+(F20*$D$20)+(F21*$D$21)+(F22*$D$22)+(F23*$D$23)+(F24*$D$24)+(F25*$D$25+(F26*$D$26))) -> 1.998327149 | G27: 1.808327149 | H27: 2.175631571 | I27: 2.174318182 | J27: 2.700248918 | K27: 1.959545455 | L27: 3.167222222 | M27: 0 | O27: =SUM(O12:O26) -> 235.4054449
A29: Post Calving - Cows
B30: Ration Number | E30: #1 | F30: #2 | G30: #3 | H30: #4 | I30: #5 | J30: #6 | K30: #7 | L30: #8 | M30: #9 | N30: Total lbs /cow | O30: Total Cost /cow2
A31: =IF(H54=Pasture!G5,"","ERROR") ->  | B31: Days on Feed | E31: 0 | F31: 0 | G31: 60 | H31: 0 | I31: 0 | J31: 0 | K31: 0 | L31: 0 | M31: 0
A32: Feed Type | B32: $/unit | C32: lbs/Unit | D32: $/lb | J32: Ration - Feed Per Day (lbs based on | K32: 1400 | L32: lb cow)
A33: =A12 -> Alfalfa Hay | B33: 160 | C33: 2000 | D33: =SUM(B33/C33) -> 0.08 | E33: 0 | F33: 0 | G33: 0 | H33: 0 | I33: 0 | J33: 0 | K33: 0 | L33: 0 | M33: 0 | N33: =SUM((E31*E33)+(F33*F31)+(G33*G31)+(H33*H31)+(I33*I31)+(J33*J31)+(K33*K31)+(L33*L31)+(M33*M31))*(Input!E14/K32) -> 0 | O33: =SUM(N33*D33) -> 0
A34: Alfalfa Grass Hay | B34: 120 | C34: 2000 | D34: =SUM(B34/C34) -> 0.06 | E34: 44 | F34: 0 | G34: 0 | H34: 0 | I34: 20 | J34: 0 | K34: 20 | L34: 15 | M34: 0 | N34: =SUM((E34*E31)+(F34*F31)+(G34*G31)+(H34*H31)+(I34*I31)+(J34*J31)+(K34*K31)+(L34*L31)+(M34*M31))*(Input!E14/K32) -> 0 | O34: 0
A35: Grass Hay | B35: 100 | C35: 2000 | D35: =SUM(B35/C35) -> 0.05 | E35: 0 | F35: 0 | G35: 0 | H35: 0 | I35: 0 | J35: 0 | K35: 0 | L35: 0 | M35: 0 | N35: =SUM((E35*E31)+(F35*F31)+(G35*G31)+(H35*H31)+(I35*I31)+(J35*J31)+(K35*K31)+(L35*L31)+(M35*M31))*(Input!E14/K32) -> 0 | O35: 0
A36: Barley Straw | B36: 70 | C36: 2000 | D36: 0.035 | E36: 0 | F36: 12 | G36: 12 | H36: 24 | I36: 0 | J36: 23 | K36: 8 | L36: 11 | M36: 0 | N36: =SUM((E36*E31)+(F36*F31)+(G36*G31)+(H36*H31)+(I36*I31)+(J36*J31)+(K36*K31)+(L36*L31)+(M36*M31))*(Input!E14/K32) -> 694.2857143 | O36: 24.3
A37: Barley Greenfeed | B37: 115 | C37: 2000 | D37: 0.0575 | E37: 0 | F37: 0 | G37: 0 | H37: 0 | I37: 16 | J37: 0 | K37: 0 | L37: 0 | M37: 0 | N37: =SUM((E37*E31)+(F37*F31)+(G37*G31)+(H37*H31)+(I37*I31)+(J37*J31)+(K37*K31)+(L37*L31)+(M37*M31))*(Input!E14/K32) -> 0 | O37: 0
A38: Corn Silage | B38: 40 | C38: 2000 | D38: 0.02 | E38: 0 | F38: 0 | G38: 48 | H38: 0 | I38: 0 | J38: 0 | K38: 40 | L38: 0 | M38: 0 | N38: =SUM((E38*E31)+(F38*F31)+(G38*G31)+(H38*H31)+(I38*I31)+(J38*J31)+(K38*K31)+(L38*L31)+(M38*M31))*(Input!E14/K32) -> 2777.142857 | O38: 55.54285714
A39: Barley Silage | B39: 50 | C39: 2000 | D39: 0.025 | E39: 0 | F39: 45 | G39: 0 | H39: 0 | I39: 0 | J39: 0 | K39: 0 | L39: 0 | M39: 0 | N39: =SUM((E39*E31)+(F39*F31)+(G39*G31)+(H39*H31)+(I39*I31)+(J39*J31)+(K39*K31)+(L39*L31)+(M39*M31))*(Input!E14/K32) -> 0 | O39: 0
A40: Barley Grain | B40: 4.5 | C40: 48 | D40: 0.09375 | E40: 5 | F40: 12 | G40: 7 | H40: 15 | I40: 5 | J40: 15 | K40: 0 | L40: 0 | M40: 0 | N40: =SUM((E40*E31)+(F40*F31)+(G40*G31)+(H40*H31)+(I40*I31)+(J40*J31)+(K40*K31)+(L40*L31)+(M40*M31))*(Input!E14/K32) -> 405 | O40: 37.96875
A41: 32% Feedlot Suppl. | B41: 600 | C41: 2205 | D41: 0.2721088435 | E41: 0 | F41: 0 | G41: 2 | H41: 2.5 | I41: 0 | J41: 0 | K41: 0 | L41: 0 | M41: 0 | N41: =SUM((E41*E31)+(F41*F31)+(G41*G31)+(H41*H31)+(I41*I31)+(J41*J31)+(K41*K31)+(L41*L31)+(M41*M31))*(Input!E14/K32) -> 115.7142857 | O41: 31.48688047
A42: 32% Liquid Suppl. | B42: 525 | C42: 2205 | D42: 0.2380952381 | E42: 0 | F42: 0 | G42: 0 | H42: 0 | I42: 0 | J42: 3.5 | K42: 0 | L42: 0 | M42: 0 | N42: =SUM((E42*E31)+(F42*F31)+(G42*G31)+(H42*H31)+(I42*I31)+(J42*J31)+(K42*K31)+(L42*L31)+(M42*M31))*(Input!E14/K32) -> 0 | O42: 0
A43: 20% Grain Pellets | B43: 350 | C43: 2205 | D43: 0.1587301587 | E43: 0 | F43: 0 | G43: 0 | H43: 0 | I43: 0 | J43: 0 | K43: 0 | L43: 15 | M43: 0 | N43: =SUM((E43*E31)+(F43*F31)+(G43*G31)+(H43*H31)+(I43*I31)+(J43*J31)+(K43*K31)+(L43*L31)+(M43*M31))*(Input!E14/K32) -> 0 | O43: 0
A44: 1:1 Mineral | B44: 50 | C44: 55 | D44: 0.9090909091 | E44: 0.18 | F44: 0 | G44: 0 | H44: 0 | I44: 0 | J44: 0 | K44: 0 | L44: 0 | M44: 0 | N44: =SUM((E44*E31)+(F44*F31)+(G44*G31)+(H44*H31)+(I44*I31)+(J44*J31)+(K44*K31)+(L44*L31)+(M44*M31))*(Input!E14/K32) -> 0 | O44: 0
A45: 2:1 Mineral | B45: 50 | C45: =C24 -> 55 | D45: 0.9090909091 | E45: 0 | F45: 0.18 | G45: 0.18 | H45: 0.18 | I45: 0.18 | J45: 0.18 | K45: 0.18 | L45: 0.18 | M45: 0 | N45: =SUM((E45*E31)+(F45*F31)+(G45*G31)+(H45*H31)+(I45*I31)+(J45*J31)+(K45*K31)+(L45*L31)+(M45*M31))*(Input!E14/K32) -> 10.41428571 | O45: 9.467532468
A46: =A25 -> Limestone | B46: =B25 -> 20 | C46: =C25 -> 55 | D46: 0.3636363636 | E46: 0 | F46: 0.1 | G46: 0.1 | H46: 0.1 | I46: 0 | J46: 0.3 | K46: 0 | L46: 0.1 | M46: 0 | N46: =SUM((E46*E31)+(F46*F31)+(G46*G31)+(H46*H31)+(I46*I31)+(J46*J31)+(K46*K31)+(L46*L31)+(M46*M31))*(Input!E14/K32) -> 5.785714286 | O46: 2.103896104
A47: =A26 -> Blue Salt | B47: =B26 -> 10 | C47: =C26 -> 55 | D47: 0.1818181818 | E47: 0.1 | F47: 0.1 | G47: 0.1 | H47: 0.1 | I47: 0.1 | J47: 0.1 | K47: 0.1 | L47: 0.1 | M47: 0 | N47: =SUM((E47*E31)+(F47*F31)+(G47*G31)+(H47*H31)+(I47*I31)+(J47*J31)+(K47*K31)+(L47*L31)+(M47*M31))*(Input!E14/K32) -> 5.785714286 | O47: 1.051948052
B48: $/head/day | E48: =SUM((E33*$D$33)+(E34*$D$34)+(E35*$D$35)+(E36*$D$36)+(E37*$D$37)+(E38*$D$38)+(E39*$D$39)+(E40*$D$40)+(E41*$D$41)+(E42*$D$42)+(E43*$D$43)+(E44*$D$44)+(E45*$D$45)+(E46*$D$46+(E47*$D$47))) -> 3.290568182 | F48: =SUM((F33*$D$33)+(F34*$D$34)+(F35*$D$35)+(F36*$D$36)+(F37*$D$37)+(F38*$D$38)+(F39*$D$39)+(F40*$D$40)+(F41*$D$41)+(F42*$D$42)+(F43*$D$43)+(F44*$D$44)+(F45*$D$45)+(F46*$D$46+(F47*$D$47))) -> 2.888181818 | G48: 2.798649505 | H48: 3.144703927 | I48: 2.770568182 | J48: 3.335492424 | K48: 2.461818182 | L48: 3.884134199 | M48: 0 | O48: =SUM(O33:O47) -> 161.9218642
A50: Winter Feed Summary
H51: Total Days on Feed1 | K51: Average Cost/Day | O51: Feed Cost per Cow2
D52: Pre Calving - Cows | H52: =SUM(E9:M9) -> 135 | K52: =IF(O52=0,0,SUM(O52/H52)) -> 1.743744037 | O52: =O27 -> 235.4054449
D53: Post Calving - Cows | H53: =SUM(E31:M31) -> 60 | K53: =IF(O53=0,0,SUM(O53/H53)) -> 2.698697737 | O53: =O48 -> 161.9218642
H54: =SUM(H52:H53) -> 195 | K54: =IF(O54=0,0,SUM(O54/H54)) -> 2.037575944 | O54: =SUM(O52:O53) -> 397.3273092
F55: =IF(H54=Pasture!G5,"","# DAYS ON FEED RATION ERROR") -> 
A56: ="1. Total Days on Feed Must = "&Pasture!G5&" Days (as calculated on Input worksheet)" -> 1. Total Days on Feed Must = 195 Days (as calculated on Input worksheet)
A57: ="2. Feed Cost Per Cow Based on "&Input!E14&" lb Cow" -> 2. Feed Cost Per Cow Based on 1350 lb Cow
A58: =IF(OR(F9>0,G9>0,K9>0,F31>0,G31>0,K31>0),"Note: When selecting silage based feed rations, please input all required equipment capital costs on the 'Input' worksheet associated with feeding and feed delivery for silage.","") -> Note: When selecting silage based feed rations, please input all required equipment capital costs on the 'Input' worksheet associated with feeding and feed delivery for silage.
A61: Note: The suggested feed rations above were formulated using Cowbytes Beef Ration Balancer software with no included allowance for wastage during feeding. Feed ration quantity and costs should be adjusted accordingly. If you need help with a ration, contact a Manitoba Agriculture Livestock Specialist.

Sheet Fixed
A1: Fixed Costs
A3: Cows | F3: Machinery & Equipment
B4: Cow value ($/head) | D4: =Input!E28 -> 5000 | G4: Total Investment ($/cow) | I4: =ROUND((SUM(J48:J63)/(Input!E13)),0) -> 1125 | L4: *HIDE*
B5: Owned Cow Equity | D5: 0.85 | G5: Residual Value (End of Useful Life) | I5: 0.2 | L5: =(#REF!-#REF!)/(#REF!+D17) -> 
B6: =" Cows Financed ("&TEXT(D4*D6,"$#,###")&" per head)" -> Cows Financed ($750 per head) | D6: =SUM(1-D5) -> 0.15 | G6: Useful Life (years) | I6: 10
B7: Cow Opportunity Cost (Investment Rate) | D7: 0 | G7: Owned Machinery Equity | I7: 0.8
B8: Cow cost ($/head) | G8: =" Machinery Financed ("&TEXT((I4)*I8,"$#,###")&" per head)" -> Machinery Financed ($225 per head) | I8: =SUM(1-I7) -> 0.2
B9: Finance Rate & Term | C9: 0.0625 | D9: 7 | E9: Years | G9: Machinery Opportunity Cost (Investment Rate) | I9: 0
B10: Principle & Interest Cost | D10: =-PMT(C9,D9,D4*D6,0) -> 135.5474929 | G10: Machinery & Equipment Cost ($/cow)
B11: Owned Cows Opportunity Cost | D11: =SUM(D4*D5)*(D7) -> 0 | G11: Finance Rate & Term | H11: 0.0625 | I11: 7 | J11: Years
B12: Total Cost | D12: =SUM(D10:D11) -> 135.5474929 | G12: Principle & Interest Cost | I12: =-PMT(H11,I11,I4*I8,0) -> 40.66424787
G13: Machinery Depreciation Cost | I13: =(I4-(I4*I5))/I6 -> 90
G14: Owned Machinery Opportunity Cost | I14: =SUM(I4*I7)*(I9) -> 0
A15: Marginal Pasture Land | G15: Total Cost | I15: =SUM(I12:I14) -> 130.6642479
B16: Average Land value ($/acre) | D16: =Pasture!E24 -> 1000
B17: Pasture acres | D17: =Pasture!E116 -> 600 | F17: Buildings & Facilities
B18: Owned Land Equity | D18: =Pasture!D25 -> 0.75 | G18: Total Investment ($/cow) | I18: =ROUND((SUM(E48:E63)/(Input!E13)),0) -> 357
B19: =" Land Financed ("&TEXT(D16*D19,"$#,###")&" per acre)" -> Land Financed ($250 per acre) | D19: =SUM(1-D18) -> 0.25 | G19: Residual Value (End of Useful Life) | I19: 0.2
B20: Land Opportunity Cost (Investment Rate) | D20: =Pasture!D27 -> 0 | G20: Useful Life (years) | I20: 20 | L20: w/o harvest
B21: Land cost ($/acre) | G21: Owned Building Equity | I21: 0.85 | L21: =-PMT($H$25,$I$25,L5*$I$22,0) -> 
B22: Finance Rate & Term | C22: =Pasture!C29 -> 0.0575 | D22: =Pasture!D29 -> 25 | E22: Years | G22: =" Building Financed ("&TEXT((I18)*I22,"$#,###")&" per head)" -> Building Financed ($54 per head) | I22: =SUM(1-I21) -> 0.15 | L22: =(L5-(L5*$I$19))/$I$20 -> 
B23: Principle & Interest Cost | D23: =-PMT(C22,D22,D16*D19,0) -> 19.09454185 | G23: Building Opportunity Cost (Investment Rate) | I23: 0 | L23: =SUM(L5*$I$21)*($I$23) -> 
B24: Owned Land Opportunity Cost | D24: =SUM(D16*D18)*(D20) -> 0 | G24: Building & Water System Cost ($/cow) | L24: =SUM(L21:L23) -> 
B25: Total Cost | D25: =SUM(D23:D24) -> 19.09454185 | G25: Finance Rate & Term | H25: 0.0625 | I25: 7 | J25: Years
G26: Principle & Interest Cost | I26: =-PMT(H25,I25,I18*I22,0) -> 9.678090992
G27: Building Depreciation Cost | I27: =(I18-(I18*I19))/I20 -> 14.28
G28: Owned Building Opportunity Cost | I28: =SUM(I18*I21)*(I23) -> 0
A29: Improved Pasture Land | G29: Total Cost | I29: =SUM(I26:I28) -> 23.95809099
B30: Average Land value ($/acre) | D30: =Pasture!F24 -> 2000
B31: Pasture acres | D31: =Pasture!F116 -> 102.2 | F31: Fencing
B32: Owned Land Equity | D32: =Pasture!D25 -> 0.75 | G32: Total Investment ($/cow) | I32: =SUM((Pasture!E59*Pasture!E119)+(Pasture!F59*Pasture!F119)+(Pasture!G59*Pasture!G119))/Input!E13 -> 208.4393333
B33: =" Land Financed ("&TEXT(D30*D33,"$#,###")&" per acre)" -> Land Financed ($500 per acre) | D33: =SUM(1-D32) -> 0.25 | G33: Residual Value (End of Useful Life) | I33: =Pasture!E61 -> 0.1
B34: Land Opportunity Cost (Investment Rate) | D34: =Pasture!D27 -> 0 | G34: Useful Life (years) | I34: =Pasture!D62 -> 20
B35: Land cost ($/acre) | G35: Owned Fence Equity | I35: =Pasture!D63 -> 0.75
B36: Finance Rate & Term | C36: =Pasture!C29 -> 0.0575 | D36: =Pasture!D29 -> 25 | E36: Years | G36: =" Fence Financed ("&TEXT((I32)*I36,"$#,###")&" per head)" -> Fence Financed ($52 per head) | I36: =SUM(1-I35) -> 0.25
B37: Principle & Interest Cost | D37: =-PMT(C36,D36,D30*D33,0) -> 38.18908369 | G37: Fence Opportunity Cost (Investment Rate) | I37: =Pasture!D27 -> 0
B38: Owned Land Opportunity Cost | D38: =SUM(D30*D32)*(D34) -> 0 | G38: Fencing Cost ($/cow)
B39: Total Cost | D39: =SUM(D37:D38) -> 38.18908369 | G39: Finance Rate & Term | H39: =Pasture!C66 -> 0.0625 | I39: =Pasture!D66 -> 7
G40: Principle & Interest Cost | I40: =-PMT(H39,I39,I32*I36,0) -> 9.417809684
A41: Total Principle & Interest Cost ($/cow) | D41: =SUM(D10+I12+I26+I40+D37+D23) -> 252.591267 | G41: Fence Depreciation Cost | I41: =(I32-(I32*I33))/I34 -> 9.37977
A42: ="Total Principle & Interest Cost ("&Input!E13&" cows)" -> Total Principle & Interest Cost (300 cows) | D42: =D41*Input!E13 -> 75777.38009 | G42: Owned Fence Opportunity Cost | I42: =SUM(I32*I35)*(I37) -> 0
G43: Total Cost | I43: =SUM(I40:I42) -> 18.79757968
T44: 0.0275
A45: Capital Value
C46: Market | D46: Cow-calf | H46: Market | I46: Cow-calf
A47: Buildings & Facilities | C47: Value | D47: Usage % | E47: Allocation | G47: Machinery & Equipment | H47: Value | I47: Usage % | J47: Allocation
B48: Windbreak Fence | C48: =Input!G99 -> 14040 | D48: 1 | E48: =SUM(C48*D48) -> 14040 | G48: Miscellaneous Machinery | H48: 10000 | I48: 1 | J48: =SUM(H48*I48) -> 10000
B49: Feedlot Fence | C49: =Input!G102 -> 9360 | D49: 1 | E49: 9360 | G49: Tractor & Loader | H49: 175000 | I49: 0.5 | J49: 87500
B50: Calf Shelters | C50: =Input!G105 -> 22050 | D50: 1 | E50: 22050 | G50: Bale Shredder | H50: 40000 | I50: 1 | J50: 40000
B51: Handling Facilities | C51: 15000 | D51: 1 | E51: 15000 | G51: Tractor & Feed Wagon (silage) | H51: 120000 | I51: 1 | J51: 120000
B52: Calving Facility | C52: 12500 | D52: 1 | E52: 12500 | G52: Stock Trailer | H52: 40000 | I52: 1 | J52: 40000
B53: Waterers | C53: =Input!G96 -> 8000 | D53: 1 | E53: 8000 | G53: Truck | H53: 80000 | I53: 0.5 | J53: 40000
B54: Pasture Watering System | C54: 4000 | D54: 1 | E54: 4000 | H54: 0 | I54: 1 | J54: 0
B55: Pasture Water Source | C55: 3000 | D55: 1 | E55: 3000 | H55: 0 | I55: 1 | J55: 0
B56: Gates | C56: 1450 | D56: 1 | E56: 1450 | H56: 0 | I56: 1 | J56: 0
B57: Feeders | C57: 2400 | D57: 1 | E57: 2400 | H57: 0 | I57: 1 | J57: 0
B58: Well & Pressure System | C58: 8000 | D58: 1 | E58: 8000 | H58: 0 | I58: 1 | J58: 0
B59: Hydro (6 poles @ $400) | C59: 2400 | D59: 1 | E59: 2400 | H59: 0 | I59: 1 | J59: 0
B60: Storage Bins | C60: 5000 | D60: 1 | E60: 5000 | H60: 0 | I60: 1 | J60: 0
C61: 0 | D61: 1 | E61: 0 | H61: 0 | I61: 1 | J61: 0
C62: 0 | D62: 1 | E62: 0 | H62: 0 | I62: 1 | J62: 0
C63: 0 | D63: 0 | E63: 0 | H63: 0 | I63: 1 | J63: 0
E64: ="Total Inv. = $"&TEXT(SUM(E48:E63),"#,###")&" ($"&ROUND(SUM(E48:E63)/(Input!E13),0)&"/cow)" -> Total Inv. = $107,200 ($357/cow) | J64: ="Total Inv. = $"&TEXT(SUM(J48:J63),"#,###")&" ($"&ROUND(SUM(J48:J63)/(Input!E13),0)&"/cow)" -> Total Inv. = $337,500 ($1125/cow)
B65: Buildings & Water - Target $/cow | C65: 350 | G65: Machinery - Target $/cow | H65: 750
B66: =IF(ROUND(SUM(E48:E63)/(Input!E13),0)<C65,"(Under Invested by",IF(ROUND(SUM(E48:E63)/(Input!E13),0)=C65,"(On Target","(Over Invested by")) -> (Over Invested by | C66: ="$"&TEXT(ABS((ROUND(SUM(E48:E63)/(Input!$E$13),2)-C65)*(Input!$E$13)),"#,###")&")" -> $2,199) | G66: =IF(ROUND(SUM(J48:J63)/(Input!E13),0)<H65,"(Under Invested by",IF(ROUND(SUM(J48:J63)/(Input!E13),0)=H65,"(On Target","(Over Invested by")) -> (Over Invested by | H66: ="$"&TEXT(ABS((ROUND(SUM(J48:J63)/(Input!E13),2)-H65)*(Input!E13)),"#,###")&")" -> $112,500)

Sheet Extended Grazing
A1: Extended Grazing Costs & Requirements Worksheet
A3: Extended Grazing Days | C3: =Pasture!G4 -> 35
A4: Number of Cows | C4: =Input!E13 -> 300
A5: Number of Cow Grazing Days | C5: =SUM(C3*C4) -> 10500
A7: Extended Grazing Options - Costs
C8: Corn Grazing | D8: Stockpiled Forage | E8: Swath Grazing | F8: Crop Residue
A11: Standing Forage Cost ($/lb) | C11: n/a | D11: 0.025 | E11: n/a | F11: 0.015
A13: Input Costs ($/acre)
B14: Seed | C14: 96 | E14: 32
B15: Fertilizer (incl. applic.) | C15: 147 | E15: 81
B16: Herbicide | C16: 16 | E16: 16
B17: Custom tillage | C17: 12 | E17: 12
B18: Custom seeding | C18: 25 | E18: 25
B19: Custom spraying | C19: 9 | E19: 9
B20: Miscellaneous | C20: 7.75 | E20: 7.75
B21: Land taxes | C21: 15 | E21: 15
B22: Land Costs | C22: 75 | E22: 75
B23: Labour | C23: =SUM(0.75*'Operating '!E135) -> 21 | E23: =C23 -> 21
B24: Subtotal | C24: =SUM(C14:C23) -> 423.75 | D24: =SUM(D34*2000*D11) -> 50 | E24: =SUM(E14:E23) -> 293.75 | F24: =SUM(F34*2000*F11) -> 7.5
A26: Fencing Costs
B27: Estimated miles of fence required | C27: =SUM(C38/80) -> 0.35 | D27: =SUM(D38/80) -> 2.95 | E27: =SUM(E38/80) -> 0.5875 | F27: =SUM(F38/80) -> 11.55
B28: Fence Investment Cost/acre | C28: =SUM(C27*Pasture!$H$40*(Input!$E$75/100))/C38 -> 1.1475625 | D28: =SUM(D27*Pasture!$H$40*(Input!$E$75/100))/D38 -> 1.1475625 | E28: =SUM(E27*Pasture!$H$40*(Input!$E$75/100))/E38 -> 1.1475625 | F28: =SUM(F27*Pasture!$H$40*(Input!$E$75/100))/F38 -> 1.1475625
B29: Fence Depreciation Cost/acre | C29: =SUM((C27*Pasture!$H$40)/Pasture!$D$62)/C38 -> 1.639375 | D29: =SUM((D27*Pasture!$H$40)/Pasture!$D$62)/D38 -> 1.639375 | E29: =SUM((E27*Pasture!$H$40)/Pasture!$D$62)/E38 -> 1.639375 | F29: =SUM((F27*Pasture!$H$40)/Pasture!$D$62)/F38 -> 1.639375
A31: Total cost per acre | C31: =SUM(C29+C28+C24) -> 426.5369375 | D31: =SUM(D29+D28+D24) -> 52.7869375 | E31: =SUM(E29+E28+E24) -> 296.5369375 | F31: =SUM(F29+F28+F24) -> 10.2869375
A33: Extended Grazing Options - Yields & Cost Comparison
A34: Grazing Yield (wet tons/acre) | C34: 15 | D34: 1 | E34: 7.5 | F34: 0.25
A35: % moisture | C35: 50 | D35: 10 | E35: 40 | F35: 8
B36: Yield (tons dry matter/acre) | C36: =SUM(1-(C35/100))*C34 -> 7.5 | D36: =SUM(1-(D35/100))*D34 -> 0.9 | E36: =SUM(1-(E35/100))*E34 -> 4.5 | F36: =SUM(1-(F35/100))*F34 -> 0.23
B37: Total # cow grazing days/acre | C37: =SUM(C36*2000)/40.5 -> 370.3703704 | D37: =SUM(D36*2000)/40.5 -> 44.44444444 | E37: =SUM(E36*2000)/40.5 -> 222.2222222 | F37: =SUM(F36*2000)/40.5 -> 11.35802469
B38: Acres Req'd for Option | C38: =ROUND($C$5/C37,0) -> 28 | D38: =ROUND($C$5/D37,0) -> 236 | E38: =ROUND($C$5/E37,0) -> 47 | F38: =ROUND($C$5/F37,0) -> 924
A40: Total Extended Grazing Cost | C40: =SUM(C31*C38) -> 11943.03425 | D40: =SUM(D31*D38) -> 12457.71725 | E40: =SUM(E31*E38) -> 13937.23606 | F40: =SUM(F31*F38) -> 9505.13025
A41: Cost per cow | C41: =SUM(C40/Input!$E$13) -> 39.81011417 | D41: =SUM(D40/Input!$E$13) -> 41.52572417 | E41: =SUM(E40/Input!$E$13) -> 46.45745354 | F41: =SUM(F40/Input!$E$13) -> 31.6837675
A42: ="Cost/cow/day (based on "&C3&" days)" -> Cost/cow/day (based on 35 days) | C42: =C41/$C$3 -> 1.137431833 | D42: =D41/$C$3 -> 1.186449262 | E42: =E41/$C$3 -> 1.327355815 | F42: =F41/$C$3 -> 0.9052505
A44: Extended Grazing - Usage Planner
C46: Corn Grazing | D46: Stockpiled Forage | E46: Swath Grazing | F46: Crop Residue | G46: Total
A49: Planned extended grazing days | C49: 0 | D49: 35 | E49: 0 | F49: 0 | G49: =IF(C3=0,0,IF(SUM(C49:F49)<C3,"ERROR",IF(SUM(C49:F49)>C3,"ERROR",SUM(C49:F49)))) -> 35
B50: =ROUND(SUM(C50:F50),0) -> 236 | C50: =SUM(C49/$C$3)*C38 -> 0 | D50: =SUM(D49/$C$3)*D38 -> 236 | E50: 0 | F50: 0 | G50: =IF(G49="ERROR","(total must = "&C3&" days)","") -> 
A53: Cost per cow | C53: =SUM(C42*C49) -> 0 | D53: =SUM(D42*D49) -> 41.52572417 | E53: =SUM(E42*E49) -> 0 | F53: =SUM(F42*F49) -> 0 | G53: =IF(C3=0,0,SUM(C53:F53)) -> 41.52572417
A54: ="Cost/cow/day (based on "&C3&" days)" -> Cost/cow/day (based on 35 days) | G54: =IF(G53=0,0,SUM(G53/C3)) -> 1.186449262
A57: Note: This budget is only a guide and is not intended as an in-depth study of the cost of production of this industry. Interpretation and utilization of this information is the responsibility of the user.

Sheet Details
A1: Assumptions
A3: ="1. This budget outlines the cost of production for a cow-calf operation with "&Input!E13&" cows, "&Input!E15&" bulls and "&Input!E17&"% calf crop weaned." -> 1. This budget outlines the cost of production for a cow-calf operation with 300 cows, 12 bulls and 95% calf crop weaned.
A4: 2. Building and equipment are valued at new cost.
A5: 3. Feed cost is a combined value of market price and on-farm production costs.
A6: 4. Manure removal is contracted out.
A7: 5. Replacement heifers are valued at fair market value.
A8: ="6. This budget assumes an average weaning weight of "&Input!E23&" lbs. (steer calves 600 lbs and heifer calves 550 lbs.)" -> 6. This budget assumes an average weaning weight of 575 lbs. (steer calves 600 lbs and heifer calves 550 lbs.)
A10: Capital and Debt Summary:
A11: Capital Summary | D11: $/cow | E11: Total | G11: Debt Summary | I11: $/cow | J11: Total
A12: Breeding Herd Value | D12: =SUM(E12/Input!$E$13) -> 5240 | E12: =(Input!E66*Input!E15)+(Input!E28*Input!E13) -> 1572000 | G12: Cows | I12: =(Fixed!D4*Fixed!D6) -> 750 | J12: =I12*Input!E13 -> 225000
A13: Marginal Pasture Land | D13: =SUM(E13/Input!$E$13) -> 2000 | E13: =Fixed!D16*Fixed!D17 -> 600000 | G13: Marginal Pasture Land | I13: =J13/Input!$E$13 -> 500 | J13: =SUM(Fixed!D16*Fixed!D19*Fixed!D17) -> 150000
A14: Improved Pasture Land | D14: =SUM(E14/Input!$E$13) -> 681.3333333 | E14: =SUM(Fixed!D30*Fixed!D31) -> 204400 | G14: Improved Pasture Land | I14: =J14/Input!E13 -> 170.3333333 | J14: =SUM(Fixed!D30*Fixed!D33*Fixed!D31) -> 51100
A15: Machinery & Equipment | D15: =SUM(E15/Input!$E$13) -> 1125 | E15: =SUM(Fixed!J48:J63) -> 337500 | G15: Machinery & Equipment | I15: =(Fixed!I4*Fixed!I8) -> 225 | J15: =I15*Input!E13 -> 67500
A16: Fencing | D16: =Fixed!I32 -> 208.4393333 | E16: =SUM(D16*Input!E13) -> 62531.8 | G16: Fencing | I16: =Fixed!I32*Fixed!I36 -> 52.10983333 | J16: =I16*Input!E13 -> 15632.95
A17: Buildings & Facilities | D17: =SUM(E17/Input!$E$13) -> 357.3333333 | E17: =SUM(Fixed!E48:E63) -> 107200 | G17: Buildings & Facilities | I17: =(Fixed!I18*Fixed!I22) -> 53.55 | J17: =I17*Input!E13 -> 16065
A18: Hay Land | D18: =SUM(E18/Input!$E$13) -> 0 | E18: 0 | G18: Hay Land | I18: =J18/Input!$E$13 -> 0 | J18: 0 | N18: **just pondering this idea for a total debt per cow with all in??
A19: Silage Land | D19: =SUM(E19/Input!$E$13) -> 0 | E19: 0 | G19: Silage Land | I19: =J19/Input!$E$13 -> 0 | J19: 0
A20: Forage Equipment | D20: =SUM(E20/Input!$E$13) -> 0 | E20: 0 | G20: Forage Equipment | I20: =J20/Input!$E$13 -> 0 | J20: 0
A21: Grain Land | D21: =SUM(E21/Input!$E$13) -> 0 | E21: 0 | G21: Grain Land | I21: =J21/Input!$E$13 -> 0 | J21: 0
A22: Grain Machinery & Equipment | D22: =SUM(E22/Input!$E$13) -> 0 | E22: 0 | G22: Grain Machinery & Equipment | I22: =J22/Input!$E$13 -> 0 | J22: 0
A23: Total Capital Investment | D23: =SUM(D12:D17) -> 9612.106 | E23: =SUM(E12:E17) -> 2883631.8 | G23: Total Debt | I23: =SUM(I12:I17) -> 1750.993167 | J23: =SUM(J12:J17) -> 525297.95
G25: ="Debt/EBITDAR ratio = "&ROUND(I23/'Summary (2)'!F38,2)&":1" -> Debt/EBITDAR ratio = 0.81:1
G26: Cow Calf Equity | I26: =SUM(E23-J23)/E23 -> 0.8178345966
A28: Land Use Efficiency and Feed Security Analysis:
I29: Acres/cow | J29: Total Acres
B30: Pasture (Marginal, Improved, Crown Land and Rented Pasture) | G30: =Pasture!G3 -> 135 | H30: Days | I30: =J30/Input!$E$13 -> 4.340666667 | J30: =Pasture!E116+Pasture!F116+Pasture!G116+Pasture!I116 -> 1302.2
B31: Extended Grazing (Corn, Stockpiled, Swath and Crop Residue) | G31: =Pasture!G4 -> 35 | H31: Days | I31: =J31/Input!$E$13 -> 0.7866666667 | J31: ='Extended Grazing'!C50+'Extended Grazing'!D50+'Extended Grazing'!E50+'Extended Grazing'!F50 -> 236
B32: Planned forage & feed waste amount | E32: 0.1 | F32: 1500 | G32: pound bales
B33: Alfalfa Hay | D33: =(('Winter Feed Rations'!N12+'Winter Feed Rations'!N33+(('Winter Feed Rations'!N12+'Winter Feed Rations'!N33)*$E$32))*Input!$E$13)/2000 -> 0 | E33: Total Tons @ | F33: 3.5 | G33: ="tons/acre ("&TEXT((F33*2000)/$F$32,"#.#")&" bales/ac)" -> tons/acre (4.7 bales/ac) | I33: =J33/Input!$E$13 -> 0 | J33: =IF(F33=0,0,SUM(D33/F33)) -> 0
B34: Alfalfa Grass Hay | D34: =(('Winter Feed Rations'!N13+'Winter Feed Rations'!N34+(('Winter Feed Rations'!N13+'Winter Feed Rations'!N34)*$E$32))*Input!$E$13)/2000 -> 0 | E34: Total Tons @ | F34: 2.79 | G34: ="tons/acre ("&TEXT((F34*2000)/$F$32,"#.#")&" bales/ac)" -> tons/acre (3.7 bales/ac) | I34: =J34/Input!$E$13 -> 0 | J34: =IF(F34=0,0,SUM(D34/F34)) -> 0
B35: Grass Hay | D35: =(('Winter Feed Rations'!N14+'Winter Feed Rations'!N35+(('Winter Feed Rations'!N14+'Winter Feed Rations'!N35)*$E$32))*Input!$E$13)/2000 -> 0 | E35: Total Tons @ | F35: 2 | G35: tons/acre (2.7 bales/ac) | I35: =J35/Input!$E$13 -> 0 | J35: 0
B36: Barley Greenfeed | D36: =(('Winter Feed Rations'!N16+'Winter Feed Rations'!N37+(('Winter Feed Rations'!N16+'Winter Feed Rations'!N37)*$E$32))*Input!$E$13)/2000 -> 0 | E36: Total Tons @ | F36: 2.83 | G36: tons/acre (3.8 bales/ac) | I36: =J36/Input!$E$13 -> 0 | J36: 0
B37: Corn Silage | D37: =(('Winter Feed Rations'!N17+'Winter Feed Rations'!N38+(('Winter Feed Rations'!N17+'Winter Feed Rations'!N38)*$E$32))*Input!$E$13)/2000 -> 1467.763393 | E37: Total Tons @ | F37: 15 | G37: tons/acre | I37: =J37/Input!$E$13 -> 0.3261696429 | J37: 97.85089286
B38: Barley Silage | D38: =(('Winter Feed Rations'!N18+'Winter Feed Rations'!N39+(('Winter Feed Rations'!N18+'Winter Feed Rations'!N39)*$E$32))*Input!$E$13)/2000 -> 0 | E38: Total Tons @ | F38: 7.5 | G38: tons/acre | I38: =J38/Input!$E$13 -> 0 | J38: 0
B39: Barley Grain | D39: =(('Winter Feed Rations'!N19+'Winter Feed Rations'!N40+(('Winter Feed Rations'!N19+'Winter Feed Rations'!N40)*$E$32))*Input!$E$13)/48 -> 2784.375 | E39: Total bu @ | F39: 78 | G39: bu/acre | I39: =J39/Input!$E$13 -> 0.1189903846 | J39: 35.69711538
I40: =SUM(I30:I39) -> 5.572493361 | J40: =SUM(J30:J39) -> 1671.748008
A42: Profitability and Breakeven Analysis:
A43: ="Gross Revenue = calf weight (lbs) x $/lb x % calf crop (eg. "&Input!E23&" x $"&TEXT(Input!E24/100,"0.00")&"/lb x "&Input!E17&"% = $"&TEXT(Summary!F46,"0.00")&")" -> Gross Revenue = calf weight (lbs) x $/lb x % calf crop (eg. 575 x $6.41/lb x 95% = $3500.75)
A44: ="Return on Investment (ROI) = (Gross Revenue - Total Cost) / Total Cost (eg. ($"&TEXT(Summary!F46,"0,000.00")&" - $"&TEXT(Summary!F40,"0,000.00")&") / $"&TEXT(Summary!F40,"0.00")&" = "&TEXT(100*Summary!F71,"0.0")&"%" -> Return on Investment (ROI) = (Gross Revenue - Total Cost) / Total Cost (eg. ($3,500.75 - $1,794.66) / $1794.66 = 95.1%
A46: ="Return on Asset (ROA) = (Margin Over Operating - Owners Labour - Building Depreciation - Machinery Depreciation - Fence Depreciation) / ((Building, Machinery & Equipment Investment + Pasture Investment + Breeding Herd Investment) / Herd Size) (eg. ($"&TEXT(Summary!F52,"0.00")&" - $"&TEXT(Summary!F38,"0.00")&" - $"&TEXT(Fixed!I27,"0.00")&" - $"&TEXT(Fixed!I13,"0.00")&" - $"&TEXT(Fixed!I41,"0.00")&") / (($"&TEXT(Details!E17+Details!E16+Details!E15,"#,###")&" + $"&TEXT(E13+E14,"#,###")&" + $"&TEXT(E12,"#,###")&") / "&Input!E13&") = "&TEXT(100*Summary!F72,"0.0")&"%" -> Return on Asset (ROA) = (Margin Over Operating - Owners Labour - Building Depreciation - Machinery Depreciation - Fence Depreciation) / ((Building, Machinery & Equipment Investment + Pasture Investment + Breeding Herd Investment) / Herd Size) (eg. ($2234.25 - $168.00 - $14.28 - $90.00 - $9.38) / (($507,232 + $804,400 + $1,572,000) / 300) = 20.3%
A49: ="Operating Expense Ratio = (operating cost ÷ gross revenue) x 100 (eg. ($"&TEXT(Summary!F29, "0.00")&" ÷ $"&TEXT(Summary!F46,"0.00")&" ) x 100 = "&ROUND(Summary!F48*100,0)&"%)" -> Operating Expense Ratio = (operating cost ÷ gross revenue) x 100 (eg. ($1266.50 ÷ $3500.75 ) x 100 = 36%)
A51: ="Breakeven Price $/cwt = Cost ÷ % calf crop ÷ calf weight cwt (eg. $"&TEXT(Summary!F40,"0.00")&" ÷ "&Input!E17&"% ÷ "&Input!E23/100&" = $"&ROUND(Summary!F60,0)&")" -> Breakeven Price $/cwt = Cost ÷ % calf crop ÷ calf weight cwt (eg. $1794.66 ÷ 95% ÷ 5.75 = $329)
A53: Cost Summary:
A54: ="Summer Grazing Cost Per Cow Per Day = pasture cost ÷ days (eg. $"&TEXT(Pasture!J124, "0.00")&" ÷ "&Pasture!G3&" = $"&TEXT(Summary!F76,"0.00")&")" -> Summer Grazing Cost Per Cow Per Day = pasture cost ÷ days (eg. $164.13 ÷ 135 = $1.22)
A55: ="Extended Grazing Cost Per Cow Per Day = grazing cost ÷ days (eg. $"&TEXT('Extended Grazing'!G53, "0.00")&" ÷ "&Pasture!G4&" = $"&TEXT(Summary!F77,"0.00")&")" -> Extended Grazing Cost Per Cow Per Day = grazing cost ÷ days (eg. $41.53 ÷ 35 = $1.19)
A56: ="Winter Feed Cost Per Cow Per Day = feed cost ÷ days (eg. $"&TEXT('Winter Feed Rations'!O54+((Input!G46+Input!G53)), "0.00")&" ÷ "&Pasture!G5&" = $"&TEXT(Summary!F78,"0.00")&")" -> Winter Feed Cost Per Cow Per Day = feed cost ÷ days (eg. $419.68 ÷ 195 = $2.15)
A57: ="Yardage Cost Per Cow Per Day = ($"&TEXT('Operating '!D25*'Operating '!D26+Input!G59,"0.00")&" straw + $"&TEXT('Operating '!G48,"0.00")&" fuel & repair + $"&TEXT('Operating '!G118,"0.00")&" building insurance + $"&TEXT('Operating '!G59,"0.00")&" utilities + $"&TEXT('Operating '!G108,"0.00")&" manure removal + $"&TEXT(Fixed!I27,"0.00")&" building depreciation+ $"&TEXT(Fixed!I13,"0.00")&" machinery depreciation + $"&TEXT(Fixed!I26,"0.00")&" building investment + $"&TEXT(Fixed!I12,"0.00")&" machinery investment + $"&TEXT((((Summary!H27-Summary!H14-Summary!H15-Summary!H18-Summary!H19-Summary!H22-Summary!H23)/2*('Operating '!E131/100)/(Input!E13))),"0.00")&" operating interest + $"&TEXT(((Summary!H26*((Pasture!G5+Pasture!G4)/365))/Input!E13),"0.00")&" misc. + $"&TEXT(('Operating '!G138)*0.625,"0.00")&" labour) ÷ "&Pasture!G5+Pasture!G4&" days = $"&TEXT(Summary!F79,"0.000") -> Yardage Cost Per Cow Per Day = ($72.80 straw + $40.07 fuel & repair + $5.93 building insurance + $9.69 utilities + $10.84 manure removal + $14.28 building depreciation+ $90.00 machinery depreciation + $9.68 building investment + $40.66 machinery investment + $24.06 operating interest + $2.10 misc. + $140.00 labour) ÷ 230 days = $1.995
J61: September, 2025

Sheet Housing
A2: Cow-Calf Operating Facilities

Sheet Chart data (HIDE) (hidden)
A1: =Input!E13&" Head Beef Cow Calf - Total Production Costs ($/cow)" -> 300 Head Beef Cow Calf - Total Production Costs ($/cow) | F1: 150 Cow COP Changes | L1: Year | M1: Million Head | N1: $/cwt | O1: ="$/cwt ("&SUM(Input!E75/2)&"% Inflation)" -> $/cwt (1.75% Inflation)
A2: Feed Cost | B2: =Summary!F10 -> 459.5621242 | C2: =SUM(B2/$B$9) -> 0.2560721188 | F2: Input - 150 cows | K2: 1 | L2: 2019 | M2: 93 | N2: =Input!E24 -> 640.87 | O2: =N2 -> 640.87
A3: Other Operating Cost | B3: =Summary!F29-Summary!F10 -> 806.937216 | C3: 0.4496326214 | F3: Input - 5 bulls | K3: 2 | L3: 2020 | M3: 94 | N3: 187 | O3: =SUM((N3-N2)+O2)*(1+(Input!$E$75/100)/2) -> 190.2725
A4: Fixed Cost - Livestock | B4: =Summary!F32 -> 135.5474929 | C4: 0.07552827325 | F4: Operating - 6 hours vet | K4: 3 | L4: 2021 | M4: 93.5 | N4: 185 | O4: =SUM((N4-N3)+O3)*(1+(Input!$E$75/100)/2) -> 191.5672688
A5: Fixed Cost - Buildings | B5: =Summary!F33 -> 23.95809099 | C5: 0.01334966221 | F5: Operating - 1.5 hours tractor time | K5: 4 | L5: 2022 | M5: 92 | N5: 187 | O5: =SUM((N5-N4)+O4)*(1+(Input!$E$75/100)/2) -> 196.954696
A6: Fixed Cost - Machinery | B6: =Summary!F34 -> 130.6642479 | C6: 0.07280728553 | F6: Operating - 0 hrs hired, 8 hours owner | K6: 5 | L6: 2023 | M6: 91 | N6: 192 | O6: =SUM((N6-N5)+O5)*(1+(Input!$E$75/100)/2) -> 205.4889031
A7: Fixed Cost - Pasture Land & Fencing | B7: =Summary!F35 -> 69.98979541 | C7: 0.0389989389 | F7: Pasture - cow number allocation | K7: 6 | L7: 2024 | M7: 90 | N7: 197 | O7: =SUM((N7-N6)+O6)*(1+(Input!$E$75/100)/2) -> 214.1724589
A8: Owners-Labour & Living | B8: =Summary!F38 -> 168 | C8: 0.09361109996 | F8: Winter Feed - 135 days to ration#1, pre and post | K8: 7 | L8: 2025 | M8: 89 | N8: 206 | O8: =SUM((N8-N7)+O7)*(1+(Input!$E$75/100)/2) -> 227.077977
B9: =SUM(B2:B8) -> 1794.658967 | F9: Fixed - remove tractor and silage wagon cost ($0) | K9: 8 | L9: 2026 | M9: 87 | N9: 210 | O9: =SUM((N9-N8)+O8)*(1+(Input!$E$75/100)/2) -> 235.1218416
F10: Fixed - reduce tractor cost to $120,000 | K10: 9 | L10: 2027 | M10: 87.5 | N10: 207 | O10: =SUM((N10-N9)+O9)*(1+(Input!$E$75/100)/2) -> 236.1839738
K11: 10 | L11: 2028 | M11: 88 | N11: 202 | O11: =SUM((N11-N10)+O10)*(1+(Input!$E$75/100)/2) -> 235.2296933
A14: =Input!E13&" Head Beef Cow Calf - Other Operating Costs ($/cow)" -> 300 Head Beef Cow Calf - Other Operating Costs ($/cow)
A16: Straw | B16: =Summary!F13 -> 70
A17: Veterinary Medicine & Supplies | B17: =Summary!F14 -> 26.94333333
A18: Breeding Costs | B18: =Summary!F15 -> 55.91 | K18: From the meeting
A19: Fuel, Maintenance & Repairs | B19: =Summary!F16 -> 40.06906667 | K19: years | L19: calf prices from meeting | M19: cull | N19: diff | O19: %
A20: Utilities | B20: =Summary!F17 -> 9.688774 | K20: 1 | L20: 180.43 | M20: 80 | N20: =SUM(L20-M20) -> 100.43 | O20: =SUM(M20/L20) -> 0.4433852464
A21: Marketing & Transportation | B21: =Summary!F18 -> 39.9775 | K21: 2 | L21: 170 | M21: 80 | N21: =SUM(L21-M21) -> 90 | O21: =SUM(M21/L21) -> 0.4705882353
A22: Death Loss | B22: =Summary!F19 -> 62.5 | K22: 3 | L22: 175 | M22: 85 | N22: 90 | O22: 0.4857142857
A23: Manure Removal | B23: =Summary!F20 -> 10.83963562 | K23: 4 | L23: 175 | M23: 85 | N23: 90 | O23: 0.4857142857
A24: Insurance | B24: =Summary!F21 -> 28.59 | K24: 5 | L24: 175 | M24: 90 | N24: 85 | O24: 0.5142857143
A25: Herd Replacement | B25: =Summary!F22 -> 267.6 | K25: 6 | L25: 180 | M25: 95 | N25: 85 | O25: 0.5277777778
A26: Pasture Rental | B26: =Summary!F23 -> 59.375 | K26: 7 | L26: 190 | M26: 95 | N26: 95 | O26: 0.5
A27: Pasture Operating | B27: =Summary!F24 -> 34.76510638 | K27: 8 | L27: 200 | M27: 100 | N27: 100 | O27: 0.5
A28: Labour - Hired | B28: =Summary!F25 -> 56
A29: Miscellaneous | B29: =Summary!F26 -> 3.33 | K29: calves | L29: Year 2 to 8 prices | S29: AVG
A30: Operating Interest | B30: =Summary!F28 -> 41.3488 | K30: trend | L30: =N3 -> 187 | M30: =N4 -> 185 | N30: =N5 -> 187 | O30: =N6 -> 192 | P30: =N7 -> 197 | Q30: =N8 -> 206 | R30: =N9 -> 210 | S30: =AVERAGE(L30:R30) -> 194.8571429
B31: =SUM(B16:B30) -> 806.937216 | K31: with inflation | L31: =ROUND($O3,0) -> 190 | M31: =ROUND($O4,0) -> 192 | N31: =ROUND($O5,0) -> 197 | O31: =ROUND($O6,0) -> 205 | P31: =ROUND($O7,0) -> 214 | Q31: =ROUND($O8,0) -> 227 | R31: =ROUND($O9,0) -> 235 | S31: =AVERAGE(L31:R31) -> 208.5714286
K33: culls | L33: 100 | M33: ($/cwt discount from average calf prices)
K34: trend | L34: =SUM(L30-L33) -> 87 | M34: =SUM(M30-L33) -> 85 | N34: =SUM(N30-L33) -> 87 | O34: =SUM(O30-L33) -> 92 | P34: =SUM(P30-L33) -> 97 | Q34: =SUM(Q30-L33) -> 106 | R34: =SUM(R30-L33) -> 110 | S34: =AVERAGE(L34:R34) -> 94.85714286
A35: =Input!E13&" Head Beef Cow Calf - Cost Summary ($/cow/day)" -> 300 Head Beef Cow Calf - Cost Summary ($/cow/day) | K35: with inflation | L35: =SUM(L31-L33) -> 90 | M35: =SUM(M31-L33) -> 92 | N35: =SUM(N31-L33) -> 97 | O35: =SUM(O31-L33) -> 105 | P35: =SUM(P31-L33) -> 114 | Q35: =SUM(Q31-L33) -> 127 | R35: =SUM(R31-L33) -> 135 | S35: =AVERAGE(L35:R35) -> 108.5714286
A36: ="Grazing ("&Pasture!G3&" days)" -> Grazing (135 days) | B36: =Summary!F76 -> 1.21577705
A37: ="Extended grazing ("&Pasture!G4&" days)" -> Extended grazing (35 days) | B37: =Summary!F77 -> 1.186449262 | K37: culls | L37: 0.55 | M37: ($/cwt percentage of average calf prices)
A38: ="Yardage (based on "&Pasture!G5+Pasture!G4&" days)" -> Yardage (based on 230 days) | B38: =Summary!F79 -> 1.995363777 | K38: trend | L38: =SUM(L30*$L$37) -> 102.85 | M38: 101.75 | N38: 102.85 | O38: 105.6 | P38: 108.35 | Q38: 113.3 | R38: 115.5 | S38: =AVERAGE(L38:R38) -> 107.1714286
A39: ="Winter feed ("&Pasture!G5&" days)" -> Winter feed (195 days) | B39: =Summary!F78 -> 2.152191329 | K39: with inflation | L39: 104.5 | M39: 105.6 | N39: 108.35 | O39: 112.75 | P39: 117.7 | Q39: 124.85 | R39: 129.25 | S39: =AVERAGE(L39:R39) -> 114.7142857
A40: ="Total Overwinter Costs ("&Pasture!G5+Pasture!G4&" days)" -> Total Overwinter Costs (230 days) | B40: =Summary!F80 -> 4.000594357
K43: Feed | L43: 355 | M43: =SUM(L43*(1+(Input!$E$75/100)/2)) -> 361.2125 | N43: =SUM(M43*(1+(Input!$E$75/100)/2)) -> 367.5337188 | O43: =SUM(N43*(1+(Input!$E$75/100)/2)) -> 373.9655588 | P43: =SUM(O43*(1+(Input!$E$75/100)/2)) -> 380.5099561 | Q43: =SUM(P43*(1+(Input!$E$75/100)/2)) -> 387.1688803 | R43: =SUM(Q43*(1+(Input!$E$75/100)/2)) -> 393.9443357 | S43: =AVERAGE(L43:R43) -> 374.1907071
A46: =Input!E13&" Head Beef Cow Calf - Costs Not Covered ("&Input!E23&" lb. avg. steers & heifers)" -> 300 Head Beef Cow Calf - Costs Not Covered (575 lb. avg. steers & heifers)
A47: Calf Price | B47: Gross revenue | C47: ="Operating Costs = $"&ROUND(Summary!F29,0) -> Operating Costs = $1266 | D47: ="Fixed Costs = $"&ROUND(Summary!F36,0) -> Fixed Costs = $360 | E47: ="Labour (Owners Living) Cost = $"&ROUND(Summary!F38,0) -> Labour (Owners Living) Cost = $168 | F47: Total | I47: =C47 -> Operating Costs = $1266 | J47: =D47 -> Fixed Costs = $360 | K47: =A47 -> Calf Price
A49: =SUM(A50+$A$62) -> 491 | B49: =SUM((A49/100)*Input!$E$23)*(Input!$E$17/100) -> 2682.0875 | C49: =IF(Summary!$F$29-B49<0,0,SUM(Summary!$F$29-B49)) -> 0 | D49: =IF(Summary!$F$29+Summary!$F$36-B49<0,0,SUM(Summary!$F$29+Summary!$F$36-B49-C49)) -> 0 | E49: =IF(Summary!$F$29+Summary!$F$36+Summary!$F$38-B49<0,0,SUM(Summary!$F$29+Summary!$F$36+Summary!$F$38-B49-C49-D49)) -> 0 | F49: =SUM(C49:E49) -> 0 | I49: =C49 -> 0 | J49: =D49 -> 0 | K49: =A49 -> 491 | M49: ="Market prices of $"&ROUND(Summary!F59,0)&"/cwt and lower do not cover both operating and fixed costs. This can indicate the potential need for LPI coverage and is an important step in Risk Management Planning." -> Market prices of $298/cwt and lower do not cover both operating and fixed costs. This can indicate the potential need for LPI coverage and is an important step in Risk Management Planning.
A50: =SUM(A51+$A$62) -> 466 | B50: =SUM((A50/100)*Input!$E$23)*(Input!$E$17/100) -> 2545.525 | C50: =IF(Summary!$F$29-B50<0,0,SUM(Summary!$F$29-B50)) -> 0 | D50: =IF(Summary!$F$29+Summary!$F$36-B50<0,0,SUM(Summary!$F$29+Summary!$F$36-B50-C50)) -> 0 | E50: =IF(Summary!$F$29+Summary!$F$36+Summary!$F$38-B50<0,0,SUM(Summary!$F$29+Summary!$F$36+Summary!$F$38-B50-C50-D50)) -> 0 | F50: 0 | I50: 0 | J50: 0 | K50: 466
A51: =ROUND(Input!E24+A63,0) -> 441 | B51: =SUM((A51/100)*Input!$E$23)*(Input!$E$17/100) -> 2408.9625 | C51: =IF(Summary!$F$29-B51<0,0,SUM(Summary!$F$29-B51)) -> 0 | D51: =IF(Summary!$F$29+Summary!$F$36-B51<0,0,SUM(Summary!$F$29+Summary!$F$36-B51-C51)) -> 0 | E51: =IF(Summary!$F$29+Summary!$F$36+Summary!$F$38-B51<0,0,SUM(Summary!$F$29+Summary!$F$36+Summary!$F$38-B51-C51-D51)) -> 0 | F51: 0 | I51: 0 | J51: 0 | K51: 441
A52: =SUM(A51-$A$62) -> 416 | B52: =SUM((A52/100)*Input!$E$23)*(Input!$E$17/100) -> 2272.4 | C52: =IF(Summary!$F$29-B52<0,0,SUM(Summary!$F$29-B52)) -> 0 | D52: =IF(Summary!$F$29+Summary!$F$36-B52<0,0,SUM(Summary!$F$29+Summary!$F$36-B52-C52)) -> 0 | E52: =IF(Summary!$F$29+Summary!$F$36+Summary!$F$38-B52<0,0,SUM(Summary!$F$29+Summary!$F$36+Summary!$F$38-B52-C52-D52)) -> 0 | F52: 0 | I52: 0 | J52: 0 | K52: 416
A53: =SUM(A52-$A$62) -> 391 | B53: =SUM((A53/100)*Input!$E$23)*(Input!$E$17/100) -> 2135.8375 | C53: =IF(Summary!$F$29-B53<0,0,SUM(Summary!$F$29-B53)) -> 0 | D53: =IF(Summary!$F$29+Summary!$F$36-B53<0,0,SUM(Summary!$F$29+Summary!$F$36-B53-C53)) -> 0 | E53: =IF(Summary!$F$29+Summary!$F$36+Summary!$F$38-B53<0,0,SUM(Summary!$F$29+Summary!$F$36+Summary!$F$38-B53-C53-D53)) -> 0 | F53: 0 | I53: 0 | J53: 0 | K53: 391
A54: 366 | B54: =SUM((A54/100)*Input!$E$23)*(Input!$E$17/100) -> 1999.275 | C54: =IF(Summary!$F$29-B54<0,0,SUM(Summary!$F$29-B54)) -> 0 | D54: =IF(Summary!$F$29+Summary!$F$36-B54<0,0,SUM(Summary!$F$29+Summary!$F$36-B54-C54)) -> 0 | E54: =IF(Summary!$F$29+Summary!$F$36+Summary!$F$38-B54<0,0,SUM(Summary!$F$29+Summary!$F$36+Summary!$F$38-B54-C54-D54)) -> 0 | F54: 0 | I54: 0 | J54: 0 | K54: 366
A55: 341 | B55: =SUM((A55/100)*Input!$E$23)*(Input!$E$17/100) -> 1862.7125 | C55: =IF(Summary!$F$29-B55<0,0,SUM(Summary!$F$29-B55)) -> 0 | D55: =IF(Summary!$F$29+Summary!$F$36-B55<0,0,SUM(Summary!$F$29+Summary!$F$36-B55-C55)) -> 0 | E55: =IF(Summary!$F$29+Summary!$F$36+Summary!$F$38-B55<0,0,SUM(Summary!$F$29+Summary!$F$36+Summary!$F$38-B55-C55-D55)) -> 0 | F55: 0 | I55: 0 | J55: 0 | K55: 341
A56: 316 | B56: =SUM((A56/100)*Input!$E$23)*(Input!$E$17/100) -> 1726.15 | C56: =IF(Summary!$F$29-B56<0,0,SUM(Summary!$F$29-B56)) -> 0 | D56: =IF(Summary!$F$29+Summary!$F$36-B56<0,0,SUM(Summary!$F$29+Summary!$F$36-B56-C56)) -> 0 | E56: =IF(Summary!$F$29+Summary!$F$36+Summary!$F$38-B56<0,0,SUM(Summary!$F$29+Summary!$F$36+Summary!$F$38-B56-C56-D56)) -> 68.50896741 | F56: 68.50896741 | I56: 0 | J56: 0 | K56: 316
A57: 291 | B57: =SUM((A57/100)*Input!$E$23)*(Input!$E$17/100) -> 1589.5875 | C57: =IF(Summary!$F$29-B57<0,0,SUM(Summary!$F$29-B57)) -> 0 | D57: =IF(Summary!$F$29+Summary!$F$36-B57<0,0,SUM(Summary!$F$29+Summary!$F$36-B57-C57)) -> 37.07146741 | E57: =IF(Summary!$F$29+Summary!$F$36+Summary!$F$38-B57<0,0,SUM(Summary!$F$29+Summary!$F$36+Summary!$F$38-B57-C57-D57)) -> 168 | F57: 205.0714674 | I57: 0 | J57: 37.07146741 | K57: 291
A58: 266 | B58: =SUM((A58/100)*Input!$E$23)*(Input!$E$17/100) -> 1453.025 | C58: =IF(Summary!$F$29-B58<0,0,SUM(Summary!$F$29-B58)) -> 0 | D58: =IF(Summary!$F$29+Summary!$F$36-B58<0,0,SUM(Summary!$F$29+Summary!$F$36-B58-C58)) -> 173.6339674 | E58: =IF(Summary!$F$29+Summary!$F$36+Summary!$F$38-B58<0,0,SUM(Summary!$F$29+Summary!$F$36+Summary!$F$38-B58-C58-D58)) -> 168 | F58: 341.6339674 | I58: 0 | J58: 173.6339674 | K58: 266
A59: 241 | B59: =SUM((A59/100)*Input!$E$23)*(Input!$E$17/100) -> 1316.4625 | C59: =IF(Summary!$F$29-B59<0,0,SUM(Summary!$F$29-B59)) -> 0 | D59: =IF(Summary!$F$29+Summary!$F$36-B59<0,0,SUM(Summary!$F$29+Summary!$F$36-B59-C59)) -> 310.1964674 | E59: =IF(Summary!$F$29+Summary!$F$36+Summary!$F$38-B59<0,0,SUM(Summary!$F$29+Summary!$F$36+Summary!$F$38-B59-C59-D59)) -> 168 | F59: 478.1964674 | I59: 0 | J59: 310.1964674 | K59: 241
A60: 216 | B60: =SUM((A60/100)*Input!$E$23)*(Input!$E$17/100) -> 1179.9 | C60: =IF(Summary!$F$29-B60<0,0,SUM(Summary!$F$29-B60)) -> 86.59934025 | D60: =IF(Summary!$F$29+Summary!$F$36-B60<0,0,SUM(Summary!$F$29+Summary!$F$36-B60-C60)) -> 360.1596272 | E60: =IF(Summary!$F$29+Summary!$F$36+Summary!$F$38-B60<0,0,SUM(Summary!$F$29+Summary!$F$36+Summary!$F$38-B60-C60-D60)) -> 168 | F60: 614.7589674 | I60: 86.59934025 | J60: 360.1596272 | K60: 216
A62: 25 | B62: price change | C62: was 12
A63: -200 | B63: initial mod. | C63: was -30
A68: ="2021 Beef Cow Calf - Risk & Reward ("&Input!E23&" lb. avg. steers & heifers)" -> 2021 Beef Cow Calf - Risk & Reward (575 lb. avg. steers & heifers)
A69: Calf Price | B69: Gross revenue | C69: Operating Cost | D69: Fixed Cost | E69: Labour | F69: Margin Over Operating & Fixed Cost
A71: =SUM(A72-5) -> 621 | B71: =SUM((A71/100)*Input!$E$23)*(Input!$E$17/100) -> 3392.2125 | C71: =Summary!$F$29 -> 1266.49934 | D71: =Summary!$F$36 -> 360.1596272 | E71: =Summary!$F$38 -> 168 | F71: =SUM(B71-(C71+D71)) -> 1765.553533
A72: =SUM(A73-5) -> 626 | B72: =SUM((A72/100)*Input!$E$23)*(Input!$E$17/100) -> 3419.525 | C72: =Summary!$F$29 -> 1266.49934 | D72: =Summary!$F$36 -> 360.1596272 | E72: =Summary!$F$38 -> 168 | F72: =SUM(B72-(C72+D72)) -> 1792.866033
A73: =SUM(A74-5) -> 631 | B73: =SUM((A73/100)*Input!$E$23)*(Input!$E$17/100) -> 3446.8375 | C73: =Summary!$F$29 -> 1266.49934 | D73: =Summary!$F$36 -> 360.1596272 | E73: =Summary!$F$38 -> 168 | F73: 1820.178533
A74: =SUM(A75-5) -> 636 | B74: =SUM((A74/100)*Input!$E$23)*(Input!$E$17/100) -> 3474.15 | C74: =Summary!$F$29 -> 1266.49934 | D74: =Summary!$F$36 -> 360.1596272 | E74: =Summary!$F$38 -> 168 | F74: 1847.491033
A75: =ROUND(Input!E24,0) -> 641 | B75: =SUM((A75/100)*Input!$E$23)*(Input!$E$17/100) -> 3501.4625 | C75: =Summary!$F$29 -> 1266.49934 | D75: =Summary!$F$36 -> 360.1596272 | E75: =Summary!$F$38 -> 168 | F75: 1874.803533
A76: =SUM(A75+5) -> 646 | B76: =SUM((A76/100)*Input!$E$23)*(Input!$E$17/100) -> 3528.775 | C76: =Summary!$F$29 -> 1266.49934 | D76: =Summary!$F$36 -> 360.1596272 | E76: =Summary!$F$38 -> 168 | F76: 1902.116033
A77: 651 | B77: =SUM((A77/100)*Input!$E$23)*(Input!$E$17/100) -> 3556.0875 | C77: =Summary!$F$29 -> 1266.49934 | D77: =Summary!$F$36 -> 360.1596272 | E77: =Summary!$F$38 -> 168 | F77: 1929.428533
A78: 656 | B78: =SUM((A78/100)*Input!$E$23)*(Input!$E$17/100) -> 3583.4 | C78: =Summary!$F$29 -> 1266.49934 | D78: =Summary!$F$36 -> 360.1596272 | E78: =Summary!$F$38 -> 168 | F78: 1956.741033
A79: 661 | B79: =SUM((A79/100)*Input!$E$23)*(Input!$E$17/100) -> 3610.7125 | C79: =Summary!$F$29 -> 1266.49934 | D79: =Summary!$F$36 -> 360.1596272 | E79: =Summary!$F$38 -> 168 | F79: 1984.053533
A80: 666 | B80: =SUM((A80/100)*Input!$E$23)*(Input!$E$17/100) -> 3638.025 | C80: =Summary!$F$29 -> 1266.49934 | D80: =Summary!$F$36 -> 360.1596272 | E80: =Summary!$F$38 -> 168 | F80: 2011.366033
A81: 671 | B81: =SUM((A81/100)*Input!$E$23)*(Input!$E$17/100) -> 3665.3375 | C81: =Summary!$F$29 -> 1266.49934 | D81: =Summary!$F$36 -> 360.1596272 | E81: =Summary!$F$38 -> 168 | F81: 2038.678533
A82: 676 | B82: =SUM((A82/100)*Input!$E$23)*(Input!$E$17/100) -> 3692.65 | C82: =Summary!$F$29 -> 1266.49934 | D82: =Summary!$F$36 -> 360.1596272 | E82: =Summary!$F$38 -> 168 | F82: 2065.991033
A87: =Input!E13&" Head Beef Cow Calf - Change to Profit Margin Over Operating & Fixed Costs" -> 300 Head Beef Cow Calf - Change to Profit Margin Over Operating & Fixed Costs
B88: Base Margin
C89: Change
A90: Baseline | B90: =Summary!F53 -> 1874.093408
A91: ="Cost ("&'Risk Analysis'!$C$24*100&"%)" -> Cost (-5%) | B91: =B90 -> 1874.093408 | C91: ='Risk Analysis'!H24 -> 63.32496701
A92: ="Production ("&'Risk Analysis'!$C$26*100&"% Weaning Weight)" -> Production (5% Weaning Weight) | B92: =B90 -> 1874.093408 | C92: ='Risk Analysis'!H26 -> 184.250125
A93: ="Price ("&'Risk Analysis'!$C$25*100&"% or $"&TEXT(ROUND('Risk Analysis'!F25/100,2),"0.00")&"/lb)" -> Price (5% or $0.32/lb) | B93: =B90 -> 1874.093408 | C93: ='Risk Analysis'!H25 -> 184.250125
A94: Cost & Production | B94: =B90 -> 1874.093408 | C94: =C91+C92 -> 247.575092
A95: Cost, Production & Price | B95: =B90 -> 1874.093408 | C95: =C91+C92+C93 -> 431.825217
A126: 2021 Beef Cow Calf - Cumulative, Multiplicative, Compounding Effects: Change to Margin Over Operating & Fixed Costs
B127: Base Margin
C128: Change | K128: ="Market prices of $"&ROUND(Summary!D138,0)&"/cwt and lower do not cover both operating and fixed costs. This can indicate the potential need for WLPIP coverage and is an important step in Risk Management Planning)." -> Market prices of $0/cwt and lower do not cover both operating and fixed costs. This can indicate the potential need for WLPIP coverage and is an important step in Risk Management Planning).
A129: Baseline | B129: =Summary!F53 -> 1874.093408
A130: ="Cost ("&'Risk Analysis'!$C$24*100&"%)" -> Cost (-5%) | B130: =B129 -> 1874.093408 | C130: ='Risk Analysis'!H24 -> 63.32496701
A131: ="Production ("&'Risk Analysis'!$C$26*100&"% Weaning Weight)" -> Production (5% Weaning Weight) | B131: =B129 -> 1874.093408 | C131: ='Risk Analysis'!H26 -> 184.250125
A132: ="Production ("&'Risk Analysis'!$C$27*100&"% Calf Crop)" -> Production (1% Calf Crop) | B132: =B129 -> 1874.093408 | C132: ='Risk Analysis'!H27 -> 36.850025
A133: ="Price ("&'Risk Analysis'!$C$25*100&"% or $"&TEXT(ROUND('Risk Analysis'!F25/100,2),"0.00")&"/lb)" -> Price (5% or $0.32/lb) | B133: =B129 -> 1874.093408 | C133: ='Risk Analysis'!H25 -> 184.250125
A134: Cost & Production | B134: =B129 -> 1874.093408 | C134: =C130+C131+C132 -> 284.425117
A135: Cost, Production & Price | B135: =B129 -> 1874.093408 | C135: =C130+C131+C133+C132 -> 468.675242
A174: equity | B174: 1 | C174: =SUM(B174-0.05) -> 0.95 | D174: 0.9 | E174: 0.85 | F174: 0.8 | G174: 0.75 | H174: 0.7 | I174: 0.65 | J174: 0.6 | K174: 0.55 | L174: 0.5
A175: financed | B175: =SUM(1-B174) -> 0 | C175: 0.05 | D175: 0.1 | E175: 0.15 | F175: 0.2 | G175: 0.25 | H175: 0.3 | I175: 0.35 | J175: 0.4 | K175: 0.45 | L175: 0.5
A178: Debt Summary | B178: $/cow
A179: Cows | B179: =(Fixed!$D$4*B175) -> 0 | C179: =(Fixed!$D$4*C175) -> 250 | D179: =(Fixed!$D$4*D175) -> 500 | E179: =(Fixed!$D$4*E175) -> 750 | F179: =(Fixed!$D$4*F175) -> 1000 | G179: =(Fixed!$D$4*G175) -> 1250 | H179: =(Fixed!$D$4*H175) -> 1500 | I179: =(Fixed!$D$4*I175) -> 1750 | J179: =(Fixed!$D$4*J175) -> 2000 | K179: =(Fixed!$D$4*K175) -> 2250 | L179: =(Fixed!$D$4*L175) -> 2500
A180: Marginal Pasture Land | B180: =SUM(Fixed!$D$16*B175*Fixed!$D$17)/Input!$E$13 -> 0 | C180: =SUM(Fixed!$D$16*C175*Fixed!$D$17)/Input!$E$13 -> 100 | D180: =SUM(Fixed!$D$16*D175*Fixed!$D$17)/Input!$E$13 -> 200 | E180: =SUM(Fixed!$D$16*E175*Fixed!$D$17)/Input!$E$13 -> 300 | F180: =SUM(Fixed!$D$16*F175*Fixed!$D$17)/Input!$E$13 -> 400 | G180: =SUM(Fixed!$D$16*G175*Fixed!$D$17)/Input!$E$13 -> 500 | H180: =SUM(Fixed!$D$16*H175*Fixed!$D$17)/Input!$E$13 -> 600 | I180: =SUM(Fixed!$D$16*I175*Fixed!$D$17)/Input!$E$13 -> 700 | J180: =SUM(Fixed!$D$16*J175*Fixed!$D$17)/Input!$E$13 -> 800 | K180: =SUM(Fixed!$D$16*K175*Fixed!$D$17)/Input!$E$13 -> 900 | L180: =SUM(Fixed!$D$16*L175*Fixed!$D$17)/Input!$E$13 -> 1000
A181: Improved Pasture Land | B181: =SUM(Fixed!$D$30*B175*Fixed!$D$31)/Input!$E$13 -> 0 | C181: =SUM(Fixed!$D$30*C175*Fixed!$D$31)/Input!$E$13 -> 34.06666667 | D181: =SUM(Fixed!$D$30*D175*Fixed!$D$31)/Input!$E$13 -> 68.13333333 | E181: =SUM(Fixed!$D$30*E175*Fixed!$D$31)/Input!$E$13 -> 102.2 | F181: =SUM(Fixed!$D$30*F175*Fixed!$D$31)/Input!$E$13 -> 136.2666667 | G181: =SUM(Fixed!$D$30*G175*Fixed!$D$31)/Input!$E$13 -> 170.3333333 | H181: =SUM(Fixed!$D$30*H175*Fixed!$D$31)/Input!$E$13 -> 204.4 | I181: =SUM(Fixed!$D$30*I175*Fixed!$D$31)/Input!$E$13 -> 238.4666667 | J181: =SUM(Fixed!$D$30*J175*Fixed!$D$31)/Input!$E$13 -> 272.5333333 | K181: =SUM(Fixed!$D$30*K175*Fixed!$D$31)/Input!$E$13 -> 306.6 | L181: =SUM(Fixed!$D$30*L175*Fixed!$D$31)/Input!$E$13 -> 340.6666667
A182: Machinery & Equipment | B182: =(Fixed!$I$4*B175) -> 0 | C182: =(Fixed!$I$4*C175) -> 56.25 | D182: =(Fixed!$I$4*D175) -> 112.5 | E182: =(Fixed!$I$4*E175) -> 168.75 | F182: =(Fixed!$I$4*F175) -> 225 | G182: =(Fixed!$I$4*G175) -> 281.25 | H182: =(Fixed!$I$4*H175) -> 337.5 | I182: =(Fixed!$I$4*I175) -> 393.75 | J182: =(Fixed!$I$4*J175) -> 450 | K182: =(Fixed!$I$4*K175) -> 506.25 | L182: =(Fixed!$I$4*L175) -> 562.5
A183: Fencing | B183: =Fixed!$I$32*B175 -> 0 | C183: =Fixed!$I$32*C175 -> 10.42196667 | D183: =Fixed!$I$32*D175 -> 20.84393333 | E183: =Fixed!$I$32*E175 -> 31.2659 | F183: =Fixed!$I$32*F175 -> 41.68786667 | G183: =Fixed!$I$32*G175 -> 52.10983333 | H183: =Fixed!$I$32*H175 -> 62.5318 | I183: =Fixed!$I$32*I175 -> 72.95376667 | J183: =Fixed!$I$32*J175 -> 83.37573333 | K183: =Fixed!$I$32*K175 -> 93.7977 | L183: =Fixed!$I$32*L175 -> 104.2196667
A184: Buildings & Facilities | B184: =(Fixed!$I$18*B175) -> 0 | C184: =(Fixed!$I$18*C175) -> 17.85 | D184: =(Fixed!$I$18*D175) -> 35.7 | E184: =(Fixed!$I$18*E175) -> 53.55 | F184: =(Fixed!$I$18*F175) -> 71.4 | G184: =(Fixed!$I$18*G175) -> 89.25 | H184: =(Fixed!$I$18*H175) -> 107.1 | I184: =(Fixed!$I$18*I175) -> 124.95 | J184: =(Fixed!$I$18*J175) -> 142.8 | K184: =(Fixed!$I$18*K175) -> 160.65 | L184: =(Fixed!$I$18*L175) -> 178.5
A185: Total Debt Per Cow | B185: =SUM(B179:B184) -> 0 | C185: 468.5886333 | D185: 937.1772667 | E185: 1405.7659 | F185: 1874.354533 | G185: 2342.943167 | H185: 2811.5318 | I185: 3280.120433 | J185: 3748.709067 | K185: 4217.2977 | L185: 4685.886333
A187: Gross Revenue | B187: =Summary!F46 -> 3500.752375 | C187: =$B$187 -> 3500.752375 | D187: 3500.752375 | E187: 3500.752375 | F187: 3500.752375 | G187: 3500.752375 | H187: 3500.752375 | I187: 3500.752375 | J187: 3500.752375 | K187: 3500.752375 | L187: 3500.752375
A189: Total Operating Costs | B189: =Summary!F29 -> 1266.49934 | C189: =$B$189 -> 1266.49934 | D189: 1266.49934 | E189: 1266.49934 | F189: 1266.49934 | G189: 1266.49934 | H189: 1266.49934 | I189: 1266.49934 | J189: 1266.49934 | K189: 1266.49934 | L189: 1266.49934
A191: Total Fixed Costs | B191: =SUM(B192:B197) -> 113.65977 | C191: 184.3576882 | D191: 255.0556063 | E191: 325.7535245 | F191: 396.4514427 | G191: 467.1493609 | H191: 537.847279 | I191: 608.5451972 | J191: 679.2431154 | K191: 749.9410335 | L191: 820.6389517
A192: Cows | B192: =-PMT(Fixed!$C$9,Fixed!$D$9,Fixed!$D$4*B175,0)+SUM(Fixed!$D$4*B174)*(Fixed!$D$7) -> 0 | C192: =-PMT(Fixed!$C$9,Fixed!$D$9,Fixed!$D$4*C175,0)+SUM(Fixed!$D$4*C174)*(Fixed!$D$7) -> 45.18249763 | D192: =-PMT(Fixed!$C$9,Fixed!$D$9,Fixed!$D$4*D175,0)+SUM(Fixed!$D$4*D174)*(Fixed!$D$7) -> 90.36499526 | E192: =-PMT(Fixed!$C$9,Fixed!$D$9,Fixed!$D$4*E175,0)+SUM(Fixed!$D$4*E174)*(Fixed!$D$7) -> 135.5474929 | F192: =-PMT(Fixed!$C$9,Fixed!$D$9,Fixed!$D$4*F175,0)+SUM(Fixed!$D$4*F174)*(Fixed!$D$7) -> 180.7299905 | G192: =-PMT(Fixed!$C$9,Fixed!$D$9,Fixed!$D$4*G175,0)+SUM(Fixed!$D$4*G174)*(Fixed!$D$7) -> 225.9124881 | H192: =-PMT(Fixed!$C$9,Fixed!$D$9,Fixed!$D$4*H175,0)+SUM(Fixed!$D$4*H174)*(Fixed!$D$7) -> 271.0949858 | I192: =-PMT(Fixed!$C$9,Fixed!$D$9,Fixed!$D$4*I175,0)+SUM(Fixed!$D$4*I174)*(Fixed!$D$7) -> 316.2774834 | J192: =-PMT(Fixed!$C$9,Fixed!$D$9,Fixed!$D$4*J175,0)+SUM(Fixed!$D$4*J174)*(Fixed!$D$7) -> 361.459981 | K192: =-PMT(Fixed!$C$9,Fixed!$D$9,Fixed!$D$4*K175,0)+SUM(Fixed!$D$4*K174)*(Fixed!$D$7) -> 406.6424787 | L192: =-PMT(Fixed!$C$9,Fixed!$D$9,Fixed!$D$4*L175,0)+SUM(Fixed!$D$4*L174)*(Fixed!$D$7) -> 451.8249763
A193: Marginal Pasture Land | B193: =(-PMT(Fixed!$C$22,Fixed!$D$22,Fixed!$D$16*Fixed!$D$17*B175,0)+SUM(Fixed!$D$16*Fixed!$D$17*B174)*(Fixed!$D$20))/Input!$E$13 -> 0 | C193: =(-PMT(Fixed!$C$22,Fixed!$D$22,Fixed!$D$16*Fixed!$D$17*C175,0)+SUM(Fixed!$D$16*Fixed!$D$17*C174)*(Fixed!$D$20))/Input!$E$13 -> 7.637816739 | D193: =(-PMT(Fixed!$C$22,Fixed!$D$22,Fixed!$D$16*Fixed!$D$17*D175,0)+SUM(Fixed!$D$16*Fixed!$D$17*D174)*(Fixed!$D$20))/Input!$E$13 -> 15.27563348 | E193: =(-PMT(Fixed!$C$22,Fixed!$D$22,Fixed!$D$16*Fixed!$D$17*E175,0)+SUM(Fixed!$D$16*Fixed!$D$17*E174)*(Fixed!$D$20))/Input!$E$13 -> 22.91345022 | F193: =(-PMT(Fixed!$C$22,Fixed!$D$22,Fixed!$D$16*Fixed!$D$17*F175,0)+SUM(Fixed!$D$16*Fixed!$D$17*F174)*(Fixed!$D$20))/Input!$E$13 -> 30.55126696 | G193: =(-PMT(Fixed!$C$22,Fixed!$D$22,Fixed!$D$16*Fixed!$D$17*G175,0)+SUM(Fixed!$D$16*Fixed!$D$17*G174)*(Fixed!$D$20))/Input!$E$13 -> 38.18908369 | H193: =(-PMT(Fixed!$C$22,Fixed!$D$22,Fixed!$D$16*Fixed!$D$17*H175,0)+SUM(Fixed!$D$16*Fixed!$D$17*H174)*(Fixed!$D$20))/Input!$E$13 -> 45.82690043 | I193: =(-PMT(Fixed!$C$22,Fixed!$D$22,Fixed!$D$16*Fixed!$D$17*I175,0)+SUM(Fixed!$D$16*Fixed!$D$17*I174)*(Fixed!$D$20))/Input!$E$13 -> 53.46471717 | J193: =(-PMT(Fixed!$C$22,Fixed!$D$22,Fixed!$D$16*Fixed!$D$17*J175,0)+SUM(Fixed!$D$16*Fixed!$D$17*J174)*(Fixed!$D$20))/Input!$E$13 -> 61.10253391 | K193: =(-PMT(Fixed!$C$22,Fixed!$D$22,Fixed!$D$16*Fixed!$D$17*K175,0)+SUM(Fixed!$D$16*Fixed!$D$17*K174)*(Fixed!$D$20))/Input!$E$13 -> 68.74035065 | L193: =(-PMT(Fixed!$C$22,Fixed!$D$22,Fixed!$D$16*Fixed!$D$17*L175,0)+SUM(Fixed!$D$16*Fixed!$D$17*L174)*(Fixed!$D$20))/Input!$E$13 -> 76.37816739
A194: Improved Pasture Land | B194: =(-PMT(Fixed!$C$36,Fixed!$D$36,Fixed!$D$30*Fixed!$D$31*B175,0)+SUM(Fixed!$D$30*Fixed!$D$31*B174)*(Fixed!$D$34))/Input!$E$13 -> 0 | C194: =(-PMT(Fixed!$C$36,Fixed!$D$36,Fixed!$D$30*Fixed!$D$31*C175,0)+SUM(Fixed!$D$30*Fixed!$D$31*C174)*(Fixed!$D$34))/Input!$E$13 -> 2.601949569 | D194: =(-PMT(Fixed!$C$36,Fixed!$D$36,Fixed!$D$30*Fixed!$D$31*D175,0)+SUM(Fixed!$D$30*Fixed!$D$31*D174)*(Fixed!$D$34))/Input!$E$13 -> 5.203899138 | E194: =(-PMT(Fixed!$C$36,Fixed!$D$36,Fixed!$D$30*Fixed!$D$31*E175,0)+SUM(Fixed!$D$30*Fixed!$D$31*E174)*(Fixed!$D$34))/Input!$E$13 -> 7.805848707 | F194: =(-PMT(Fixed!$C$36,Fixed!$D$36,Fixed!$D$30*Fixed!$D$31*F175,0)+SUM(Fixed!$D$30*Fixed!$D$31*F174)*(Fixed!$D$34))/Input!$E$13 -> 10.40779828 | G194: =(-PMT(Fixed!$C$36,Fixed!$D$36,Fixed!$D$30*Fixed!$D$31*G175,0)+SUM(Fixed!$D$30*Fixed!$D$31*G174)*(Fixed!$D$34))/Input!$E$13 -> 13.00974785 | H194: =(-PMT(Fixed!$C$36,Fixed!$D$36,Fixed!$D$30*Fixed!$D$31*H175,0)+SUM(Fixed!$D$30*Fixed!$D$31*H174)*(Fixed!$D$34))/Input!$E$13 -> 15.61169741 | I194: =(-PMT(Fixed!$C$36,Fixed!$D$36,Fixed!$D$30*Fixed!$D$31*I175,0)+SUM(Fixed!$D$30*Fixed!$D$31*I174)*(Fixed!$D$34))/Input!$E$13 -> 18.21364698 | J194: =(-PMT(Fixed!$C$36,Fixed!$D$36,Fixed!$D$30*Fixed!$D$31*J175,0)+SUM(Fixed!$D$30*Fixed!$D$31*J174)*(Fixed!$D$34))/Input!$E$13 -> 20.81559655 | K194: =(-PMT(Fixed!$C$36,Fixed!$D$36,Fixed!$D$30*Fixed!$D$31*K175,0)+SUM(Fixed!$D$30*Fixed!$D$31*K174)*(Fixed!$D$34))/Input!$E$13 -> 23.41754612 | L194: =(-PMT(Fixed!$C$36,Fixed!$D$36,Fixed!$D$30*Fixed!$D$31*L175,0)+SUM(Fixed!$D$30*Fixed!$D$31*L174)*(Fixed!$D$34))/Input!$E$13 -> 26.01949569
A195: Machinery & Equipment | B195: =-PMT(Fixed!$H$11,Fixed!$I$11,Fixed!$I$4*B175,0)+((Fixed!$I$4-(Fixed!$I$4*Fixed!$I$5))/Fixed!$I$6)+(SUM(Fixed!$I$4*B174)*(Fixed!$I$9)) -> 90 | C195: =-PMT(Fixed!$H$11,Fixed!$I$11,Fixed!$I$4*C175,0)+((Fixed!$I$4-(Fixed!$I$4*Fixed!$I$5))/Fixed!$I$6)+(SUM(Fixed!$I$4*C174)*(Fixed!$I$9)) -> 100.166062 | D195: =-PMT(Fixed!$H$11,Fixed!$I$11,Fixed!$I$4*D175,0)+((Fixed!$I$4-(Fixed!$I$4*Fixed!$I$5))/Fixed!$I$6)+(SUM(Fixed!$I$4*D174)*(Fixed!$I$9)) -> 110.3321239 | E195: =-PMT(Fixed!$H$11,Fixed!$I$11,Fixed!$I$4*E175,0)+((Fixed!$I$4-(Fixed!$I$4*Fixed!$I$5))/Fixed!$I$6)+(SUM(Fixed!$I$4*E174)*(Fixed!$I$9)) -> 120.4981859 | F195: =-PMT(Fixed!$H$11,Fixed!$I$11,Fixed!$I$4*F175,0)+((Fixed!$I$4-(Fixed!$I$4*Fixed!$I$5))/Fixed!$I$6)+(SUM(Fixed!$I$4*F174)*(Fixed!$I$9)) -> 130.6642479 | G195: =-PMT(Fixed!$H$11,Fixed!$I$11,Fixed!$I$4*G175,0)+((Fixed!$I$4-(Fixed!$I$4*Fixed!$I$5))/Fixed!$I$6)+(SUM(Fixed!$I$4*G174)*(Fixed!$I$9)) -> 140.8303098 | H195: =-PMT(Fixed!$H$11,Fixed!$I$11,Fixed!$I$4*H175,0)+((Fixed!$I$4-(Fixed!$I$4*Fixed!$I$5))/Fixed!$I$6)+(SUM(Fixed!$I$4*H174)*(Fixed!$I$9)) -> 150.9963718 | I195: =-PMT(Fixed!$H$11,Fixed!$I$11,Fixed!$I$4*I175,0)+((Fixed!$I$4-(Fixed!$I$4*Fixed!$I$5))/Fixed!$I$6)+(SUM(Fixed!$I$4*I174)*(Fixed!$I$9)) -> 161.1624338 | J195: =-PMT(Fixed!$H$11,Fixed!$I$11,Fixed!$I$4*J175,0)+((Fixed!$I$4-(Fixed!$I$4*Fixed!$I$5))/Fixed!$I$6)+(SUM(Fixed!$I$4*J174)*(Fixed!$I$9)) -> 171.3284957 | K195: =-PMT(Fixed!$H$11,Fixed!$I$11,Fixed!$I$4*K175,0)+((Fixed!$I$4-(Fixed!$I$4*Fixed!$I$5))/Fixed!$I$6)+(SUM(Fixed!$I$4*K174)*(Fixed!$I$9)) -> 181.4945577 | L195: =-PMT(Fixed!$H$11,Fixed!$I$11,Fixed!$I$4*L175,0)+((Fixed!$I$4-(Fixed!$I$4*Fixed!$I$5))/Fixed!$I$6)+(SUM(Fixed!$I$4*L174)*(Fixed!$I$9)) -> 191.6606197
A196: Fencing | B196: =-PMT(Fixed!$H$39,Fixed!$I$39,Fixed!$I$32*B175,0)+((Fixed!$I$32-(Fixed!$I$32*Fixed!$I$33))/Fixed!$I$34)+(SUM(Fixed!$I$32*B174)*(Fixed!$I$37)) -> 9.37977 | C196: =-PMT(Fixed!$H$39,Fixed!$I$39,Fixed!$I$32*C175,0)+((Fixed!$I$32-(Fixed!$I$32*Fixed!$I$33))/Fixed!$I$34)+(SUM(Fixed!$I$32*C174)*(Fixed!$I$37)) -> 11.26333194 | D196: =-PMT(Fixed!$H$39,Fixed!$I$39,Fixed!$I$32*D175,0)+((Fixed!$I$32-(Fixed!$I$32*Fixed!$I$33))/Fixed!$I$34)+(SUM(Fixed!$I$32*D174)*(Fixed!$I$37)) -> 13.14689387 | E196: =-PMT(Fixed!$H$39,Fixed!$I$39,Fixed!$I$32*E175,0)+((Fixed!$I$32-(Fixed!$I$32*Fixed!$I$33))/Fixed!$I$34)+(SUM(Fixed!$I$32*E174)*(Fixed!$I$37)) -> 15.03045581 | F196: =-PMT(Fixed!$H$39,Fixed!$I$39,Fixed!$I$32*F175,0)+((Fixed!$I$32-(Fixed!$I$32*Fixed!$I$33))/Fixed!$I$34)+(SUM(Fixed!$I$32*F174)*(Fixed!$I$37)) -> 16.91401775 | G196: =-PMT(Fixed!$H$39,Fixed!$I$39,Fixed!$I$32*G175,0)+((Fixed!$I$32-(Fixed!$I$32*Fixed!$I$33))/Fixed!$I$34)+(SUM(Fixed!$I$32*G174)*(Fixed!$I$37)) -> 18.79757968 | H196: =-PMT(Fixed!$H$39,Fixed!$I$39,Fixed!$I$32*H175,0)+((Fixed!$I$32-(Fixed!$I$32*Fixed!$I$33))/Fixed!$I$34)+(SUM(Fixed!$I$32*H174)*(Fixed!$I$37)) -> 20.68114162 | I196: =-PMT(Fixed!$H$39,Fixed!$I$39,Fixed!$I$32*I175,0)+((Fixed!$I$32-(Fixed!$I$32*Fixed!$I$33))/Fixed!$I$34)+(SUM(Fixed!$I$32*I174)*(Fixed!$I$37)) -> 22.56470356 | J196: =-PMT(Fixed!$H$39,Fixed!$I$39,Fixed!$I$32*J175,0)+((Fixed!$I$32-(Fixed!$I$32*Fixed!$I$33))/Fixed!$I$34)+(SUM(Fixed!$I$32*J174)*(Fixed!$I$37)) -> 24.44826549 | K196: =-PMT(Fixed!$H$39,Fixed!$I$39,Fixed!$I$32*K175,0)+((Fixed!$I$32-(Fixed!$I$32*Fixed!$I$33))/Fixed!$I$34)+(SUM(Fixed!$I$32*K174)*(Fixed!$I$37)) -> 26.33182743 | L196: =-PMT(Fixed!$H$39,Fixed!$I$39,Fixed!$I$32*L175,0)+((Fixed!$I$32-(Fixed!$I$32*Fixed!$I$33))/Fixed!$I$34)+(SUM(Fixed!$I$32*L174)*(Fixed!$I$37)) -> 28.21538937
A197: Buildings & Facilities | B197: =-PMT(Fixed!$H$25,Fixed!$I$25,Fixed!$I$18*B175,0)+((Fixed!$I$18-(Fixed!$I$18*Fixed!$I$19))/Fixed!$I$20)+(SUM(Fixed!$I$18*B174)*(Fixed!$I$23)) -> 14.28 | C197: =-PMT(Fixed!$H$25,Fixed!$I$25,Fixed!$I$18*C175,0)+((Fixed!$I$18-(Fixed!$I$18*Fixed!$I$19))/Fixed!$I$20)+(SUM(Fixed!$I$18*C174)*(Fixed!$I$23)) -> 17.50603033 | D197: =-PMT(Fixed!$H$25,Fixed!$I$25,Fixed!$I$18*D175,0)+((Fixed!$I$18-(Fixed!$I$18*Fixed!$I$19))/Fixed!$I$20)+(SUM(Fixed!$I$18*D174)*(Fixed!$I$23)) -> 20.73206066 | E197: =-PMT(Fixed!$H$25,Fixed!$I$25,Fixed!$I$18*E175,0)+((Fixed!$I$18-(Fixed!$I$18*Fixed!$I$19))/Fixed!$I$20)+(SUM(Fixed!$I$18*E174)*(Fixed!$I$23)) -> 23.95809099 | F197: =-PMT(Fixed!$H$25,Fixed!$I$25,Fixed!$I$18*F175,0)+((Fixed!$I$18-(Fixed!$I$18*Fixed!$I$19))/Fixed!$I$20)+(SUM(Fixed!$I$18*F174)*(Fixed!$I$23)) -> 27.18412132 | G197: =-PMT(Fixed!$H$25,Fixed!$I$25,Fixed!$I$18*G175,0)+((Fixed!$I$18-(Fixed!$I$18*Fixed!$I$19))/Fixed!$I$20)+(SUM(Fixed!$I$18*G174)*(Fixed!$I$23)) -> 30.41015165 | H197: =-PMT(Fixed!$H$25,Fixed!$I$25,Fixed!$I$18*H175,0)+((Fixed!$I$18-(Fixed!$I$18*Fixed!$I$19))/Fixed!$I$20)+(SUM(Fixed!$I$18*H174)*(Fixed!$I$23)) -> 33.63618198 | I197: =-PMT(Fixed!$H$25,Fixed!$I$25,Fixed!$I$18*I175,0)+((Fixed!$I$18-(Fixed!$I$18*Fixed!$I$19))/Fixed!$I$20)+(SUM(Fixed!$I$18*I174)*(Fixed!$I$23)) -> 36.86221231 | J197: =-PMT(Fixed!$H$25,Fixed!$I$25,Fixed!$I$18*J175,0)+((Fixed!$I$18-(Fixed!$I$18*Fixed!$I$19))/Fixed!$I$20)+(SUM(Fixed!$I$18*J174)*(Fixed!$I$23)) -> 40.08824265 | K197: =-PMT(Fixed!$H$25,Fixed!$I$25,Fixed!$I$18*K175,0)+((Fixed!$I$18-(Fixed!$I$18*Fixed!$I$19))/Fixed!$I$20)+(SUM(Fixed!$I$18*K174)*(Fixed!$I$23)) -> 43.31427298 | L197: =-PMT(Fixed!$H$25,Fixed!$I$25,Fixed!$I$18*L175,0)+((Fixed!$I$18-(Fixed!$I$18*Fixed!$I$19))/Fixed!$I$20)+(SUM(Fixed!$I$18*L174)*(Fixed!$I$23)) -> 46.54030331
A199: C. Labour - Owners Living | B199: =Summary!F38 -> 168 | C199: =$B$199 -> 168 | D199: 168 | E199: 168 | F199: 168 | G199: 168 | H199: 168 | I199: 168 | J199: 168 | K199: 168 | L199: 168
A200: Profit
A201: over op & fixed | B201: =SUM(B187-B189-B191) -> 2120.593265 | C201: 2049.895347 | D201: 1979.197428 | E201: 1908.49951 | F201: 1837.801592 | G201: 1767.103674 | H201: 1696.405756 | I201: 1625.707838 | J201: 1555.009919 | K201: 1484.312001 | L201: 1413.614083
A202: over total costs | B202: =SUM(B187-B189-B191-B199) -> 1952.593265 | C202: 1881.895347 | D202: 1811.197428 | E202: 1740.49951 | F202: 1669.801592 | G202: 1599.103674 | H202: 1528.405756 | I202: 1457.707838 | J202: 1387.009919 | K202: 1316.312001 | L202: 1245.614083
B204: =TEXT(B185,"$0")&" ("&B174*100&"%)" -> $0 (100%) | C204: $469 (95%) | D204: $937 (90%) | E204: $1406 (85%) | F204: $1874 (80%) | G204: $2343 (75%) | H204: $2812 (70%) | I204: $3280 (65%) | J204: $3749 (60%) | K204: $4217 (55%) | L204: $4686 (50%)
A208: =Input!E13&" Head Beef Cow Calf - Profitability vs. Debt per Cow" -> 300 Head Beef Cow Calf - Profitability vs. Debt per Cow
C209: Debt/Cow | D209: Profit (over Operating & Fixed Costs) | E209: Profit (over Total Costs) | F209: Total Fixed Costs
A210: =B204 -> $0 (100%) | B210: =B$174 -> 1 | C210: =B$185 -> 0 | D210: =B$201 -> 2120.593265 | E210: =B$202 -> 1952.593265 | F210: =B$191 -> 113.65977
A211: =C204 -> $469 (95%) | B211: =C$174 -> 0.95 | C211: =C$185 -> 468.5886333 | D211: =C$201 -> 2049.895347 | E211: =C$202 -> 1881.895347 | F211: =C$191 -> 184.3576882
A212: =D204 -> $937 (90%) | B212: =D$174 -> 0.9 | C212: =D$185 -> 937.1772667 | D212: =D$201 -> 1979.197428 | E212: =D$202 -> 1811.197428 | F212: =D$191 -> 255.0556063
A213: =E204 -> $1406 (85%) | B213: =E$174 -> 0.85 | C213: =E$185 -> 1405.7659 | D213: =E$201 -> 1908.49951 | E213: =E$202 -> 1740.49951 | F213: =E$191 -> 325.7535245
A214: =F204 -> $1874 (80%) | B214: =F$174 -> 0.8 | C214: =F$185 -> 1874.354533 | D214: =F$201 -> 1837.801592 | E214: =F$202 -> 1669.801592 | F214: =F$191 -> 396.4514427
A215: =G204 -> $2343 (75%) | B215: =G$174 -> 0.75 | C215: =G$185 -> 2342.943167 | D215: =G$201 -> 1767.103674 | E215: =G$202 -> 1599.103674 | F215: =G$191 -> 467.1493609
A216: =H204 -> $2812 (70%) | B216: =H$174 -> 0.7 | C216: =H$185 -> 2811.5318 | D216: =H$201 -> 1696.405756 | E216: =H$202 -> 1528.405756 | F216: =H$191 -> 537.847279
A217: =I204 -> $3280 (65%) | B217: =I$174 -> 0.65 | C217: =I$185 -> 3280.120433 | D217: =I$201 -> 1625.707838 | E217: =I$202 -> 1457.707838 | F217: =I$191 -> 608.5451972
A218: =J204 -> $3749 (60%) | B218: =J$174 -> 0.6 | C218: =J$185 -> 3748.709067 | D218: =J$201 -> 1555.009919 | E218: =J$202 -> 1387.009919 | F218: =J$191 -> 679.2431154
A219: =K204 -> $4217 (55%) | B219: =K$174 -> 0.55 | C219: =K$185 -> 4217.2977 | D219: =K$201 -> 1484.312001 | E219: =K$202 -> 1316.312001 | F219: =K$191 -> 749.9410335
A220: =L204 -> $4686 (50%) | B220: =L$174 -> 0.5 | C220: =L$185 -> 4685.886333 | D220: =L$201 -> 1413.614083 | E220: =L$202 -> 1245.614083 | F220: =L$191 -> 820.6389517
A230: =Input!E13&" Head Beef - Debt per Cow ("&TEXT(B238,"$0")&"/cow @ "&ROUND(Details!I26*100,0)&"% Equity)" -> 300 Head Beef - Debt per Cow ($1751/cow @ 82% Equity)
A231: Debt Summary | B231: $/cow | C231: Total
A232: Cows | B232: =Details!I12 -> 750 | C232: =Details!J12 -> 225000
A233: Marginal Pasture Land | B233: =Details!I13 -> 500 | C233: =Details!J13 -> 150000
A234: Improved Pasture Land | B234: =Details!I14 -> 170.3333333 | C234: =Details!J14 -> 51100
A235: Machinery & Equipment | B235: =Details!I15 -> 225 | C235: =Details!J15 -> 67500
A236: Fencing | B236: =Details!I16 -> 52.10983333 | C236: =Details!J16 -> 15632.95
A237: Buildings & Facilities | B237: =Details!I17 -> 53.55 | C237: =Details!J17 -> 16065
A238: Total Debt | B238: =SUM(B232:B237) -> 1750.993167 | C238: =SUM(C232:C237) -> 525297.95
A241: ="Managing total debt per cow is a important step to maintain profitability in a cow calf production enterprise. Total Principle & Interest Cost = $"&ROUND(Fixed!D41,0)&"/cow." -> Managing total debt per cow is a important step to maintain profitability in a cow calf production enterprise. Total Principle & Interest Cost = $253/cow.
B250: ="What Can you Profitably Pay for Cows? ("&Fixed!D6*100&"% financed)" -> What Can you Profitably Pay for Cows? (15% financed)
C251: Purchase Price (over Operating & Fixed costs) | G251: Purchase Price (over Total Costs)
B252: Target Profit/Cow | C252: Cow PMT | D252: Loan Value | E252: Cow | G252: Cow PMT | H252: Loan Value | I252: Cow | J252: gross | K252: op cost | M252: Pasture | N252: Machinery & Equipment | O252: Buildings & Facilities | R252: Labour-Owner Living
B253: 75 | C253: =SUM($J$256-B253-$K$256-$M$256-$N$256-$O$256) -> 1934.6409 | D253: =-PV(Fixed!$C$9,Fixed!$D$9,SUM(C253-((Fixed!$D$4*Fixed!$D$5)*(Fixed!$D$7)))) -> 10704.5925 | E253: =SUM(D253+(Fixed!$D$4*Fixed!$D$5)) -> 14954.5925 | G253: =SUM($J$256-B253-$K$256-$M$256-$N$256-$O$256-$R$256) -> 1766.6409 | H253: =-PV(Fixed!$C$9,Fixed!$D$9,SUM(G253-((Fixed!$D$4*Fixed!$D$5)*(Fixed!$D$7)))) -> 9775.029011 | I253: =SUM(H253+(Fixed!$D$4*Fixed!$D$5)) -> 14025.02901
B254: 50 | C254: 1959.6409 | D254: =-PV(Fixed!$C$9,Fixed!$D$9,SUM(C254-((Fixed!$D$4*Fixed!$D$5)*(Fixed!$D$7)))) -> 10842.9204 | E254: =SUM(D254+(Fixed!$D$4*Fixed!$D$5)) -> 15092.9204 | G254: 1791.6409 | H254: =-PV(Fixed!$C$9,Fixed!$D$9,SUM(G254-((Fixed!$D$4*Fixed!$D$5)*(Fixed!$D$7)))) -> 9913.356911 | I254: =SUM(H254+(Fixed!$D$4*Fixed!$D$5)) -> 14163.35691
B255: 25 | C255: 1984.6409 | D255: =-PV(Fixed!$C$9,Fixed!$D$9,SUM(C255-((Fixed!$D$4*Fixed!$D$5)*(Fixed!$D$7)))) -> 10981.2483 | E255: =SUM(D255+(Fixed!$D$4*Fixed!$D$5)) -> 15231.2483 | G255: 1816.6409 | H255: =-PV(Fixed!$C$9,Fixed!$D$9,SUM(G255-((Fixed!$D$4*Fixed!$D$5)*(Fixed!$D$7)))) -> 10051.68481 | I255: =SUM(H255+(Fixed!$D$4*Fixed!$D$5)) -> 14301.68481
B256: 0 | C256: 2009.6409 | D256: =-PV(Fixed!$C$9,Fixed!$D$9,SUM(C256-((Fixed!$D$4*Fixed!$D$5)*(Fixed!$D$7)))) -> 11119.5762 | E256: =SUM(D256+(Fixed!$D$4*Fixed!$D$5)) -> 15369.5762 | G256: 1841.6409 | H256: =-PV(Fixed!$C$9,Fixed!$D$9,SUM(G256-((Fixed!$D$4*Fixed!$D$5)*(Fixed!$D$7)))) -> 10190.01271 | I256: =SUM(H256+(Fixed!$D$4*Fixed!$D$5)) -> 14440.01271 | J256: =Summary!F46 -> 3500.752375 | K256: =Summary!F29 -> 1266.49934 | M256: =Summary!F35 -> 69.98979541 | N256: =Summary!F34 -> 130.6642479 | O256: =Summary!F33 -> 23.95809099 | R256: =Summary!F38 -> 168
B257: -25 | C257: 2034.6409 | D257: =-PV(Fixed!$C$9,Fixed!$D$9,SUM(C257-((Fixed!$D$4*Fixed!$D$5)*(Fixed!$D$7)))) -> 11257.9041 | E257: =SUM(D257+(Fixed!$D$4*Fixed!$D$5)) -> 15507.9041 | G257: 1866.6409 | H257: =-PV(Fixed!$C$9,Fixed!$D$9,SUM(G257-((Fixed!$D$4*Fixed!$D$5)*(Fixed!$D$7)))) -> 10328.34061 | I257: =SUM(H257+(Fixed!$D$4*Fixed!$D$5)) -> 14578.34061
B258: -50 | C258: 2059.6409 | D258: =-PV(Fixed!$C$9,Fixed!$D$9,SUM(C258-((Fixed!$D$4*Fixed!$D$5)*(Fixed!$D$7)))) -> 11396.232 | E258: =SUM(D258+(Fixed!$D$4*Fixed!$D$5)) -> 15646.232 | G258: 1891.6409 | H258: =-PV(Fixed!$C$9,Fixed!$D$9,SUM(G258-((Fixed!$D$4*Fixed!$D$5)*(Fixed!$D$7)))) -> 10466.66851 | I258: =SUM(H258+(Fixed!$D$4*Fixed!$D$5)) -> 14716.66851
B259: -75 | C259: 2084.6409 | D259: =-PV(Fixed!$C$9,Fixed!$D$9,SUM(C259-((Fixed!$D$4*Fixed!$D$5)*(Fixed!$D$7)))) -> 11534.5599 | E259: =SUM(D259+(Fixed!$D$4*Fixed!$D$5)) -> 15784.5599 | G259: 1916.6409 | H259: =-PV(Fixed!$C$9,Fixed!$D$9,SUM(G259-((Fixed!$D$4*Fixed!$D$5)*(Fixed!$D$7)))) -> 10604.99641 | I259: =SUM(H259+(Fixed!$D$4*Fixed!$D$5)) -> 14854.99641
B288: gross | C288: op cost | E288: Pasture | F288: Machinery & Equipment | G288: Buildings & Facilities | J288: Labour-Owner Living
B289: =Summary!$F$46 -> 3500.752375 | C289: =Summary!$F$29 -> 1266.49934 | E289: =Summary!$F$35 -> 69.98979541 | F289: =Summary!$F$34 -> 130.6642479 | G289: =Summary!$F$33 -> 23.95809099 | J289: =Summary!$F$38 -> 168
B292: ="What Can you Profitably Pay for Cows? (over Total Costs)" -> What Can you Profitably Pay for Cows? (over Total Costs)
C293: Equity | D293: Financed | F293: Equity | G293: Financed | I293: Equity | J293: Financed | L293: Equity | M293: Financed
C294: 0 | D294: =1-C294 -> 1 | E294: =D294*100&"% Financed" -> 100% Financed | F294: 0.25 | G294: =1-F294 -> 0.75 | H294: =G294*100&"% Financed" -> 75% Financed | I294: 0.5 | J294: =1-I294 -> 0.5 | K294: =J294*100&"% Financed" -> 50% Financed | L294: 0.75 | M294: =1-L294 -> 0.25 | N294: =M294*100&"% Financed" -> 25% Financed
C295: Purchase Price (over Total Costs) | F295: Purchase Price (over Total Costs) | I295: Purchase Price (over Total Costs) | L295: Purchase Price (over Total Costs)
B296: Target Profit/Cow | C296: Cow PMT | D296: Loan Value | E296: Cow | F296: Cow PMT | G296: Loan Value | H296: Cow | I296: Cow PMT | J296: Loan Value | K296: Cow | L296: Cow PMT | M296: Loan Value | N296: Cow
B297: 300 | C297: =SUM($B$289-$B$297-$C$289-$E$289-$F$289-$G$289-$J$289) -> 1541.6409 | D297: =-PV(Fixed!$C$9,Fixed!$D$9,SUM(C297-((Fixed!$D$4*C294)*(Fixed!$D$7)))) -> 8530.077914 | E297: =SUM(D297+(Fixed!$D$4*C294)) -> 8530.077914 | F297: =SUM($B$289-$B$297-$C$289-$E$289-$F$289-$G$289-$J$289) -> 1541.6409 | G297: =-PV(Fixed!$C$9,Fixed!$D$9,SUM(F297-((Fixed!$D$4*F294)*(Fixed!$D$7)))) -> 8530.077914 | H297: =SUM(G297+(Fixed!$D$4*F294)) -> 9780.077914 | I297: =SUM($B$289-$B$297-$C$289-$E$289-$F$289-$G$289-$J$289) -> 1541.6409 | J297: =-PV(Fixed!$C$9,Fixed!$D$9,SUM(I297-((Fixed!$D$4*I294)*(Fixed!$D$7)))) -> 8530.077914 | K297: =SUM(J297+(Fixed!$D$4*I294)) -> 11030.07791 | L297: =SUM($B$289-$B$297-$C$289-$E$289-$F$289-$G$289-$J$289) -> 1541.6409 | M297: =-PV(Fixed!$C$9,Fixed!$D$9,SUM(L297-((Fixed!$D$4*L294)*(Fixed!$D$7)))) -> 8530.077914 | N297: =SUM(M297+(Fixed!$D$4*L294)) -> 12280.07791
B298: 250 | C298: =SUM($B$289-$B$298-$C$289-$E$289-$F$289-$G$289-$J$289) -> 1591.6409 | D298: =-PV(Fixed!$C$9,Fixed!$D$9,SUM(C298-((Fixed!$D$4*C294)*(Fixed!$D$7)))) -> 8806.733713 | E298: =SUM(D298+(Fixed!$D$4*C294)) -> 8806.733713 | F298: =SUM($B$289-$B$298-$C$289-$E$289-$F$289-$G$289-$J$289) -> 1591.6409 | G298: =-PV(Fixed!$C$9,Fixed!$D$9,SUM(F298-((Fixed!$D$4*F294)*(Fixed!$D$7)))) -> 8806.733713 | H298: =SUM(G298+(Fixed!$D$4*F294)) -> 10056.73371 | I298: =SUM($B$289-$B$298-$C$289-$E$289-$F$289-$G$289-$J$289) -> 1591.6409 | J298: =-PV(Fixed!$C$9,Fixed!$D$9,SUM(I298-((Fixed!$D$4*I294)*(Fixed!$D$7)))) -> 8806.733713 | K298: =SUM(J298+(Fixed!$D$4*I294)) -> 11306.73371 | L298: =SUM($B$289-$B$298-$C$289-$E$289-$F$289-$G$289-$J$289) -> 1591.6409 | M298: =-PV(Fixed!$C$9,Fixed!$D$9,SUM(L298-((Fixed!$D$4*L294)*(Fixed!$D$7)))) -> 8806.733713 | N298: =SUM(M298+(Fixed!$D$4*L294)) -> 12556.73371
B299: 200 | C299: =SUM($B$289-$B$299-$C$289-$E$289-$F$289-$G$289-$J$289) -> 1641.6409 | D299: =-PV(Fixed!$C$9,Fixed!$D$9,SUM(C299-((Fixed!$D$4*C294)*(Fixed!$D$7)))) -> 9083.389513 | E299: =SUM(D299+(Fixed!$D$4*C294)) -> 9083.389513 | F299: =SUM($B$289-$B$299-$C$289-$E$289-$F$289-$G$289-$J$289) -> 1641.6409 | G299: =-PV(Fixed!$C$9,Fixed!$D$9,SUM(F299-((Fixed!$D$4*F294)*(Fixed!$D$7)))) -> 9083.389513 | H299: =SUM(G299+(Fixed!$D$4*F294)) -> 10333.38951 | I299: =SUM($B$289-$B$299-$C$289-$E$289-$F$289-$G$289-$J$289) -> 1641.6409 | J299: =-PV(Fixed!$C$9,Fixed!$D$9,SUM(I299-((Fixed!$D$4*I294)*(Fixed!$D$7)))) -> 9083.389513 | K299: =SUM(J299+(Fixed!$D$4*I294)) -> 11583.38951 | L299: =SUM($B$289-$B$299-$C$289-$E$289-$F$289-$G$289-$J$289) -> 1641.6409 | M299: =-PV(Fixed!$C$9,Fixed!$D$9,SUM(L299-((Fixed!$D$4*L294)*(Fixed!$D$7)))) -> 9083.389513 | N299: =SUM(M299+(Fixed!$D$4*L294)) -> 12833.38951
B300: 150 | C300: =SUM($B$289-$B$300-$C$289-$E$289-$F$289-$G$289-$J$289) -> 1691.6409 | D300: =-PV(Fixed!$C$9,Fixed!$D$9,SUM(C300-((Fixed!$D$4*C294)*(Fixed!$D$7)))) -> 9360.045312 | E300: =SUM(D300+(Fixed!$D$4*C294)) -> 9360.045312 | F300: =SUM($B$289-$B$300-$C$289-$E$289-$F$289-$G$289-$J$289) -> 1691.6409 | G300: =-PV(Fixed!$C$9,Fixed!$D$9,SUM(F300-((Fixed!$D$4*F294)*(Fixed!$D$7)))) -> 9360.045312 | H300: =SUM(G300+(Fixed!$D$4*F294)) -> 10610.04531 | I300: =SUM($B$289-$B$300-$C$289-$E$289-$F$289-$G$289-$J$289) -> 1691.6409 | J300: =-PV(Fixed!$C$9,Fixed!$D$9,SUM(I300-((Fixed!$D$4*I294)*(Fixed!$D$7)))) -> 9360.045312 | K300: =SUM(J300+(Fixed!$D$4*I294)) -> 11860.04531 | L300: =SUM($B$289-$B$300-$C$289-$E$289-$F$289-$G$289-$J$289) -> 1691.6409 | M300: =-PV(Fixed!$C$9,Fixed!$D$9,SUM(L300-((Fixed!$D$4*L294)*(Fixed!$D$7)))) -> 9360.045312 | N300: =SUM(M300+(Fixed!$D$4*L294)) -> 13110.04531
B301: 100 | C301: =SUM($B$289-$B$301-$C$289-$E$289-$F$289-$G$289-$J$289) -> 1741.6409 | D301: =-PV(Fixed!$C$9,Fixed!$D$9,SUM(C301-((Fixed!$D$4*C294)*(Fixed!$D$7)))) -> 9636.701111 | E301: =SUM(D301+(Fixed!$D$4*C294)) -> 9636.701111 | F301: =SUM($B$289-$B$301-$C$289-$E$289-$F$289-$G$289-$J$289) -> 1741.6409 | G301: =-PV(Fixed!$C$9,Fixed!$D$9,SUM(F301-((Fixed!$D$4*F294)*(Fixed!$D$7)))) -> 9636.701111 | H301: =SUM(G301+(Fixed!$D$4*F294)) -> 10886.70111 | I301: =SUM($B$289-$B$301-$C$289-$E$289-$F$289-$G$289-$J$289) -> 1741.6409 | J301: =-PV(Fixed!$C$9,Fixed!$D$9,SUM(I301-((Fixed!$D$4*I294)*(Fixed!$D$7)))) -> 9636.701111 | K301: =SUM(J301+(Fixed!$D$4*I294)) -> 12136.70111 | L301: =SUM($B$289-$B$301-$C$289-$E$289-$F$289-$G$289-$J$289) -> 1741.6409 | M301: =-PV(Fixed!$C$9,Fixed!$D$9,SUM(L301-((Fixed!$D$4*L294)*(Fixed!$D$7)))) -> 9636.701111 | N301: =SUM(M301+(Fixed!$D$4*L294)) -> 13386.70111
B302: 50 | C302: =SUM($B$289-$B$302-$C$289-$E$289-$F$289-$G$289-$J$289) -> 1791.6409 | D302: =-PV(Fixed!$C$9,Fixed!$D$9,SUM(C302-((Fixed!$D$4*C294)*(Fixed!$D$7)))) -> 9913.356911 | E302: =SUM(D302+(Fixed!$D$4*C294)) -> 9913.356911 | F302: =SUM($B$289-$B$302-$C$289-$E$289-$F$289-$G$289-$J$289) -> 1791.6409 | G302: =-PV(Fixed!$C$9,Fixed!$D$9,SUM(F302-((Fixed!$D$4*F294)*(Fixed!$D$7)))) -> 9913.356911 | H302: =SUM(G302+(Fixed!$D$4*F294)) -> 11163.35691 | I302: =SUM($B$289-$B$302-$C$289-$E$289-$F$289-$G$289-$J$289) -> 1791.6409 | J302: =-PV(Fixed!$C$9,Fixed!$D$9,SUM(I302-((Fixed!$D$4*I294)*(Fixed!$D$7)))) -> 9913.356911 | K302: =SUM(J302+(Fixed!$D$4*I294)) -> 12413.35691 | L302: =SUM($B$289-$B$302-$C$289-$E$289-$F$289-$G$289-$J$289) -> 1791.6409 | M302: =-PV(Fixed!$C$9,Fixed!$D$9,SUM(L302-((Fixed!$D$4*L294)*(Fixed!$D$7)))) -> 9913.356911 | N302: =SUM(M302+(Fixed!$D$4*L294)) -> 13663.35691
B303: 0 | C303: =SUM($B$289-$B$303-$C$289-$E$289-$F$289-$G$289-$J$289) -> 1841.6409 | D303: =-PV(Fixed!$C$9,Fixed!$D$9,SUM(C303-((Fixed!$D$4*C294)*(Fixed!$D$7)))) -> 10190.01271 | E303: =SUM(D303+(Fixed!$D$4*C294)) -> 10190.01271 | F303: =SUM($B$289-$B$303-$C$289-$E$289-$F$289-$G$289-$J$289) -> 1841.6409 | G303: =-PV(Fixed!$C$9,Fixed!$D$9,SUM(F303-((Fixed!$D$4*F294)*(Fixed!$D$7)))) -> 10190.01271 | H303: =SUM(G303+(Fixed!$D$4*F294)) -> 11440.01271 | I303: =SUM($B$289-$B$303-$C$289-$E$289-$F$289-$G$289-$J$289) -> 1841.6409 | J303: =-PV(Fixed!$C$9,Fixed!$D$9,SUM(I303-((Fixed!$D$4*I294)*(Fixed!$D$7)))) -> 10190.01271 | K303: =SUM(J303+(Fixed!$D$4*I294)) -> 12690.01271 | L303: =SUM($B$289-$B$303-$C$289-$E$289-$F$289-$G$289-$J$289) -> 1841.6409 | M303: =-PV(Fixed!$C$9,Fixed!$D$9,SUM(L303-((Fixed!$D$4*L294)*(Fixed!$D$7)))) -> 10190.01271 | N303: =SUM(M303+(Fixed!$D$4*L294)) -> 13940.01271
C306: ="Based on "&Input!E18&" lb steers @ $"&Input!E19&"/cwt & "&Input!E20&" lb heifers @ $"&Input!E21&"/cwt" -> Based on 600 lb steers @ $660/cwt & 550 lb heifers @ $620/cwt
C307: ="Based on "&Input!$E$18&" lb steers @ $"&Input!$E$19&"/cwt & "&Input!$E$20&" lb heifers @ $"&Input!$E$21&"/cwt = $"&ROUND(Summary!$F$54,0)&" net profit" -> Based on 600 lb steers @ $660/cwt & 550 lb heifers @ $620/cwt = $1706 net profit
A311: Optional Chart | B311: gross | C311: op cost | E311: Pasture | F311: Machinery & Equipment | G311: Buildings & Facilities | J311: Labour-Owner Living
B312: =SUM((F337/100)*F336)*(Input!E17/100) -> 2327.516625 | C312: =Summary!$F$29 -> 1266.49934 | E312: =Summary!$F$35 -> 69.98979541 | F312: =Summary!$F$34 -> 130.6642479 | G312: =Summary!$F$33 -> 23.95809099 | J312: =Summary!$F$38 -> 168
B315: ="What Can you Profitably Pay for Cows? (over Total Costs)" -> What Can you Profitably Pay for Cows? (over Total Costs)
C316: Equity | D316: Financed | F316: Equity | G316: Financed | I316: Equity | J316: Financed | L316: Equity | M316: Financed
C317: 0 | D317: =1-C317 -> 1 | E317: =D317*100&"% Financed" -> 100% Financed | F317: 0.25 | G317: =1-F317 -> 0.75 | H317: =G317*100&"% Financed" -> 75% Financed | I317: 0.5 | J317: =1-I317 -> 0.5 | K317: =J317*100&"% Financed" -> 50% Financed | L317: 0.75 | M317: =1-L317 -> 0.25 | N317: =M317*100&"% Financed" -> 25% Financed
C318: Purchase Price (over Total Costs) | F318: Purchase Price (over Total Costs) | I318: Purchase Price (over Total Costs) | L318: Purchase Price (over Total Costs)
B319: Target Profit/Cow | C319: Cow PMT | D319: Loan Value | E319: Cow | F319: Cow PMT | G319: Loan Value | H319: Cow | I319: Cow PMT | J319: Loan Value | K319: Cow | L319: Cow PMT | M319: Loan Value | N319: Cow
B320: 150 | C320: =SUM($B$312-$B$320-$C$312-$E$312-$F$312-$G$312-$J$312) -> 518.4051505 | D320: =-PV(Fixed!$C$9,Fixed!$D$9,SUM(C320-((Fixed!$D$4*C317)*(Fixed!$D$7)))) -> 2868.395826 | E320: =SUM(D320+(Fixed!$D$4*C317)) -> 2868.395826 | F320: =SUM($B$312-$B$320-$C$312-$E$312-$F$312-$G$312-$J$312) -> 518.4051505 | G320: =-PV(Fixed!$C$9,Fixed!$D$9,SUM(F320-((Fixed!$D$4*F317)*(Fixed!$D$7)))) -> 2868.395826 | H320: =SUM(G320+(Fixed!$D$4*F317)) -> 4118.395826 | I320: =SUM($B$312-$B$320-$C$312-$E$312-$F$312-$G$312-$J$312) -> 518.4051505 | J320: =-PV(Fixed!$C$9,Fixed!$D$9,SUM(I320-((Fixed!$D$4*I317)*(Fixed!$D$7)))) -> 2868.395826 | K320: =SUM(J320+(Fixed!$D$4*I317)) -> 5368.395826 | L320: =SUM($B$312-$B$320-$C$312-$E$312-$F$312-$G$312-$J$312) -> 518.4051505 | M320: =-PV(Fixed!$C$9,Fixed!$D$9,SUM(L320-((Fixed!$D$4*L317)*(Fixed!$D$7)))) -> 2868.395826 | N320: =SUM(M320+(Fixed!$D$4*L317)) -> 6618.395826
B321: 125 | C321: =SUM($B$312-$B$321-$C$312-$E$312-$F$312-$G$312-$J$312) -> 543.4051505 | D321: =-PV(Fixed!$C$9,Fixed!$D$9,SUM(C321-((Fixed!$D$4*C317)*(Fixed!$D$7)))) -> 3006.723726 | E321: =SUM(D321+(Fixed!$D$4*C317)) -> 3006.723726 | F321: =SUM($B$312-$B$321-$C$312-$E$312-$F$312-$G$312-$J$312) -> 543.4051505 | G321: =-PV(Fixed!$C$9,Fixed!$D$9,SUM(F321-((Fixed!$D$4*F317)*(Fixed!$D$7)))) -> 3006.723726 | H321: =SUM(G321+(Fixed!$D$4*F317)) -> 4256.723726 | I321: =SUM($B$312-$B$321-$C$312-$E$312-$F$312-$G$312-$J$312) -> 543.4051505 | J321: =-PV(Fixed!$C$9,Fixed!$D$9,SUM(I321-((Fixed!$D$4*I317)*(Fixed!$D$7)))) -> 3006.723726 | K321: =SUM(J321+(Fixed!$D$4*I317)) -> 5506.723726 | L321: =SUM($B$312-$B$321-$C$312-$E$312-$F$312-$G$312-$J$312) -> 543.4051505 | M321: =-PV(Fixed!$C$9,Fixed!$D$9,SUM(L321-((Fixed!$D$4*L317)*(Fixed!$D$7)))) -> 3006.723726 | N321: =SUM(M321+(Fixed!$D$4*L317)) -> 6756.723726
B322: 100 | C322: =SUM($B$312-$B$322-$C$312-$E$312-$F$312-$G$312-$J$312) -> 568.4051505 | D322: =-PV(Fixed!$C$9,Fixed!$D$9,SUM(C322-((Fixed!$D$4*C317)*(Fixed!$D$7)))) -> 3145.051626 | E322: =SUM(D322+(Fixed!$D$4*C317)) -> 3145.051626 | F322: =SUM($B$312-$B$322-$C$312-$E$312-$F$312-$G$312-$J$312) -> 568.4051505 | G322: =-PV(Fixed!$C$9,Fixed!$D$9,SUM(F322-((Fixed!$D$4*F317)*(Fixed!$D$7)))) -> 3145.051626 | H322: =SUM(G322+(Fixed!$D$4*F317)) -> 4395.051626 | I322: =SUM($B$312-$B$322-$C$312-$E$312-$F$312-$G$312-$J$312) -> 568.4051505 | J322: =-PV(Fixed!$C$9,Fixed!$D$9,SUM(I322-((Fixed!$D$4*I317)*(Fixed!$D$7)))) -> 3145.051626 | K322: =SUM(J322+(Fixed!$D$4*I317)) -> 5645.051626 | L322: =SUM($B$312-$B$322-$C$312-$E$312-$F$312-$G$312-$J$312) -> 568.4051505 | M322: =-PV(Fixed!$C$9,Fixed!$D$9,SUM(L322-((Fixed!$D$4*L317)*(Fixed!$D$7)))) -> 3145.051626 | N322: =SUM(M322+(Fixed!$D$4*L317)) -> 6895.051626
B323: 75 | C323: =SUM($B$312-$B$323-$C$312-$E$312-$F$312-$G$312-$J$312) -> 593.4051505 | D323: =-PV(Fixed!$C$9,Fixed!$D$9,SUM(C323-((Fixed!$D$4*C317)*(Fixed!$D$7)))) -> 3283.379525 | E323: =SUM(D323+(Fixed!$D$4*C317)) -> 3283.379525 | F323: =SUM($B$312-$B$323-$C$312-$E$312-$F$312-$G$312-$J$312) -> 593.4051505 | G323: =-PV(Fixed!$C$9,Fixed!$D$9,SUM(F323-((Fixed!$D$4*F317)*(Fixed!$D$7)))) -> 3283.379525 | H323: =SUM(G323+(Fixed!$D$4*F317)) -> 4533.379525 | I323: =SUM($B$312-$B$323-$C$312-$E$312-$F$312-$G$312-$J$312) -> 593.4051505 | J323: =-PV(Fixed!$C$9,Fixed!$D$9,SUM(I323-((Fixed!$D$4*I317)*(Fixed!$D$7)))) -> 3283.379525 | K323: =SUM(J323+(Fixed!$D$4*I317)) -> 5783.379525 | L323: =SUM($B$312-$B$323-$C$312-$E$312-$F$312-$G$312-$J$312) -> 593.4051505 | M323: =-PV(Fixed!$C$9,Fixed!$D$9,SUM(L323-((Fixed!$D$4*L317)*(Fixed!$D$7)))) -> 3283.379525 | N323: =SUM(M323+(Fixed!$D$4*L317)) -> 7033.379525
B324: 50 | C324: =SUM($B$312-$B$324-$C$312-$E$312-$F$312-$G$312-$J$312) -> 618.4051505 | D324: =-PV(Fixed!$C$9,Fixed!$D$9,SUM(C324-((Fixed!$D$4*C317)*(Fixed!$D$7)))) -> 3421.707425 | E324: =SUM(D324+(Fixed!$D$4*C317)) -> 3421.707425 | F324: =SUM($B$312-$B$324-$C$312-$E$312-$F$312-$G$312-$J$312) -> 618.4051505 | G324: =-PV(Fixed!$C$9,Fixed!$D$9,SUM(F324-((Fixed!$D$4*F317)*(Fixed!$D$7)))) -> 3421.707425 | H324: =SUM(G324+(Fixed!$D$4*F317)) -> 4671.707425 | I324: =SUM($B$312-$B$324-$C$312-$E$312-$F$312-$G$312-$J$312) -> 618.4051505 | J324: =-PV(Fixed!$C$9,Fixed!$D$9,SUM(I324-((Fixed!$D$4*I317)*(Fixed!$D$7)))) -> 3421.707425 | K324: =SUM(J324+(Fixed!$D$4*I317)) -> 5921.707425 | L324: =SUM($B$312-$B$324-$C$312-$E$312-$F$312-$G$312-$J$312) -> 618.4051505 | M324: =-PV(Fixed!$C$9,Fixed!$D$9,SUM(L324-((Fixed!$D$4*L317)*(Fixed!$D$7)))) -> 3421.707425 | N324: =SUM(M324+(Fixed!$D$4*L317)) -> 7171.707425
B325: 25 | C325: =SUM($B$312-$B$325-$C$312-$E$312-$F$312-$G$312-$J$312) -> 643.4051505 | D325: =-PV(Fixed!$C$9,Fixed!$D$9,SUM(C325-((Fixed!$D$4*C317)*(Fixed!$D$7)))) -> 3560.035325 | E325: =SUM(D325+(Fixed!$D$4*C317)) -> 3560.035325 | F325: =SUM($B$312-$B$325-$C$312-$E$312-$F$312-$G$312-$J$312) -> 643.4051505 | G325: =-PV(Fixed!$C$9,Fixed!$D$9,SUM(F325-((Fixed!$D$4*F317)*(Fixed!$D$7)))) -> 3560.035325 | H325: =SUM(G325+(Fixed!$D$4*F317)) -> 4810.035325 | I325: =SUM($B$312-$B$325-$C$312-$E$312-$F$312-$G$312-$J$312) -> 643.4051505 | J325: =-PV(Fixed!$C$9,Fixed!$D$9,SUM(I325-((Fixed!$D$4*I317)*(Fixed!$D$7)))) -> 3560.035325 | K325: =SUM(J325+(Fixed!$D$4*I317)) -> 6060.035325 | L325: =SUM($B$312-$B$325-$C$312-$E$312-$F$312-$G$312-$J$312) -> 643.4051505 | M325: =-PV(Fixed!$C$9,Fixed!$D$9,SUM(L325-((Fixed!$D$4*L317)*(Fixed!$D$7)))) -> 3560.035325 | N325: =SUM(M325+(Fixed!$D$4*L317)) -> 7310.035325
B326: 0 | C326: =SUM($B$312-$B$326-$C$312-$E$312-$F$312-$G$312-$J$312) -> 668.4051505 | D326: =-PV(Fixed!$C$9,Fixed!$D$9,SUM(C326-((Fixed!$D$4*C317)*(Fixed!$D$7)))) -> 3698.363224 | E326: =SUM(D326+(Fixed!$D$4*C317)) -> 3698.363224 | F326: =SUM($B$312-$B$326-$C$312-$E$312-$F$312-$G$312-$J$312) -> 668.4051505 | G326: =-PV(Fixed!$C$9,Fixed!$D$9,SUM(F326-((Fixed!$D$4*F317)*(Fixed!$D$7)))) -> 3698.363224 | H326: =SUM(G326+(Fixed!$D$4*F317)) -> 4948.363224 | I326: =SUM($B$312-$B$326-$C$312-$E$312-$F$312-$G$312-$J$312) -> 668.4051505 | J326: =-PV(Fixed!$C$9,Fixed!$D$9,SUM(I326-((Fixed!$D$4*I317)*(Fixed!$D$7)))) -> 3698.363224 | K326: =SUM(J326+(Fixed!$D$4*I317)) -> 6198.363224 | L326: =SUM($B$312-$B$326-$C$312-$E$312-$F$312-$G$312-$J$312) -> 668.4051505 | M326: =-PV(Fixed!$C$9,Fixed!$D$9,SUM(L326-((Fixed!$D$4*L317)*(Fixed!$D$7)))) -> 3698.363224 | N326: =SUM(M326+(Fixed!$D$4*L317)) -> 7448.363224
C330: ="Based on "&F332&" lb steers @ $"&F333&"/cwt & "&F334&" lb heifers @ $"&F335&"/cwt = $"&ROUND(F338,0)&" net profit" -> Based on 600 lb steers @ $450/cwt & 550 lb heifers @ $400/cwt = $533 net profit
D331: COP values | F331: new chart values
B332: Steer Calf Weight | F332: =Input!E18 -> 600 | G332: lbs
B333: Steer Calf Market Price | D333: =Input!E19 -> 660 | F333: 450 | G333: /cwt
B334: Heifer Calf Weight | F334: =Input!E20 -> 550 | G334: lbs
B335: Heifer Calf Market Price | D335: =Input!E21 -> 620 | F335: 400 | G335: /cwt
B336: Average Calf Weight | F336: =AVERAGE(F332,F334) -> 575 | G336: lbs
B337: Weighted Average Calf Market Price | F337: =ROUND((((F333*(F332/100))+(F335*(F334/100)))/2)/(F336/100),2) -> 426.09 | G337: /cwt
B338: net profit | F338: =SUM(B312-Summary!F40) -> 532.8576576
B346: ****NOT COMPLETED***
B347: ="What Can you Pay for Marginal Pasture? (@ "&Fixed!D18*100&"% equity, "&Fixed!D19*100&"% financed)" -> What Can you Pay for Marginal Pasture? (@ 75% equity, 25% financed)
C348: B/E Over op. & fixed costs | G348: B/E Over total costs
B349: Target Profit/Cow | C349: Cow PMT | D349: Loan Value | E349: Cow | G349: Cow PMT | H349: Loan Value | I349: Cow | J349: gross | K349: op cost | M349: Livestock | N349: Machinery & Equipment | O349: Buildings & Facilities | R349: Labour-Owner Living
B350: 75 | C350: =SUM($J$353-B350-$K$353-$M$353-$N$353-$O$353) -> 1869.083203 | D350: =-PV(Fixed!$C$22,Fixed!$D$22,SUM(C350-((Fixed!$D$16*Fixed!$D$18)*(Fixed!$D$20)))) -> 24471.43296 | E350: =SUM(D350+(Fixed!$D$16*Fixed!$D$18)) -> 25221.43296 | G350: =SUM($J$353-B350-$K$353-$M$353-$N$353-$O$353-$R$353) -> 1701.083203 | H350: =-PV(Fixed!$C$22,Fixed!$D$22,SUM(G350-((Fixed!$D$16*Fixed!$D$18)*(Fixed!$D$20)))) -> 22271.85151 | I350: =SUM(H350+(Fixed!$D$16*Fixed!$D$18)) -> 23021.85151
B351: 50 | C351: 1894.083203 | D351: =-PV(Fixed!$C$22,Fixed!$D$22,SUM(C351-((Fixed!$D$16*Fixed!$D$18)*(Fixed!$D$20)))) -> 24798.75163 | E351: =SUM(D351+(Fixed!$D$16*Fixed!$D$18)) -> 25548.75163 | G351: 1726.083203 | H351: =-PV(Fixed!$C$22,Fixed!$D$22,SUM(G351-((Fixed!$D$16*Fixed!$D$18)*(Fixed!$D$20)))) -> 22599.17018 | I351: =SUM(H351+(Fixed!$D$16*Fixed!$D$18)) -> 23349.17018
B352: 25 | C352: 1919.083203 | D352: =-PV(Fixed!$C$22,Fixed!$D$22,SUM(C352-((Fixed!$D$16*Fixed!$D$18)*(Fixed!$D$20)))) -> 25126.0703 | E352: =SUM(D352+(Fixed!$D$16*Fixed!$D$18)) -> 25876.0703 | G352: 1751.083203 | H352: =-PV(Fixed!$C$22,Fixed!$D$22,SUM(G352-((Fixed!$D$16*Fixed!$D$18)*(Fixed!$D$20)))) -> 22926.48885 | I352: =SUM(H352+(Fixed!$D$16*Fixed!$D$18)) -> 23676.48885
B353: 0 | C353: 1944.083203 | D353: =-PV(Fixed!$C$22,Fixed!$D$22,SUM(C353-((Fixed!$D$16*Fixed!$D$18)*(Fixed!$D$20)))) -> 25453.38897 | E353: =SUM(D353+(Fixed!$D$16*Fixed!$D$18)) -> 26203.38897 | G353: 1776.083203 | H353: =-PV(Fixed!$C$22,Fixed!$D$22,SUM(G353-((Fixed!$D$16*Fixed!$D$18)*(Fixed!$D$20)))) -> 23253.80752 | I353: =SUM(H353+(Fixed!$D$16*Fixed!$D$18)) -> 24003.80752 | J353: =Summary!F46 -> 3500.752375 | K353: =Summary!F29 -> 1266.49934 | M353: =Summary!F32 -> 135.5474929 | N353: =Summary!F34 -> 130.6642479 | O353: =Summary!F33 -> 23.95809099 | R353: =Summary!F38 -> 168
B354: -25 | C354: 1969.083203 | D354: =-PV(Fixed!$C$22,Fixed!$D$22,SUM(C354-((Fixed!$D$16*Fixed!$D$18)*(Fixed!$D$20)))) -> 25780.70763 | E354: =SUM(D354+(Fixed!$D$16*Fixed!$D$18)) -> 26530.70763 | G354: 1801.083203 | H354: =-PV(Fixed!$C$22,Fixed!$D$22,SUM(G354-((Fixed!$D$16*Fixed!$D$18)*(Fixed!$D$20)))) -> 23581.12619 | I354: =SUM(H354+(Fixed!$D$16*Fixed!$D$18)) -> 24331.12619
B355: -50 | C355: 1994.083203 | D355: =-PV(Fixed!$C$22,Fixed!$D$22,SUM(C355-((Fixed!$D$16*Fixed!$D$18)*(Fixed!$D$20)))) -> 26108.0263 | E355: =SUM(D355+(Fixed!$D$16*Fixed!$D$18)) -> 26858.0263 | G355: 1826.083203 | H355: =-PV(Fixed!$C$22,Fixed!$D$22,SUM(G355-((Fixed!$D$16*Fixed!$D$18)*(Fixed!$D$20)))) -> 23908.44485 | I355: =SUM(H355+(Fixed!$D$16*Fixed!$D$18)) -> 24658.44485
B356: -75 | C356: 2019.083203 | D356: =-PV(Fixed!$C$22,Fixed!$D$22,SUM(C356-((Fixed!$D$16*Fixed!$D$18)*(Fixed!$D$20)))) -> 26435.34497 | E356: =SUM(D356+(Fixed!$D$16*Fixed!$D$18)) -> 27185.34497 | G356: 1851.083203 | H356: =-PV(Fixed!$C$22,Fixed!$D$22,SUM(G356-((Fixed!$D$16*Fixed!$D$18)*(Fixed!$D$20)))) -> 24235.76352 | I356: =SUM(H356+(Fixed!$D$16*Fixed!$D$18)) -> 24985.76352

Sheet Cow Lease(HIDE) (hidden)
D1: ****HIDE in FINAL VERSION*****
A2: . . . . . . . . . . . . . . . . . . . . . . . . . . . . . . . . . . . . . . . . . . . . . . . . . . . . . . . . . . .
A3: CowShare Lease Calculator | I3: Printed: | J3: =TODAY() -> 2025-09-26
A4: *** Enter changes to values in BLUE only
A6: Cow Market Value | D6: =Input!E28 -> 5000 | E6: / hd | F6: Bull Market Value | H6: =Input!E66 -> 6000 | I6: / hd
A7: Average Cow Weight | D7: =Input!E14 -> 1350 | E7: lbs | F7: Cows per Bull | H7: 25
A8: Cow Death Loss | D8: =Input!E31 -> 1.25 | E8: % | F8: Bull Replacement Rate | H8: =Input!E68 -> 25 | I8: %
A9: Cull Cow Market Price | D9: =Input!E30 -> 220 | E9: /cwt | F9: Cull Bull Market Value | H9: =Input!E67 -> 4700 | I9: / hd
A10: Cull Cow Market Value | D10: =SUM(D7/100)*D9 -> 2970 | F10: Calf Crop | H10: =Input!E17 -> 95 | I10: %
A11: Cow Replacement Rate | D11: 12 | E11: % | F11: Steer Calf Weight | H11: =Input!E18 -> 600 | I11: lbs
A12: Replacement Heifer Value | D12: =Input!E34 -> 5200 | E12: / hd | F12: Steer Calf Market Price | H12: =Input!E19 -> 660 | I12: /cwt
A13: Operating Interest Rate | D13: ='Operating '!E131 -> 6.75 | E13: % | F13: Heifer Calf Weight | H13: =Input!E20 -> 550 | I13: lbs
A14: Investment Rate | D14: =Input!E75 -> 3.5 | E14: % | F14: Heifer Calf Market Price | H14: =Input!E21 -> 620 | I14: /cwt
B16: ="Cow Share Lease Calculation Worksheet "&Introduction!I10&"" -> Cow Share Lease Calculation Worksheet September, 2025
A18: A. Operating Costs | F18: Owner | H18: Leasee | J18: Total Cost | O18: Owner
B19: 1. Feed Costs | O19: Leasee
B20: 1.01 Grain and Concentrates | E20: Leasee | F20: =IF(E20="Owner",Summary!F6,0) -> 0 | H20: =IF(E20="Leasee",Summary!F6,0) -> 87.16700073 | J20: =SUM(H20+F20) -> 87.16700073
B21: 1.02 Forages | E21: Leasee | F21: =IF(E21="Owner",Summary!F7,0) -> 0 | H21: =IF(E21="Leasee",Summary!F7,0) -> 288.7794643 | J21: =SUM(H21+F21) -> 288.7794643
B22: 1.03 Salt & Minerals | E22: Leasee | F22: =IF(E22="Owner",Summary!F8,0) -> 0 | H22: =IF(E22="Leasee",Summary!F8,0) -> 42.08993506 | J22: =SUM(H22+F22) -> 42.08993506
B23: 1.04 Extended Grazing Forages | E23: Leasee | F23: =IF(E23="Owner",Summary!F9,0) -> 0 | H23: =IF(E23="Leasee",IF('Extended Grazing'!G53="ERROR","ERROR",Summary!F9),0) -> 41.52572417 | J23: =SUM(H23+F23) -> 41.52572417
B24: Total Feed Cost | F24: =IF('Winter Feed Rations'!H54=Pasture!G5,F20+F21+F22+F23,"ERROR") -> 0 | H24: =IF('Winter Feed Rations'!H54=Pasture!G5,H20+H21+H22+H23,"ERROR") -> 459.5621242 | J24: =SUM(H24+F24) -> 459.5621242
B26: 2. Other Operating Costs
B27: 2.01 Straw | E27: Leasee | F27: =IF(E27="Owner",Summary!F13,0) -> 0 | H27: =IF(E27="Leasee",Summary!F13,0) -> 70 | J27: =SUM(H27+F27) -> 70
B28: 2.02 Veterinary Medicine & Supplies | E28: Leasee | F28: =IF(E28="Owner",Summary!F14,0) -> 0 | H28: =IF(E28="Leasee",Summary!F14,0) -> 26.94333333 | J28: 26.94333333
B29: 2.03 Bull Operating Costs | E29: Leasee | F29: =IF(E29="Owner",Input!G54+Input!G59+Input!G64+Input!G81,0) -> 0 | H29: =IF(E29="Leasee",Input!G54+Input!G59+Input!G64+Input!G81,0) -> 35.42 | J29: 35.42
B30: 2.04 Fuel, Maintenance & Repairs | H30: ='Operating '!G48 -> 40.06906667 | J30: 40.06906667
B31: 2.05 Utilities | H31: =Summary!F17 -> 9.688774 | J31: 9.688774
B32: 2.06 Marketing & Transportation | H32: ='Operating '!G93 -> 39.9775 | J32: 39.9775
B33: 2.07 Death Loss | F33: ='Operating '!G97 -> 62.5 | J33: 62.5
B34: 2.08 Manure Removal | H34: ='Operating '!G108 -> 10.83963562 | J34: 10.83963562
B35: 2.09 Insurance | F35: ='Operating '!G113 -> 22.5 | H35: ='Operating '!G118+'Operating '!G121 -> 6.09 | J35: 28.59
B36: 2.10 Herd Replacement - Cows | F36: =Input!E38 -> 267.6 | J36: 267.6
B37: 2.11 Herd Replacement - Bulls | E37: Owner | F37: =IF(E37="Owner",Input!G70+Input!G77,0) -> 20.49 | H37: =IF(E37="Leasee",Input!G70+Input!G77,0) -> 0 | J37: =SUM(H37+F37) -> 20.49
B38: 2.12 Pasture Rental | H38: =Summary!F23 -> 59.375 | J38: 59.375
B39: 2.13 Pasture Operating | H39: =Summary!F24 -> 34.76510638 | J39: =SUM(H39+F39) -> 34.76510638
B40: 2.13 Miscellaneous | H40: ='Operating '!G126 -> 3.33 | J40: 3.33
B41: Subtotal Operating Costs | F41: =SUM(F24:F40) -> 373.09 | H41: =SUM(H24:H40) -> 796.0605403 | J41: 1169.15054
B42: 2.13 Operating Interest | F42: =SUM(F41/2)*'Operating '!$E$131/100 -> 12.5917875 | H42: =SUM(H41/2)*'Operating '!$E$131/100 -> 26.86704323 | J42: 39.45883073
B43: Total Operating Costs | F43: =F41+F42 -> 385.6817875 | H43: =SUM(H41:H42) -> 822.9275835 | J43: =SUM(J41:J42) -> 1208.609371
A45: B. Fixed Costs
B46: 3.01 Livestock | F46: =Summary!F32 -> 135.5474929 | J46: =SUM(H46+F46) -> 135.5474929
B47: 3.02 Buildings | H47: =Summary!F33 -> 23.95809099 | J47: 23.95809099
B48: 3.03 Machinery & Equipment | H48: =Summary!F34 -> 130.6642479 | J48: 130.6642479
B49: 3.04 Pasture Land & Fencing | H49: =Summary!F35 -> 69.98979541 | J49: 69.98979541
B50: Total Fixed Costs | F50: =SUM(F46:F49) -> 135.5474929 | H50: =SUM(H46:H49) -> 224.6121343 | J50: 360.1596272
B51: Total Operating and Fixed Costs | F51: =F43+F50 -> 521.2292804 | H51: =H43+H50 -> 1047.539718 | J51: 1568.768998
A53: C. Labour | H53: ='Operating '!G136+'Operating '!G137 -> 224 | J53: =SUM(H53+F53) -> 224
A54: Total Contributions | F54: =F51+F53 -> 521.2292804 | H54: =H51+J53 -> 1271.539718 | J54: =SUM(H54+F54) -> 1792.768998
A56: Total Contributions | F56: =ROUND(F54/J54,3) -> 0.291 | H56: =ROUND(H54/J54,3) -> 0.709
D58: Estimated Farmgate Revenue
A59: Estimated Farmgate | J59: Per Cow
B60: Price ($ per cwt) | J60: =Input!E24 -> 640.87
B61: Calf weight (lbs) | J61: =Input!E23 -> 575
B62: Gross Revenue / cow | J62: =SUM((Input!E24/100)*Input!E23)*(Input!E17/100) -> 3500.752375
D64: Lease Calculation #1 - Share Split Method
F65: Owner | H65: Leasee
A66: Share Split | F66: =F56 -> 0.291 | H66: =H56 -> 0.709
A67: Share of Revenue | F67: =SUM(F56*J62) -> 1018.718941 | H67: =SUM(H56*J62) -> 2482.033434
A69: Net Return Per Cow | F69: =SUM(F67-F54) -> 497.4896607 | H69: =SUM(H67-H54) -> 1210.493716
A70: Cash Rental Per Cow | F70: =F54 -> 521.2292804
A71: Return to Assets (ROA) | F71: =IF($E$37="Owner",SUM(($F$46+F69)/(Input!$E$28+(Input!$E$66*(Input!$E$15/Input!$E$13)))),SUM(($F$46+F69)/(Input!$E$28))) -> 0.1208086171
D73: Lease Calculation #2 - Flexible Share Calculation Method
F74: Owner | H74: Leasee | J74: Total
A75: Contribution Share | F75: =F54 -> 521.2292804 | H75: =H54 -> 1271.539718 | J75: =SUM(H75+F75) -> 1792.768998
A76: Remaining Revenue | J76: =SUM(J62-J75) -> 1707.983377
A77: Distribution of Surplus Revenue | F77: 0.5 | H77: =SUM(1-F77) -> 0.5
A78: Share of Surplus Revenue | F78: =SUM(J76*F77) -> 853.9916884 | H78: =SUM(J76*H77) -> 853.9916884
A79: Total Revenue Earned | F79: =SUM(F75+F78) -> 1375.220969 | H79: =SUM(H75+H78) -> 2125.531406 | J79: =SUM(H79+F79) -> 3500.752375
A81: Percent Share of Revenue (Total) | F81: =SUM(F79/J79) -> 0.3928358311 | H81: =SUM(H79/J79) -> 0.6071641689
A83: Net Return Per Cow | F83: =SUM(F79-F75) -> 853.9916884 | H83: =SUM(H79-H75) -> 853.9916884
A84: Cash Rental Per Cow | F84: =F54 -> 521.2292804
A85: Return to Assets (ROA) | F85: =IF($E$37="Owner",SUM(($F$46+F83)/(Input!$E$28+(Input!$E$66*(Input!$E$15/Input!$E$13)))),SUM(($F$46+F83)/(Input!$E$28))) -> 0.1888433552
B87: Note: This budget is only a guide and is not intended to be an in-depth study of the cost of production of this industry. Interpretation and utilization of this information is the responsibility of the user. No liability for decisions based on this publication is assumed.

Sheet Overwinter (HIDE) (hidden)
B1: ***Hide in Final Version*** | S1: HIDE | T1: HIDE | U1: HIDE
A2: . . . . . . . . . . . . . . . . . . . . . . . . . . . . . . . . . . . . . . . . . . . . . . . . . . .
A3: Beef Cow Overwinter Cost Calculator | J3: Printed: | K3: =TODAY() -> 2025-09-26
C4: *** Enter changes to BLUE values only ***
A5: Input Data:
B6: Number of cows to be wintered | C6: =Input!E13 -> 300
B7: Average weight of cows | C7: =Input!E14 -> 1350
B8: Number of bulls to be wintered | C8: =Input!E15 -> 12 | D8: 0
B9: Days winter feeding (pre calving) | C9: =SUM('Winter Feed Rations'!E9:M9) -> 135 | E9: Operating Interest | G9: ='Operating '!E131/100 -> 0.0675
B10: Days winter feeding (post calving) | C10: =SUM('Winter Feed Rations'!E31:M31) -> 60 | E10: Investment Rate | G10: 0.035
B11: Total Feeding Days | C11: =SUM(C9:C10) -> 195
B12: Number of days in extended grazing | C12: =Pasture!G4 -> 35
A14: For more information on production costs,
A16: A. Operating Costs:
A17: 1. Feed Costs Per Cow - Pre Calving
B18: Select Base Ration - | C18: #3 - Corn Silage, Straw & Supplement | I18: =C9 -> 135 | J18: Days
B19: Feed Type | C19: $/unit | D19: lbs/ unit | E19: $/lb | F19: lbs/ cow/ day | G19: Total Feed Required | J19: Total Cost | L19: $/cow/day | S19: 1400 | T19: =$C$7 -> 1350 | U19: *reset copy*
B20: Alfalfa Hay | C20: ='Winter Feed Rations'!B12 -> 160 | D20: ='Winter Feed Rations'!C12 -> 2000 | E20: =SUM(C20/D20) -> 0.08 | F20: =T20 -> 0 | G20: =SUM($C$9*F20*$C$6)/D20 -> 0 | J20: =G20*C20 -> 0 | L20: =SUM(J20/$C$6)/$C$9 -> 0 | S20: ='Winter Feed Rations'!G12 -> 0 | T20: =SUM(($C$7/1400)*S20) -> 0 | U20: =AI20 -> 0
B21: Alfalfa Grass Hay | C21: ='Winter Feed Rations'!B13 -> 120 | D21: ='Winter Feed Rations'!C13 -> 2000 | E21: =SUM(C21/D21) -> 0.06 | F21: =T21 -> 0 | G21: 0 | J21: 0 | L21: =SUM(J21/$C$6)/$C$9 -> 0 | S21: ='Winter Feed Rations'!G13 -> 0 | T21: 0 | U21: =AI21 -> 0
B22: Grass Hay | C22: ='Winter Feed Rations'!B14 -> 100 | D22: ='Winter Feed Rations'!C14 -> 2000 | E22: =SUM(C22/D22) -> 0.05 | F22: 0 | G22: 0 | J22: 0 | L22: 0 | S22: ='Winter Feed Rations'!G14 -> 0 | T22: 0 | U22: 0
B23: Barley Straw | C23: ='Winter Feed Rations'!B15 -> 70 | D23: ='Winter Feed Rations'!C15 -> 2000 | E23: 0.035 | F23: 18.32142857 | G23: 371.0089286 | J23: 25970.625 | L23: 0.64125 | S23: ='Winter Feed Rations'!G15 -> 19 | T23: 18.32142857 | U23: 0
B24: Barley Greenfeed | C24: ='Winter Feed Rations'!B16 -> 115 | D24: ='Winter Feed Rations'!C16 -> 2000 | E24: 0.0575 | F24: 0 | G24: 0 | J24: 0 | L24: 0 | S24: ='Winter Feed Rations'!G16 -> 0 | T24: 0 | U24: 0
B25: Corn Silage | C25: ='Winter Feed Rations'!B17 -> 40 | D25: ='Winter Feed Rations'!C17 -> 2000 | E25: 0.02 | F25: 45.32142857 | G25: 917.7589286 | J25: 36710.35714 | L25: 0.9064285714 | S25: ='Winter Feed Rations'!G17 -> 47 | T25: 45.32142857 | U25: 0
B26: Barley Silage | C26: ='Winter Feed Rations'!B18 -> 50 | D26: ='Winter Feed Rations'!C18 -> 2000 | E26: 0.025 | F26: 0 | G26: 0 | J26: 0 | L26: 0 | S26: ='Winter Feed Rations'!G18 -> 0 | T26: 0 | U26: 0
B27: Barley Grain | C27: ='Winter Feed Rations'!B19 -> 4.5 | D27: ='Winter Feed Rations'!C19 -> 48 | E27: 0.09375 | F27: 0 | G27: 0 | J27: 0 | L27: 0 | S27: ='Winter Feed Rations'!G19 -> 0 | T27: 0 | U27: 0
B28: 32% Feedlot Suppl. | C28: ='Winter Feed Rations'!B20 -> 600 | D28: ='Winter Feed Rations'!C20 -> 2205 | E28: 0.2721088435 | F28: 0.4821428571 | G28: 8.855685131 | J28: 5313.411079 | L28: 0.1311953353 | S28: ='Winter Feed Rations'!G20 -> 0.5 | T28: 0.4821428571 | U28: 0
B29: 32% Liquid Suppl. | C29: ='Winter Feed Rations'!B21 -> 525 | D29: ='Winter Feed Rations'!C21 -> 2205 | E29: 0.2380952381 | F29: 0 | G29: 0 | J29: 0 | L29: 0 | S29: ='Winter Feed Rations'!G21 -> 0 | T29: 0 | U29: 0
B30: 20% Grain Pellets | C30: ='Winter Feed Rations'!B22 -> 350 | D30: ='Winter Feed Rations'!C22 -> 2205 | E30: 0.1587301587 | F30: 0 | G30: 0 | J30: 0 | L30: 0 | S30: ='Winter Feed Rations'!G22 -> 0 | T30: 0 | U30: 0
B31: (enter other feed here) | C31: 0 | D31: 2205 | E31: 0 | F31: 0 | G31: 0 | J31: 0 | L31: =SUM(J31/$C$6)/$C$9 -> 0 | U31: 0
B32: (enter other feed here) | C32: 0 | D32: 2205 | E32: =SUM(C32/D32) -> 0 | F32: 0 | G32: 0 | J32: 0 | L32: =SUM(J32/$C$6)/$C$9 -> 0 | U32: 0
B33: 1:1 Mineral | C33: ='Winter Feed Rations'!B23 -> 50 | D33: ='Winter Feed Rations'!C23 -> 55 | E33: 0.9090909091 | F33: 0 | G33: 0 | J33: 0 | L33: 0 | S33: ='Winter Feed Rations'!G23 -> 0 | T33: =SUM(($C$7/1400)*S33) -> 0 | U33: 0
B34: 2:1 Mineral | C34: ='Winter Feed Rations'!B24 -> 50 | D34: ='Winter Feed Rations'!C24 -> 55 | E34: 0.9090909091 | F34: 0.05785714286 | G34: 42.6038961 | J34: 2130.194805 | L34: 0.0525974026 | S34: ='Winter Feed Rations'!G24 -> 0.06 | T34: =SUM(($C$7/1400)*S34) -> 0.05785714286 | U34: 0
B35: Limestone | C35: ='Winter Feed Rations'!B25 -> 20 | D35: ='Winter Feed Rations'!C25 -> 55 | E35: 0.3636363636 | F35: 0 | G35: 0 | J35: 0 | L35: 0 | S35: ='Winter Feed Rations'!G25 -> 0 | T35: =SUM(($C$7/1400)*S35) -> 0 | U35: 0
B36: Blue Salt | C36: ='Winter Feed Rations'!B26 -> 10 | D36: ='Winter Feed Rations'!C26 -> 55 | E36: 0.1818181818 | F36: 0.0675 | G36: 49.70454545 | J36: 497.0454545 | L36: 0.01227272727 | S36: ='Winter Feed Rations'!G26 -> 0.07 | T36: =SUM(($C$7/1400)*S36) -> 0.0675 | U36: 0
F37: =SUM(F20:F36) -> 64.25035714 | J37: =SUM(J20:J36) -> 70621.63348 | L37: 1.743744037
A38: 2. Feed Costs Per Cow - Post Calving
B39: Select Base Ration - | C39: #3 - Corn Silage, Straw, Grain & Supplement | I39: =C10 -> 60 | J39: Days
B40: Feed Type | C40: $/unit | D40: lbs/ unit | E40: $/lb | F40: lbs/ cow/ day | G40: Total Feed Required | J40: Total Cost | L40: $/cow/day | S40: 1400 | T40: =$C$7 -> 1350 | U40: *reset copy*
B41: Alfalfa Hay | C41: =C20 -> 160 | D41: =D20 -> 2000 | E41: =SUM(C41/D41) -> 0.08 | F41: =T41 -> 0 | G41: =SUM($C$10*F41*$C$6)/D41 -> 0 | J41: =G41*C41 -> 0 | L41: =SUM(J41/$C$6)/$C$10 -> 0 | S41: ='Winter Feed Rations'!G33 -> 0 | T41: =SUM(($C$7/1400)*S41) -> 0 | U41: =AI41 -> 0
B42: Alfalfa Grass Hay | C42: =C21 -> 120 | D42: 2000 | E42: =SUM(C42/D42) -> 0.06 | F42: =T42 -> 0 | G42: =SUM($C$10*F42*$C$6)/D42 -> 0 | J42: 0 | L42: =SUM(J42/$C$6)/$C$10 -> 0 | S42: ='Winter Feed Rations'!G34 -> 0 | T42: 0 | U42: =AI42 -> 0
B43: Grass Hay | C43: 100 | D43: 2000 | E43: =SUM(C43/D43) -> 0.05 | F43: 0 | G43: 0 | J43: 0 | L43: 0 | S43: ='Winter Feed Rations'!G35 -> 0 | T43: 0 | U43: 0
B44: Barley Straw | C44: 70 | D44: 2000 | E44: 0.035 | F44: 11.57142857 | G44: 104.1428571 | J44: 7290 | L44: 0.405 | S44: ='Winter Feed Rations'!G36 -> 12 | T44: 11.57142857 | U44: 0
B45: Barley Greenfeed | C45: 115 | D45: 2000 | E45: 0.0575 | F45: 0 | G45: 0 | J45: 0 | L45: 0 | S45: ='Winter Feed Rations'!G37 -> 0 | T45: 0 | U45: 0
B46: Corn Silage | C46: 40 | D46: 2000 | E46: 0.02 | F46: 46.28571429 | G46: 416.5714286 | J46: 16662.85714 | L46: 0.9257142857 | S46: ='Winter Feed Rations'!G38 -> 48 | T46: 46.28571429 | U46: 0
B47: Barley Silage | C47: 50 | D47: 2000 | E47: 0.025 | F47: 0 | G47: 0 | J47: 0 | L47: 0 | S47: ='Winter Feed Rations'!G39 -> 0 | T47: 0 | U47: 0
B48: Barley Grain | C48: 4.5 | D48: 48 | E48: 0.09375 | F48: 6.75 | G48: 2531.25 | J48: 11390.625 | L48: 0.6328125 | S48: ='Winter Feed Rations'!G40 -> 7 | T48: 6.75 | U48: 0
B49: 32% Feedlot Suppl. | C49: 600 | D49: 2205 | E49: 0.2721088435 | F49: 1.928571429 | G49: 15.74344023 | J49: 9446.06414 | L49: 0.5247813411 | S49: ='Winter Feed Rations'!G41 -> 2 | T49: 1.928571429 | U49: 0
B50: 32% Liquid Suppl. | C50: 525 | D50: 2205 | E50: 0.2380952381 | F50: 0 | G50: 0 | J50: 0 | L50: 0 | S50: ='Winter Feed Rations'!G42 -> 0 | T50: 0 | U50: 0
B51: 20% Grain Pellets | C51: 350 | D51: 2205 | E51: 0.1587301587 | F51: 0 | G51: 0 | J51: 0 | L51: 0 | S51: ='Winter Feed Rations'!G43 -> 0 | T51: 0 | U51: 0
B52: (enter other feed here) | C52: 0 | D52: 2205 | E52: 0 | F52: 0 | G52: =SUM($C$9*F52*$C$6)/D52 -> 0 | J52: 0 | L52: =SUM(J52/$C$6)/$C$9 -> 0 | U52: 0
B53: (enter other feed here) | C53: 0 | D53: 2205 | E53: 0 | F53: 0 | G53: =SUM($C$9*F53*$C$6)/D53 -> 0 | J53: 0 | L53: 0 | U53: 0
B54: 1:1 Mineral | C54: =C33 -> 50 | D54: 55 | E54: 0.9090909091 | F54: 0 | G54: 0 | J54: 0 | L54: 0 | S54: ='Winter Feed Rations'!G44 -> 0 | T54: =SUM(($C$7/1400)*S54) -> 0 | U54: 0
B55: 2:1 Mineral | C55: 50 | D55: 55 | E55: 0.9090909091 | F55: 0.1735714286 | G55: 56.80519481 | J55: 2840.25974 | L55: 0.1577922078 | S55: ='Winter Feed Rations'!G45 -> 0.18 | T55: =SUM(($C$7/1400)*S55) -> 0.1735714286 | U55: 0
B56: Limestone | C56: 20 | D56: 55 | E56: 0.3636363636 | F56: 0.09642857143 | G56: 31.55844156 | J56: 631.1688312 | L56: 0.03506493506 | S56: ='Winter Feed Rations'!G46 -> 0.1 | T56: =SUM(($C$7/1400)*S56) -> 0.09642857143 | U56: 0
B57: Blue Salt | C57: 10 | D57: 55 | E57: 0.1818181818 | F57: 0.09642857143 | G57: 31.55844156 | J57: 315.5844156 | L57: 0.01753246753 | S57: ='Winter Feed Rations'!G47 -> 0.1 | T57: =SUM(($C$7/1400)*S57) -> 0.09642857143 | U57: 0
F58: =SUM(F41:F57) -> 66.90214286 | J58: =SUM(J41:J57) -> 48576.55927 | L58: =SUM(J58/$C$6)/$C$10 -> 2.698697737
B60: Total Feed per Cow | J60: =SUM(J58+J37) -> 119198.1928 | L60: =SUM((J60/$C$6)/($C$9+$C$10)) -> 2.037575944
B61: Bedding (straw) | C61: ='Operating '!D25 -> 70 | D61: /ton* | G61: =C6 -> 300 | H61: tons | J61: =ROUND(G61*C61,0) -> 21000 | L61: =SUM((J61/$C$6)/($C$9+$C$10)) -> 0.358974359
B62: ="Total Feed Cost & Bedding (for Cows) - based on "&C9+C10&" days" -> Total Feed Cost & Bedding (for Cows) - based on 195 days | J62: =SUM(J60:J61) -> 140198.1928 | L62: =SUM((J62/$C$6)/($C$9+$C$10)) -> 2.396550303
A64: 3. Feed Costs For Breeding Bulls:
B65: Item | C65: $/unit | E65: lbs/hd/day | F65: Days | G65: Feed Required | J65: Total Cost | L65: $/cow/day
B66: Ground Barley | C66: =Input!E51 -> 4.5 | D66: /bus | E66: =Input!E48 -> 7 | F66: =Input!E49 -> 120 | G66: =(E66/48)*F66*C8 -> 210 | H66: bus | J66: =ROUND(G66*C66,0) -> 945 | L66: =SUM((J66/$C$6)/($C$9+$C$10)) -> 0.01615384615
B67: Good quality hay | C67: =Input!E44 -> 120 | D67: /ton* | E67: =ROUND(Input!E43*2000/('Overwinter (HIDE)'!C11),0) -> 41 | F67: =$C$9+$C$10 -> 195 | G67: =ROUND((E67/2000)*C11*C8,0) -> 48 | H67: tons* | J67: =ROUND(G67*C67,0) -> 5760 | L67: 0.09846153846
B68: Total Feed per Bull | E68: =SUM(E66:E67) -> 48 | J68: =SUM(J66:J67) -> 6705 | L68: 0.1146153846
B69: Bedding (straw) | C69: =C61 -> 70 | D69: /ton* | G69: =C8 -> 12 | H69: tons* | J69: =ROUND(G69*C69,0) -> 840 | L69: 0.01435897436
B70: ="Total Feed & Bedding (for Breeding Bulls) per cow per day based on "&C9+C10&" days" -> Total Feed & Bedding (for Breeding Bulls) per cow per day based on 195 days | J70: =SUM(J68:J69) -> 7545 | L70: 0.128974359
B72: Total All Feed & Bedding for Cows and Bulls | J72: =J62+J70 -> 147743.1928 | L72: 2.525524662
A74: 4. Extended Grazing Costs: | C74: $/cow/yr | F74: Days | J74: Total Cost | L74: $/cow/day
B75: Extended grazing | C75: ='Extended Grazing'!G53 -> 41.52572417 | F75: =C12 -> 35 | J75: =IF(F75<1,0,ROUND(C75*C6,0)) -> 12458 | L75: =IF(F75<1,0,SUM(C75/F75)) -> 1.186449262
A77: 5. Other Operating Costs: | C77: $/cow/yr | J77: Total Cost | L77: $/cow/day
B78: Veterinary Medicine & Supplies: | C78: 0 | J78: =ROUND(C78*C6,0) -> 0 | L78: =SUM(J78/$C$6)/($C$9+$C$10+$C$12) -> 0
B79: Specialized Vet Services | J79: 0 | L79: 0
B80: Utilities | J80: ='Operating '!E55+'Operating '!E57 -> 2906.6322 | L80: 0.04212510435
B81: Equipment fuel & repairs | J81: ='Operating '!E36+'Operating '!E41 -> 9662.32 | L81: 0.1400336232
B82: Building and fences repair | J82: ='Operating '!E46 -> 2358.4 | L82: 0.03417971014
B83: Building and equipment insurance | J83: ='Operating '!G118*'Overwinter (HIDE)'!C6 -> 1779 | L83: 0.0257826087
B84: Manure Removal | J84: ='Operating '!G108*'Overwinter (HIDE)'!C6 -> 3251.890687 | L84: 0.04712885054
B85: Miscellaneous | J85: ='Operating '!E125 -> 1000 | L85: 0.01449275362
B86: Total Other Operating Costs | J86: =ROUND(SUM(J78:J85),0) -> 20958 | L86: 0.3037391304
A88: Subtotal Operating Costs | J88: =ROUND(J62+J70+J86+J75,0) -> 181159 | L88: =SUM(J88/$C$6)/($C$9+$C$10+$C$12) -> 2.625492754
B89: Operating Interest | J89: =ROUND((J88/2)*G9,0) -> 6114 | L89: =SUM(J89/$C$6)/($C$9+$C$10+$C$12) -> 0.08860869565
A90: Total Operating Costs for Winter Period | J90: =ROUND(J88+J89,0) -> 187273 | L90: =SUM(J90/$C$6)/($C$9+$C$10+$C$12) -> 2.714101449
A92: B. Fixed Costs:
C93: Facilities | E93: Equipment
B94: Original Value | C94: =SUM(Fixed!E48:E63) -> 107200 | E94: =SUM(Fixed!J48:J63) -> 337500
B95: Salvage Value | C95: =SUM(C94*Fixed!I19) -> 21440 | E95: =SUM(E94*Fixed!I5) -> 67500
B96: Useful Life | C96: =Fixed!I20 -> 20 | D96: yrs | E96: =Fixed!I6 -> 10 | F96: yrs
B97: Investment Rate | C97: =G10 -> 0.035 | E97: =G10 -> 0.035 | J97: Total Cost | L97: $/cow/day
A98: Total Fixed Costs | C98: =IF(C96=0,0,(((C94-C95)/C96)+((C94+C95)/2)*C97)/C6) -> 21.79733333 | E98: =IF(E96=0,0,(((E94-E95)/E96)+((E94+E95)/2)*E97)/C6) -> 113.625 | J98: =ROUND((C98+E98)*C6,0) -> 40627 | L98: =SUM(J98/$C$6)/($C$9+$C$10+$C$12) -> 0.5887971014
A100: C. Labour Costs:
J101: Total Cost | L101: $/cow/day
B102: Feeding, bedding | C102: =SUM(('Operating '!E136+'Operating '!E137)*0.625) -> 5 | D102: hr/cow | E102: ='Operating '!E135 -> 28 | F102: /hr | G102: ="("&TEXT(((C102*C6)/((C9+C12)/7)),"#.#")&" hrs per week)" -> (61.8 hrs per week) | J102: =SUM(C102*E102*C6) -> 42000 | L102: =SUM(J102/$C$6)/($C$9+$C$10+$C$12) -> 0.6086956522
B103: Optional Calving Management Fee | E103: 0 | F103: /cow | J103: =SUM(E103*C6) -> 0 | L103: =SUM(J103/$C$6)/($C$9+$C$10+$C$12) -> 0
B104: Calf Crop Bonus | C104: 1 | D104: /rate | E104: 0 | F104: /calf | J104: =SUM(C104*E104*C6) -> 0 | L104: =SUM(J104/$C$6)/($C$9+$C$10+$C$12) -> 0
A105: Total Labour Costs for Winter Period | J105: =ROUND(J103+J104+J102,0) -> 42000 | L105: =SUM(J105/$C$6)/($C$9+$C$10+$C$12) -> 0.6086956522
J107: Total Cost | L107: $/cow/day
A108: Total Cost of Production (Winter Feed, Extended Grazing, Operating, Fixed & Labour) | J108: =SUM(J105+J98+J90) -> 269900 | L108: =SUM(J108/$C$6)/($C$9+$C$10+$C$12) -> 3.911594203
A110: Cost Summary
E111: Cost/cow/day
B112: ="Extended grazing (based on "&C12&" days)" -> Extended grazing (based on 35 days) | E112: =L75 -> 1.186449262
B113: ="Winter Feed (based on "&C9+C10&" days)" -> Winter Feed (based on 195 days) | E113: =ROUND((J60+J68)/(C9+C10)/C6,3) -> 2.152 | G113: ="($"&ROUND(SUM((J60+J68)/$C$6),0)&" per cow)" -> ($420 per cow)
B114: ="Yardage (not including labour, based on "&C9+C10+C12&" days)" -> Yardage (not including labour, based on 230 days) | E114: =ROUND((((J61+J69+J86+J89+J98)/C6)/(C9+C10+C12)),3) -> 1.298
B115: ="Labour (based on "&C9+C10+C12&" days)" -> Labour (based on 230 days) | E115: =ROUND((J105)/(C9+C10+C12)/C6,3) -> 0.609
B116: ="Total Overwinter Costs (based on "&C9+C10+C12&" days)" -> Total Overwinter Costs (based on 230 days) | E116: =SUM(((J75+(E113*(C9+C10)*C6)+((E114*(C9+C10+C12)*C6)+J102))/C6)/(C9+C10+C12)) -> 3.911768116
A118: Note: This budget is only a guide and is not intended to be an in-depth study of the cost of production of this industry. Interpretation and utilization of this information is the responsibility of the user.
L121: September, 2025

Sheet Cow Value (hidden)
A1: ="Cow Replacement Value Calculation Worksheet - "&Introduction!I10&"" -> Cow Replacement Value Calculation Worksheet - September, 2025
A3: Average Cow Weight | C3: =Input!E14 -> 1350 | D3: lbs | F3: Operating Interest Rate | I3: ='Operating '!E131 -> 6.75 | J3: %
A4: Cull Cow Market Price (current) | C4: =Input!E30 -> 220 | D4: /cwt | F4: Investment Rate | I4: =Input!E75 -> 3.5 | J4: %
A5: Cull Cow Market Value | C5: =SUM(C3/100)*C4 -> 2970
A7: Calf Crop | C7: =Input!E17 -> 95 | D7: % | F7: ****HIDE in FINAL VERSION*****
A8: Steer Calf Weight | C8: =Input!E18 -> 600 | D8: lbs
A9: Steer Calf Market Price (current) | C9: =Input!E19 -> 660 | D9: /cwt
A10: Heifer Calf Weight | C10: =Input!E20 -> 550 | D10: lbs
A11: Heifer Calf Market Price (current) | C11: =Input!E21 -> 620 | D11: /cwt
A12: Average Calf Weight | C12: =AVERAGE(C8,C10) -> 575 | D12: lbs
A13: Weighted Average Calf Market Price | C13: =SUM(((C9*(C8/100))+(C11*(C10/100)))/2)/(C12/100) -> 640.8695652 | D13: /cwt
B15: Estimated Production Costs and Income
C16: 1 Year | D16: 2 Years | E16: 3 Years | F16: 4 Years | G16: 5 Years | H16: 6 Years | I16: 7 Years | J16: 8 Years
A17: Operating Expense (per Cow)
B18: Feed Cost | C18: =Summary!F10 -> 459.5621242 | D18: 355 | E18: 359.88125 | F18: 364.8296172 | G18: 369.8460244 | H18: 374.9314073 | I18: 380.0867141 | J18: 385.3129064
B19: Other Operating Cost2 | C19: =SUM(Summary!F27-Summary!F10-Summary!F22) -> 497.988416 | D19: =SUM(C19*(1+($I$4/100/2))) -> 506.7032133 | E19: 515.5705195 | F19: 524.5930036 | G19: 533.7733812 | H19: 543.1144153 | I19: 552.6189176 | J19: 562.2897487
B20: Operating Interest | C20: =SUM((C18+C19)/2)*I3/100 -> 32.31733073 | D20: =SUM((D18+D19)/2)*$I$3/100 -> 29.08248345 | E20: 29.54649722 | F20: 30.01801345 | G20: 30.49715494 | H20: 30.98404651 | I20: 31.47881507 | J20: 31.98158961
A21: Total Operating Cost | C21: =SUM(C18:C20) -> 989.867871 | D21: =SUM(D18:D20) -> 890.7856967 | E21: 904.9982667 | F21: 919.4406343 | G21: 934.1165605 | H21: 949.0298691 | I21: 964.1844468 | J21: 979.5842447
A22: Total Fixed Cost2 | C22: =Summary!F36 -> 360.1596272 | D22: =SUM(C22*(1+($I$4/100/2))) -> 366.4624206 | E22: 372.875513 | F22: 379.4008345 | G22: 386.0403491 | H22: 392.7960552 | I22: 399.6699862 | J22: 406.6642109
A23: Total Operating and Fixed Cost | C23: =SUM(C21:C22) -> 1350.027498 | D23: =SUM(D21:D22) -> 1257.248117 | E23: =SUM(E21:E22) -> 1277.87378 | F23: 1298.841469 | G23: 1320.15691 | H23: 1341.825924 | I23: 1363.854433 | J23: 1386.248456
A24: Total Labour (Living) Cost2 | C24: =Summary!F38 -> 168 | D24: =SUM(C24*(1+($I$4/100/2))) -> 170.94 | E24: 173.93145 | F24: 176.9752504 | G24: 180.0723173 | H24: 183.2235828 | I24: 186.4299955 | J24: 189.6925204
A25: Total Cost Per Cow | C25: =SUM(C24+C23) -> 1518.027498 | D25: =SUM(D24+D23) -> 1428.188117 | E25: 1451.80523 | F25: 1475.816719 | G25: 1500.229227 | H25: 1525.049507 | I25: 1550.284428 | J25: 1575.940976
A27: Income (per Cow)
B28: Calf Market Price ($/cwt) | C28: =C13 -> 640.8695652 | D28: 190 | E28: 190 | F28: 195 | G28: 203 | H28: 210 | I28: 222 | J28: 230
B29: Calf Revenue | C29: =SUM((C28/100)*$C$12)*($C$7/100) -> 3500.75 | D29: 1037.875 | E29: 1037.875 | F29: 1065.1875 | G29: 1108.8875 | H29: 1147.125 | I29: 1212.675 | J29: 1256.375
B31: Calf Marginal Returns
B32: Over Operating Costs | C32: =SUM(C29-C21) -> 2510.882129 | D32: =SUM(D29-D21) -> 147.0893033 | E32: 132.8767333 | F32: 145.7468657 | G32: 174.7709395 | H32: 198.0951309 | I32: 248.4905532 | J32: 276.7907553
B33: Over Operating & Labour Costs | C33: =SUM(C29-C21-C24) -> 2342.882129 | D33: =SUM(D29-D21-D24) -> -23.85069674 | E33: -41.05471674 | F33: -31.22838463 | G33: -5.301377795 | H33: 14.87154807 | I33: 62.0605577 | J33: 87.09823486
B34: Over Operating & Fixed Costs | C34: =SUM(C29-C21-C22) -> 2150.722502 | D34: =SUM(D29-D21-D22) -> -219.3731174 | E34: -239.9987797 | F34: -233.6539687 | G34: -211.2694096 | H34: -194.7009243 | I34: -151.1794329 | J34: -129.8734556
B35: Over Total Costs (Net Profit) | C35: =SUM(C29-C25) -> 1982.722502 | D35: =SUM(D29-D25) -> -390.3131174 | E35: -413.9302297 | F35: -410.6292191 | G35: -391.3417269 | H35: -377.9245071 | I35: -337.6094285 | J35: -319.565976
B37: Cull Cow Market Price ($/cwt) | C37: =C4 -> 220 | D37: 90 | E37: 90 | F37: 95 | G37: 103 | H37: 110 | I37: 122 | J37: 130
B38: Cull Cow Revenue | C38: =SUM($C$3/100)*C37 -> 2970 | D38: 1215 | E38: 1215 | F38: 1282.5 | G38: 1390.5 | H38: 1485 | I38: 1647 | J38: 1755
A40: Estimated Breakeven Replacement Purchase Values1 - Number of Years Before Culling
C41: 1 Year | D41: 2 Years | E41: 3 Years | F41: 4 Years | G41: 5 Years | H41: 6 Years | I41: 7 Years | J41: 8 Years
B43: Over Operating Costs | C43: =NPV(I4/100,(C29-C21)+C38) -> 5295.538289 | D43: =NPV(I4/100,C29-C21,D29-D21+$D$38) -> 3697.498011 | E43: =NPV(I4/100,C29-C21,D29-D21,E29-E21+$E$38) -> 3778.990098 | F43: =NPV(I4/100,C29-C21,D29-D21,E29-E21,F29-F21+$F$38) -> 3927.764341 | G43: =NPV(I4/100,C29-C21,D29-D21,E29-E21,F29-F21,G29-G21+$G$38) -> 4128.055814 | H43: =NPV(I4/100,C29-C21,D29-D21,E29-E21,F29-F21,G29-G21,H29-H21+$H$38) -> 4326.491098 | I43: =NPV(I4/100,C29-C21,D29-D21,E29-E21,F29-F21,G29-G21,H29-H21,I29-I21+$I$38) -> 4608.281083 | J43: =NPV(I4/100,C29-C21,D29-D21,E29-E21,F29-F21,G29-G21,H29-H21,I29-I21,J29-J21+$J$38) -> 4856.71935
B44: Over Operating & Labour Costs | C44: =NPV(I4/100,(C29-C21-C24)+C38) -> 5133.219448 | D44: =NPV(I4/100,C29-C21-C24,D29-D21-D24+$D$38) -> 3375.604851 | E44: =NPV(I4/100,C29-C21-C24,D29-D21-D24,E29-E21-E24+$E$38) -> 3300.220735 | F44: =NPV(I4/100,C29-C21-C24,D29-D21-D24,E29-E21-E24,F29-F21-F24+$F$38) -> 3294.771272 | G44: =NPV(I4/100,C29-C21-C24,D29-D21-D24,E29-E21-E24,F29-F21-F24,G29-G21-G24+$G$38) -> 3343.446686 | H44: =NPV(I4/100,C29-C21-C24,D29-D21-D24,E29-E21-E24,F29-F21-F24,G29-G21-G24,H29-H21-H24+$H$38) -> 3392.829468 | I44: =NPV(I4/100,C29-C21-C24,D29-D21-D24,E29-E21-E24,F29-F21-F24,G29-G21-G24,H29-H21-H24,I29-I21-I24+$I$38) -> 3528.087161 | J44: =NPV(I4/100,C29-C21-C24,D29-D21-D24,E29-E21-E24,F29-F21-F24,G29-G21-G24,H29-H21-H24,I29-I21-I24,J29-J21-J24+$J$38) -> 3632.470736
B45: Over Operating & Fixed Costs | C45: =NPV(I4/100,C29-C21-C22+C38) -> 4947.557973 | D45: =NPV(I4/100,C29-C21-C22,D29-D21-D22+$D$38) -> 3007.421104 | E45: =NPV(I4/100,C29-C21-C22,D29-D21-D22,E29-E21-E22+$E$38) -> 2752.600842 | F45: =NPV(I4/100,C29-C21-C22,D29-D21-D22,E29-E21-E22,F29-F21-F22+$F$38) -> 2570.749176 | G45: =NPV(I4/100,C29-C21-C22,D29-D21-D22,E29-E21-E22,F29-F21-F22,G29-G21-G22+$G$38) -> 2446.005034 | H45: =NPV(I4/100,C29-C21-C22,D29-D21-D22,E29-E21-E22,F29-F21-F22,G29-G21-G22,H29-H21-H22+$H$38) -> 2324.900475 | I45: =NPV(I4/100,C29-C21-C22,D29-D21-D22,E29-E21-E22,F29-F21-F22,G29-G21-G22,H29-H21-H22,I29-I21-I22+$I$38) -> 2292.553462 | J45: =NPV(I4/100,C29-C21-C22,D29-D21-D22,E29-E21-E22,F29-F21-F22,G29-G21-G22,H29-H21-H22,I29-I21-I22,J29-J21-J22+$J$38) -> 2232.166228
B46: Over Total Costs (Net Profit) | C46: =NPV(I4/100,(C29-C25)+C38) -> 4785.239132 | D46: =NPV(I4/100,C29-C25,D29-D25+$D$38) -> 2685.527944 | E46: =NPV(I4/100,C29-C25,D29-D25,E29-E25+$E$38) -> 2273.831479 | F46: =NPV(I4/100,C29-C25,D29-D25,E29-E25,F29-F25+$F$38) -> 1937.756107 | G46: =NPV(I4/100,C29-C25,D29-D25,E29-E25,F29-F25,G29-G25+$G$38) -> 1661.395906 | H46: =NPV(I4/100,C29-C25,D29-D25,E29-E25,F29-F25,G29-G25,H29-H25+$H$38) -> 1391.238844 | I46: =NPV(I4/100,C29-C25,D29-D25,E29-E25,F29-F25,G29-G25,H29-H25,I29-I25+$I$38) -> 1212.359541 | J46: =NPV(I4/100,C29-C25,D29-D25,E29-E25,F29-F25,G29-G25,H29-H25,I29-I25,J29-J25+$J$38) -> 1007.917614
A48: 1 | B48: ="Yearly replacement value is calculated by adding the marginal returns from the current and each of the previous years and cull cow revenue in the current year at net present value (based on "&I4&"% annual investment cost)" -> Yearly replacement value is calculated by adding the marginal returns from the current and each of the previous years and cull cow revenue in the current year at net present value (based on 3.5% annual investment cost)
A50: 2 | B50: ="Costs estimates are increased annually by "&I4/2&"% inflation rate" -> Costs estimates are increased annually by 1.75% inflation rate
A52: Note: This budget is only a guide and is not intended as an in-depth study of the cost of production of this industry. Interpretation and use of this information is the responsibility of the user. If you need help with a budget, contact your local Manitoba Agriculture, Food and Rural Development (MAFRD) GO Office.
